﻿Body Name,Supplier Code,Supplier Name,Transaction Ref/No,Their Ref,Date Paid,Gross Value (Detail),VAT Amount,7CCC - Level 7 Cost Centre Code,7CCN - Level 7 Cost Centre Name,9AC - Level 9 Account Code,9AN - Level 9 Account Name,4CCN - Level 4 Cost Centre Name
Blackpool Council,1120105,Complex Cleaning Supplies Ltd,581675,SINV-0324808,30/09/2022,860.86,0,ZM0018,Highways & Engineering,9773,Orders Received Not Invoiced,Blackpool Services
Blackpool Council,1120105,Complex Cleaning Supplies Ltd,581675,SINV-0324808,30/09/2022,1033.03,172.17,ZM0018,Highways & Engineering,9511A,Stocks Efin,Blackpool Services
Blackpool Council,1106267,Blackpool Pride Festival,602334,INV-0078,30/09/2022,300,0,LIFEVE,Life Events Reg & Care,0I91,Other,Governance & Partnerships
Blackpool Council,1121728,Arrow County Supplies,604657,4959308,23/09/2022,658.8,0,ZM0018,Highways & Engineering,9773,Orders Received Not Invoiced,Blackpool Services
Blackpool Council,1121728,Arrow County Supplies,604657,4959308,23/09/2022,790.56,131.76,ZM0018,Highways & Engineering,9511A,Stocks Efin,Blackpool Services
Blackpool Council,1121728,Arrow County Supplies,605070,4960094,26/09/2022,250.75,0,ZM0018,Highways & Engineering,9773,Orders Received Not Invoiced,Blackpool Services
Blackpool Council,1121728,Arrow County Supplies,605070,4960094,26/09/2022,300.9,50.15,ZM0018,Highways & Engineering,9511A,Stocks Efin,Blackpool Services
Blackpool Council,1121728,Arrow County Supplies,605172,4960260,26/09/2022,279.36,46.56,ZM0018,Highways & Engineering,9511A,Stocks Efin,Blackpool Services
Blackpool Council,1055665,Clive Hurt (Plant Hire) Ltd,605662,0000101820,29/09/2022,6572.88,1095.48,SCHEME,Highways Schemes,1012,Premises Maint-Priv.Contractor,Community & Env Services
Blackpool Council,1055665,Clive Hurt (Plant Hire) Ltd,605663,0000101975,29/09/2022,4471.73,745.29,SCHEME,Highways Schemes,1012,Premises Maint-Priv.Contractor,Community & Env Services
Blackpool Council,1055665,Clive Hurt (Plant Hire) Ltd,605667,0000103058,29/09/2022,2160,360,SCHEME,Highways Schemes,1012,Premises Maint-Priv.Contractor,Community & Env Services
Blackpool Council,1121728,Arrow County Supplies,605894,4961299,26/09/2022,263.52,43.92,ZM0018,Highways & Engineering,9511A,Stocks Efin,Blackpool Services
Blackpool Council,1107153,Landscape Supply Company,606034,112234,02/09/2022,287.42,47.9,ZM0018,Highways & Engineering,9511A,Stocks Efin,Blackpool Services
Blackpool Council,1025240,Key Engineering Supplies Ltd,606123,51990,05/09/2022,264.11,0,ZM0018,Highways & Engineering,9773,Orders Received Not Invoiced,Blackpool Services
Blackpool Council,1025240,Key Engineering Supplies Ltd,606123,51990,05/09/2022,264.11,0,ZM0018,Highways & Engineering,9511A,Stocks Efin,Blackpool Services
Blackpool Council,1010860,Advanced Steel Services Ltd,606130,01122526,13/09/2022,352.32,58.72,SCHEME,Highways Schemes,3041,Other Materials,Community & Env Services
Blackpool Council,1075909,Viatec Uk Ltd,606152,1985541,02/09/2022,990,0,ZM0018,Highways & Engineering,9773,Orders Received Not Invoiced,Blackpool Services
Blackpool Council,1075909,Viatec Uk Ltd,606152,1985541,02/09/2022,1188,198,ZM0018,Highways & Engineering,9511A,Stocks Efin,Blackpool Services
Blackpool Council,1075909,Viatec Uk Ltd,606226,1985566,02/09/2022,1980,0,ZM0018,Highways & Engineering,9773,Orders Received Not Invoiced,Blackpool Services
Blackpool Council,1075909,Viatec Uk Ltd,606226,1985566,02/09/2022,2376,396,ZM0018,Highways & Engineering,9511A,Stocks Efin,Blackpool Services
Blackpool Council,1025240,Key Engineering Supplies Ltd,606236,52022,02/09/2022,549,0,ZM0018,Highways & Engineering,9773,Orders Received Not Invoiced,Blackpool Services
Blackpool Council,1025240,Key Engineering Supplies Ltd,606236,52022,02/09/2022,658.8,109.8,ZM0018,Highways & Engineering,9511A,Stocks Efin,Blackpool Services
Blackpool Council,1121728,Arrow County Supplies,606312,4961769,26/09/2022,254.16,42.36,ZM0018,Highways & Engineering,9511A,Stocks Efin,Blackpool Services
Blackpool Council,1076636,Chicken Joes Ltd,606382,758823,01/09/2022,458.35,0,CATERG,Catering Services,3101,Provisions,Community & Env Services
Blackpool Council,1076636,Chicken Joes Ltd,606383,758828,01/09/2022,286.79,0,CATERG,Catering Services,3101,Provisions,Community & Env Services
Blackpool Council,1076636,Chicken Joes Ltd,606384,760583,01/09/2022,288.76,0,CATERG,Catering Services,3101,Provisions,Community & Env Services
Blackpool Council,1076636,Chicken Joes Ltd,606385,762179,01/09/2022,288.76,0,CATERG,Catering Services,3101,Provisions,Community & Env Services
Blackpool Council,1076636,Chicken Joes Ltd,606388,758816,01/09/2022,316.74,0,CATERG,Catering Services,3101,Provisions,Community & Env Services
Blackpool Council,1076636,Chicken Joes Ltd,606390,760581,01/09/2022,306.3,0,CATERG,Catering Services,3101,Provisions,Community & Env Services
Blackpool Council,1121728,Arrow County Supplies,606489,4961921,26/09/2022,1405.6,0,ZM0018,Highways & Engineering,9773,Orders Received Not Invoiced,Blackpool Services
Blackpool Council,1121728,Arrow County Supplies,606489,4961921,26/09/2022,1975.2,329.2,ZM0018,Highways & Engineering,9511A,Stocks Efin,Blackpool Services
Blackpool Council,1014999,Machine Mart,606490,1102011,02/09/2022,329,0,ZM0018,Highways & Engineering,9773,Orders Received Not Invoiced,Blackpool Services
Blackpool Council,1014999,Machine Mart,606490,1102011,02/09/2022,394.81,65.81,ZM0018,Highways & Engineering,9511A,Stocks Efin,Blackpool Services
Blackpool Council,1006385,University Of Central Lancashire,606535,5110443,29/09/2022,2566.48,0,DDC,Partnerships & Business Dev,3801,Other Expenses,Places
Blackpool Council,1090628,The Furniture Recycling Group,606553,INV30972,12/09/2022,292.15,48.69,CWASTE,Commercial Waste,4501,Private Contractors,Community & Env Services
Blackpool Council,1010138,C Cabs,606746,08952,13/09/2022,392,0,TRCHIL,Integrated Transport Children,2201,Contract Hire,Community & Env Services
Blackpool Council,1132718,Cid Products Llp,606751,0000439968,05/09/2022,295.8,0,ZM0018,Highways & Engineering,9773,Orders Received Not Invoiced,Blackpool Services
Blackpool Council,1132718,Cid Products Llp,606751,0000439968,05/09/2022,354.96,59.16,ZM0018,Highways & Engineering,9511A,Stocks Efin,Blackpool Services
Blackpool Council,1097997,Szpunar & Associates Ltd,606886,02082022,01/09/2022,1000,0,LM0420,Adults Training,3426,Course Fees,Adult & Families
Blackpool Council,1008135,Marshalls,606890,Z001361572,05/09/2022,400.4,0,ZM0018,Highways & Engineering,9773,Orders Received Not Invoiced,Blackpool Services
Blackpool Council,1008135,Marshalls,606890,Z001361572,05/09/2022,480.48,80.08,ZM0018,Highways & Engineering,9511A,Stocks Efin,Blackpool Services
Blackpool Council,1007228,Origin Amenity Solutions Ltd T/A Rigby Taylor,606899,OASI0027423,05/09/2022,2756,0,ZM0018,Highways & Engineering,9773,Orders Received Not Invoiced,Blackpool Services
Blackpool Council,1007228,Origin Amenity Solutions Ltd T/A Rigby Taylor,606899,OASI0027423,05/09/2022,3307.2,551.2,ZM0018,Highways & Engineering,9511A,Stocks Efin,Blackpool Services
Blackpool Council,1094424,The Networking People,606926,SI111625,01/09/2022,2898.76,483.13,TSICT,Transforming Schools Ict,3527,Communication Lines,Resources
Blackpool Council,1049861,Nal Ltd,606929,0000112291,01/09/2022,2462.16,410.36,SCHEME,Highways Schemes,3041,Other Materials,Community & Env Services
Blackpool Council,1132812,Cognisoft Limited,606930,INV-0614,01/09/2022,810,135,PVA,Other External Funding,3313,General Expenses,Places
Blackpool Council,1075909,Viatec Uk Ltd,607098,1984834,05/09/2022,990,0,ZM0018,Highways & Engineering,9773,Orders Received Not Invoiced,Blackpool Services
Blackpool Council,1075909,Viatec Uk Ltd,607098,1984834,05/09/2022,1188,198,ZM0018,Highways & Engineering,9511A,Stocks Efin,Blackpool Services
Blackpool Council,1119493,Centerprise International Ltd,607105,90283443,02/09/2022,25632,4272,CS0739,Ict Refresh,6525,I.T. Hardware Purchase,Capital - Resources
Blackpool Council,1037659,Hellermanntyton,607111,G603027,02/09/2022,993.41,165.57,PJHA,"Depot, Management & Admin",3041,Other Materials,Places
Blackpool Council,1062176,Gmbg Ltd T/A Civils & Lintels,607165,FNW/355595,05/09/2022,535.7,0,ZM0018,Highways & Engineering,9773,Orders Received Not Invoiced,Blackpool Services
Blackpool Council,1062176,Gmbg Ltd T/A Civils & Lintels,607165,FNW/355595,05/09/2022,642.84,107.14,ZM0018,Highways & Engineering,9511A,Stocks Efin,Blackpool Services
Blackpool Council,1062176,Gmbg Ltd T/A Civils & Lintels,607166,FNW/355649,05/09/2022,343,0,ZM0018,Highways & Engineering,9773,Orders Received Not Invoiced,Blackpool Services
Blackpool Council,1062176,Gmbg Ltd T/A Civils & Lintels,607166,FNW/355649,05/09/2022,411.6,68.6,ZM0018,Highways & Engineering,9511A,Stocks Efin,Blackpool Services
Blackpool Council,1035030,Wicksteed Leisure Ltd,607168,0000818576,05/09/2022,741.55,0,ZM0018,Highways & Engineering,9773,Orders Received Not Invoiced,Blackpool Services
Blackpool Council,1035030,Wicksteed Leisure Ltd,607168,0000818576,05/09/2022,889.86,148.31,ZM0018,Highways & Engineering,9511A,Stocks Efin,Blackpool Services
Blackpool Council,1043832,Denwire Limited,607172,IN246261,02/09/2022,744,124,PJAA,"Erection, Operation & Dismantl",3041,Other Materials,Places
Blackpool Council,1136061,Looking Local Ltd,607311,INV-0476,02/09/2022,22800,3800,FCACA,Benefits - Admin,3401,General Services,Resources
Blackpool Council,1136061,Looking Local Ltd,607312,INV-0475,02/09/2022,69600,11600,FCACA,Benefits - Admin,3401,General Services,Resources
Blackpool Council,1010104,Canon (Uk ) Ltd,607327,9314654,01/09/2022,603.67,100.61,FL1235,Trans - Technical Support,3531,Computer-H'Ware Purchase,Community & Env Services
Blackpool Council,1087234,Aitch Tools & Fasteners Ltd,607353,063473,02/09/2022,313,0,ZM0018,Highways & Engineering,9773,Orders Received Not Invoiced,Blackpool Services
Blackpool Council,1087234,Aitch Tools & Fasteners Ltd,607353,063473,02/09/2022,375.6,62.6,ZM0018,Highways & Engineering,9511A,Stocks Efin,Blackpool Services
Blackpool Council,1087234,Aitch Tools & Fasteners Ltd,607354,063344,14/09/2022,1225.05,0,ZM0018,Highways & Engineering,9773,Orders Received Not Invoiced,Blackpool Services
Blackpool Council,1087234,Aitch Tools & Fasteners Ltd,607354,063344,14/09/2022,1470.06,245.01,ZM0018,Highways & Engineering,9511A,Stocks Efin,Blackpool Services
Blackpool Council,1024186,Solon Security,607382,SI22006046,02/09/2022,595.8,99.3,COMSAF,Community Safety,3313,General Expenses,Community & Env Services
Blackpool Council,1086156,Water Saving Techniques Limited,607386,SI-5420,06/09/2022,5820,970,PARADE,Parades & Seawall,1012,Premises Maint-Priv.Contractor,Community & Env Services
Blackpool Council,1006419,Tunstall Healthcare (Uk) Ltd,607403,3IN/10393927,02/09/2022,642,107,APFBAB,Vitaline,3012,Other Equipment,Adult & Families
Blackpool Council,1120630,Dar Consulting,607409,SI-260,07/09/2022,720,120,FL1235,Trans - Technical Support,4501,Private Contractors,Community & Env Services
Blackpool Council,1120630,Dar Consulting,607410,SI-259,02/09/2022,600,100,FL1235,Trans - Technical Support,4501,Private Contractors,Community & Env Services
Blackpool Council,1120630,Dar Consulting,607411,SI-258,02/09/2022,720,120,FL1235,Trans - Technical Support,4501,Private Contractors,Community & Env Services
Blackpool Council,1013705,Stadia Sports/ Broxap Limited,607412,INV292078,07/09/2022,270,45,SCHEME,Highways Schemes,3041,Other Materials,Community & Env Services
Blackpool Council,1069392,Meon Ltd,607413,M76926,05/09/2022,273.98,45.66,SCHEME,Highways Schemes,3041,Other Materials,Community & Env Services
Blackpool Council,1009166,Glasdon Uk Ltd,607424,SI844922,07/09/2022,887.38,0,ZM0018,Highways & Engineering,9773,Orders Received Not Invoiced,Blackpool Services
Blackpool Council,1009166,Glasdon Uk Ltd,607424,SI844922,07/09/2022,1064.86,177.48,ZM0018,Highways & Engineering,9511A,Stocks Efin,Blackpool Services
Blackpool Council,1058510,Lifeline Language Services Ltd,607428,0522033,01/09/2022,322.44,53.74,JEA,Senior Management,5507,Personal,Children'S Services
Blackpool Council,1126830,Taranto Systems Ltd,607475,INV0000001325,07/09/2022,599.2,99.87,PARADM,Parking Administration,3801,Other Expenses,Budgets Outside Cash Limits
Blackpool Council,1094424,The Networking People,607476,SI111646,02/09/2022,5156.09,859.35,FGAA,Ict Corporate Services,3521,Landline - Line Rental,Resources
Blackpool Council,1071432,Cpi - Crisis Preventions Insititute,607484,CUK0033894,01/09/2022,4794,799,LM0420,Adults Training,3426,Course Fees,Adult & Families
Blackpool Council,1121728,Arrow County Supplies,607488,4963085,07/09/2022,716.1,0,ZM0018,Highways & Engineering,9773,Orders Received Not Invoiced,Blackpool Services
Blackpool Council,1121728,Arrow County Supplies,607488,4963085,07/09/2022,859.32,143.22,ZM0018,Highways & Engineering,9511A,Stocks Efin,Blackpool Services
Blackpool Council,1010104,Canon (Uk ) Ltd,607496,9314318,01/09/2022,297.66,49.61,POA,Office Services,3308,Servicing,Places
Blackpool Council,1019196,Scan Computers International Ltd,607515,0003208262,02/09/2022,587.24,97.87,PJHA,"Depot, Management & Admin",3041,Other Materials,Places
Blackpool Council,1060504,Express Cutting And Welding Services Ltd,607518,533669,08/09/2022,446.78,74.46,ENGINE,Engineering,3041,Other Materials,Community & Env Services
Blackpool Council,1057663,Wilde Recruitment Ltd,607529,41262,02/09/2022,552.38,92.06,CTAHHA,Tramway Emergency Works,6501,Contract Payments,Capital - Commnctn & Regen
Blackpool Council,1017722,Terrys Cut Price Carpets Ltd,607530,1929,06/09/2022,444,74,FC1802,Social Fund - Client,5210,Community Care Support,Resources
Blackpool Council,1086788,Idox Software Ltd,607545,117900,08/09/2022,2979.01,496.5,PYLA,Licencing,3531,Computer-H'Ware Purchase,Community & Env Services
Blackpool Council,1088636,Tarmac Building Products Ltd,607554,9500025098,08/09/2022,1368,0,ZM0018,Highways & Engineering,9773,Orders Received Not Invoiced,Blackpool Services
Blackpool Council,1088636,Tarmac Building Products Ltd,607554,9500025098,08/09/2022,1641.6,273.6,ZM0018,Highways & Engineering,9511A,Stocks Efin,Blackpool Services
Blackpool Council,1006636,Tts Group Ltd,607555,DE6864381,09/09/2022,515.88,85.98,LBF,Library Management,3041,Other Materials,Places
Blackpool Council,1094424,The Networking People,607558,SI111669,08/09/2022,17278.25,2879.71,FGAA,Ict Corporate Services,3527,Communication Lines,Resources
Blackpool Council,1134332,Epe Reynell Advertising Limited,607559,INV_417116,02/09/2022,386.3,64.38,TRA,Traffic Management,4501,Private Contractors,Community & Env Services
Blackpool Council,1096659,Dalgleish Therapies,607625,020000622-2006,08/09/2022,400,0,FK0071,Corporate Training,3426,Course Fees,Chief Executive
Blackpool Council,1096659,Dalgleish Therapies,607626,020000622-2405,08/09/2022,400,0,FK0071,Corporate Training,3426,Course Fees,Chief Executive
Blackpool Council,1025240,Key Engineering Supplies Ltd,607665,52500,09/09/2022,735.08,122.51,APDBAB,Homecare,3201,Clothing & Uniforms,Adult & Families
Blackpool Council,1025240,Key Engineering Supplies Ltd,607667,52503,09/09/2022,268.13,44.69,ZM0018,Highways & Engineering,9511A,Stocks Efin,Blackpool Services
Blackpool Council,1058510,Lifeline Language Services Ltd,607696,0522005,01/09/2022,357.6,59.6,JEA,Senior Management,5507,Personal,Children'S Services
Blackpool Council,1111248,Nottingham City Council,607700,855063500,02/09/2022,10173.6,1695.6,PRKDEV,Parks Development,3072,Bedding,Community & Env Services
Blackpool Council,1116610,Smart Video & Sensing Limited,607765,101447,09/09/2022,522,87,CTACBA,Ltp Scheme 21/22,6501,Contract Payments,Capital - Commnctn & Regen
Blackpool Council,1037659,Hellermanntyton,607785,G605540,09/09/2022,489.6,81.6,PJOA,Commercial & Marketing,3041,Other Materials,Places
Blackpool Council,1116762,Dt Electrical (Uk) Ltd,607787,IN2857,12/09/2022,7725.96,1287.66,PJLA,Maintenance,1012,Premises Maint-Priv.Contractor,Places
Blackpool Council,1007385,R S Components Ltd,607879,2208067989,08/09/2022,443.59,73.93,PJRA,Electrical Infra - Places,3041,Other Materials,Places
Blackpool Council,1090465,Gemini Reinstatement Products Ltd,607882,12046,08/09/2022,724,0,ZM0018,Highways & Engineering,9773,Orders Received Not Invoiced,Blackpool Services
Blackpool Council,1090465,Gemini Reinstatement Products Ltd,607882,12046,08/09/2022,868.8,144.8,ZM0018,Highways & Engineering,9511A,Stocks Efin,Blackpool Services
Blackpool Council,1135714,Oh Sourcing Ltd,607895,3561,02/09/2022,846,141,FK0013,Corporate Health,0791,Temp/Relief (Bureau Staff),Chief Executive
Blackpool Council,1119242,Katherine Brady All Things Told,607896,066,01/09/2022,6800,0,CGTACA,Museum,6503,Capital Salaries (Pro Advance),Capital - Commnctn & Regen
Blackpool Council,1135714,Oh Sourcing Ltd,607897,3560,02/09/2022,578.1,96.35,FK0013,Corporate Health,0791,Temp/Relief (Bureau Staff),Chief Executive
Blackpool Council,1009035,Hilton Cabinet Co Ltd,607899,66895,09/09/2022,785.8,130.96,CEMCRE,Cems Crems Etc,3450,Book Of Remembrance,Governance & Partnerships
Blackpool Council,1090628,The Furniture Recycling Group,607900,INV31141,12/09/2022,278.18,46.36,CWASTE,Commercial Waste,4501,Private Contractors,Community & Env Services
Blackpool Council,1009927,City Electrical Factors Limited,607903,BLA/330724,06/09/2022,827.64,137.94,PJNA,New Features / Schemes - C & E,3041,Other Materials,Places
Blackpool Council,1008246,Lyreco Uk Limited,607911,6901622404,09/09/2022,276.08,46.02,ALEARN,Adult Learning,3302,Stationery,Places
Blackpool Council,1088636,Tarmac Building Products Ltd,607916,9500025784,09/09/2022,1368,0,ZM0018,Highways & Engineering,9773,Orders Received Not Invoiced,Blackpool Services
Blackpool Council,1088636,Tarmac Building Products Ltd,607916,9500025784,09/09/2022,1641.6,273.6,ZM0018,Highways & Engineering,9511A,Stocks Efin,Blackpool Services
Blackpool Council,1135714,Oh Sourcing Ltd,607921,3593,09/09/2022,817.8,136.3,FK0013,Corporate Health,0791,Temp/Relief (Bureau Staff),Chief Executive
Blackpool Council,1131576,Oprema Limited,607922,3031596,09/09/2022,440.28,73.38,CCTV,Cctv,3012,Other Equipment,Community & Env Services
Blackpool Council,1131576,Oprema Limited,607923,3031595,09/09/2022,880.56,146.76,CCTV,Cctv,3012,Other Equipment,Community & Env Services
Blackpool Council,1118715,Alison Black Ltd T/A Sportmax,607966,121334,09/09/2022,1557.36,259.56,LEISUR,Leisure Management,3815,Saleable Goods,Community & Env Services
Blackpool Council,1135898,Upergy T/A Allbatteries,607967,ABU220800219,02/09/2022,574.78,95.8,COMSAF,Community Safety,3313,General Expenses,Community & Env Services
Blackpool Council,1058510,Lifeline Language Services Ltd,607969,0522044,02/09/2022,331.2,55.2,JEA,Senior Management,5507,Personal,Children'S Services
Blackpool Council,1119587,Highway Workforce Ltd,607970,HWF 2022-244,13/09/2022,13501.54,2250.26,TRB,Maintenance & Works,4501,Private Contractors,Community & Env Services
Blackpool Council,1014426,Jacobs Uk Limited,607972,RM616802-002,12/09/2022,1800,300,AEB,Buildings,3413,Consultants,Resources
Blackpool Council,1006858,University Of Cumbria,607973,30215489,05/09/2022,2175,0,EDDIV,Education Diversity,0911,Training Expenses,Children'S Services
Blackpool Council,1085729,W V Howe Limited,607980,301357,14/09/2022,4190.4,698.4,CATERG,Catering Services,3052,Kitchen (Light) Equip-Purchase,Community & Env Services
Blackpool Council,1085729,W V Howe Limited,607981,301370,14/09/2022,1296.31,216.03,CATERG,Catering Services,3052,Kitchen (Light) Equip-Purchase,Community & Env Services
Blackpool Council,1094424,The Networking People,607988,SI111696,14/09/2022,369.55,61.59,CCTV,Cctv,3012,Other Equipment,Community & Env Services
Blackpool Council,1119587,Highway Workforce Ltd,607990,HWF 2022-247,13/09/2022,9985.84,1664.31,TRB,Maintenance & Works,4501,Private Contractors,Community & Env Services
Blackpool Council,1094355,Les Mills Fitness Uk Ltd,607995,LMUK-SIV-130518,02/09/2022,510,85,LEISUR,Leisure Management,3801,Other Expenses,Community & Env Services
Blackpool Council,1009927,City Electrical Factors Limited,608021,BLA/331088,09/09/2022,275.88,45.98,PJNA,New Features / Schemes - C & E,3041,Other Materials,Places
Blackpool Council,1095408,Jay Salisbury Equipment Services,608073,25257,09/09/2022,3483.36,580.56,ENGINE,Engineering,3041,Other Materials,Community & Env Services
Blackpool Council,1132964,The Good Cause Project,608084,INV-0046,12/09/2022,2800,0,AHHBA,Blackpool Museum,3801,Other Expenses,Places
Blackpool Council,1132311,Treestyle Consultancy Ltd,608099,INV-0126,02/09/2022,3000,0,PRKDEV,Parks Development,1012,Premises Maint-Priv.Contractor,Community & Env Services
Blackpool Council,1098899,Browne Jacobson Llp,608100,IN-000123193,09/09/2022,3892.8,648.8,FL1259,Pfi Management Costs,4501,Private Contractors,Community & Env Services
Blackpool Council,1102635,Fabrikat (Nottingham) Ltd,608107,142823,13/09/2022,1268,0,ZM0018,Highways & Engineering,9773,Orders Received Not Invoiced,Blackpool Services
Blackpool Council,1102635,Fabrikat (Nottingham) Ltd,608107,142823,13/09/2022,2108.4,351.4,ZM0018,Highways & Engineering,9511A,Stocks Efin,Blackpool Services
Blackpool Council,1118715,Alison Black Ltd T/A Sportmax,608111,121186,01/09/2022,1137.36,189.56,LEISUR,Leisure Management,3815,Saleable Goods,Community & Env Services
Blackpool Council,1005071,Blackpool Transport Services Limited,608113,I0004068,13/09/2022,269.73,0,JPA,Children Centres,5552,Bus Pass / Travel,Children'S Services
Blackpool Council,1094355,Les Mills Fitness Uk Ltd,608210,LMUK-SIV-130433,02/09/2022,450,75,LEISUR,Leisure Management,5557,Health Requirements,Community & Env Services
Blackpool Council,1091610,Communicate Slt Cic,608211,INV-0749,01/09/2022,560,0,BSTPRJ,Better Start Projects,3401,General Services,Better Start Projects
Blackpool Council,1134202,Parity Projects Ltd,608212,INV-2663,09/09/2022,1805.1,300.85,CORDEV,Corporate Delivery Unit,3801,Other Expenses,Chief Executive
Blackpool Council,1031475,Jenx Ltd T/A Jiraffe,608220,242468,07/09/2022,4876.8,812.8,MTEAJ,Equipment,5401,Aids To Daily Living,Adult & Families
Blackpool Council,1115480,Seating Matters Ltd,608221,51138,02/09/2022,422.4,70.4,MTEAJ,Equipment,5401,Aids To Daily Living,Adult & Families
Blackpool Council,1006196,Prism Medical Uk Ltd,608222,5534405,05/09/2022,288.24,48.04,MVA,18-64,5401,Aids To Daily Living,Adult & Families
Blackpool Council,1006196,Prism Medical Uk Ltd,608225,5534406,05/09/2022,618.38,103.06,MVA,18-64,5401,Aids To Daily Living,Adult & Families
Blackpool Council,1128430,Refer-All Ltd T/A Refer All,608235,INV-1277,16/09/2022,360,60,SPORTY,Sports & Physical Activity,4501,Private Contractors,Community & Env Services
Blackpool Council,1102823,Wilde Consultants Limited,608236,23519,16/09/2022,4662,777,TRA,Traffic Management,4501,Private Contractors,Community & Env Services
Blackpool Council,1101740,Ken Taylor Supplies Limited,608247,0362070,16/09/2022,332.82,0,ZM0018,Highways & Engineering,9773,Orders Received Not Invoiced,Blackpool Services
Blackpool Council,1101740,Ken Taylor Supplies Limited,608247,0362070,16/09/2022,693.38,115.56,ZM0018,Highways & Engineering,9511A,Stocks Efin,Blackpool Services
Blackpool Council,1089201,Wedge Group Galvanizing Ltd,608254,MS00191457,15/09/2022,754.53,125.75,PJNA,New Features / Schemes - C & E,3041,Other Materials,Places
Blackpool Council,1012895,Universal Containers Services Ltd,608256,521088,07/09/2022,4272,712,LEISUR,Leisure Management,0831,Tool Allowances,Community & Env Services
Blackpool Council,1006944,Siemens Financial Services Ltd,608259,244/22/0221486,15/09/2022,2161.21,360.2,APFBAB,Vitaline,3711,Subscriptions,Adult & Families
Blackpool Council,1006944,Siemens Financial Services Ltd,608260,244/22/0214458,06/09/2022,1382.4,230.4,APFBAB,Vitaline,3711,Subscriptions,Adult & Families
Blackpool Council,1008775,J P Lennard Ltd,608265,152920,13/09/2022,254.88,42.48,LEISUR,Leisure Management,3007,Recreational Equipment,Community & Env Services
Blackpool Council,1029410,Cts Traffic And Transportation,608268,51304,16/09/2022,2847.6,474.6,PYLA,Licencing,4501,Private Contractors,Community & Env Services
Blackpool Council,1121728,Arrow County Supplies,608270,4964150,28/09/2022,1961.1,0,ZM0018,Highways & Engineering,9773,Orders Received Not Invoiced,Blackpool Services
Blackpool Council,1121728,Arrow County Supplies,608270,4964150,28/09/2022,2616.25,436.03,ZM0018,Highways & Engineering,9511A,Stocks Efin,Blackpool Services
Blackpool Council,1121728,Arrow County Supplies,608272,4964149,16/09/2022,439.2,0,ZM0018,Highways & Engineering,9773,Orders Received Not Invoiced,Blackpool Services
Blackpool Council,1121728,Arrow County Supplies,608272,4964149,16/09/2022,527.04,87.84,ZM0018,Highways & Engineering,9511A,Stocks Efin,Blackpool Services
Blackpool Council,1135254,E H Thorne (Beehives) Ltd,608275,593613,01/09/2022,1811.63,301.97,PRKDEV,Parks Development,3012,Other Equipment,Community & Env Services
Blackpool Council,1014996,Peters Ltd T/A Peters Bookselling Svces,608336,1925532,08/09/2022,361.91,0,LBF,Library Management,3304,Books And Periodicals,Places
Blackpool Council,1123190,Cder Group Limted,608342,221835,16/09/2022,4074.49,679.08,FBBEA,"Income, Recovery & Debtors",3807,Legal & Court Costs,Resources
Blackpool Council,1123190,Cder Group Limted,608343,221836,16/09/2022,20382.49,3397.08,FBBEA,"Income, Recovery & Debtors",3807,Legal & Court Costs,Resources
Blackpool Council,1107790,Taylek Ltd,608355,INV-22494,07/09/2022,1318.56,219.76,PJOA,Commercial & Marketing,3041,Other Materials,Places
Blackpool Council,1107790,Taylek Ltd,608357,INV-22497,07/09/2022,297,49.5,PJOA,Commercial & Marketing,3041,Other Materials,Places
Blackpool Council,1136147,REDACTED PERSONAL INFO,608365,001,14/09/2022,720,120,AHHBA,Blackpool Museum,3801,Other Expenses,Places
Blackpool Council,1130442,Skyguard Ltd T/A Peoplesafe,608366,CI2491,15/09/2022,2268,378,MTEBK,Other Services,3010,Safety Equipment,Adult & Families
Blackpool Council,1017439,A C Entertainment Technologies Ltd,608367,116394792,16/09/2022,1370.47,228.41,PJNB,Lightpool,3041,Other Materials,Places
Blackpool Council,1130442,Skyguard Ltd T/A Peoplesafe,608368,CI2495,15/09/2022,1656,276,MTEBK,Other Services,3010,Safety Equipment,Adult & Families
Blackpool Council,1026811,Stannah Lift Services Ltd,608374,1085456417,06/09/2022,3624.14,604.02,CXAAA,Local Authority Dwellings,6501,Contract Payments,Capital - Chief Executive
Blackpool Council,1135714,Oh Sourcing Ltd,608376,3622,16/09/2022,846,141,FK0013,Corporate Health,0791,Temp/Relief (Bureau Staff),Chief Executive
Blackpool Council,1112303,Access-Able (Uk) Limited (Fac001),608379,5143,15/09/2022,6436.2,0,CX4002,Disabled Facilities Grants,6501,Contract Payments,Capital - Adult Social Care
Blackpool Council,1026811,Stannah Lift Services Ltd,608381,1085456892,07/09/2022,297.6,49.6,MVBBJ,Equipment,5401,Aids To Daily Living,Adult & Families
Blackpool Council,1006292,Vodafone Corporate Ltd,608397,102028809,02/09/2022,450,75,PU1015,Practical Support Funding,3531,Computer-H'Ware Purchase,Public Health
Blackpool Council,1119493,Centerprise International Ltd,608411,90284310,16/09/2022,25632,4272,CS0739,Ict Refresh,6525,I.T. Hardware Purchase,Capital - Resources
Blackpool Council,1136235,Gary Starr Creative,608416,0685,07/09/2022,2160,360,NA1371,Management,4501,Private Contractors,Children'S Services
Blackpool Council,1031475,Jenx Ltd T/A Jiraffe,608489,242664,14/09/2022,1074,179,MTEAJ,Equipment,5401,Aids To Daily Living,Adult & Families
Blackpool Council,1031475,Jenx Ltd T/A Jiraffe,608490,242737,16/09/2022,2755.2,459.2,CWAN,Children With Additional Needs,5401,Aids To Daily Living,Children'S Services
Blackpool Council,1068172,Northern Print Distribution Ltd,608491,SI-56822,16/09/2022,538.8,89.8,AHHBA,Blackpool Museum,3801,Other Expenses,Places
Blackpool Council,1068172,Northern Print Distribution Ltd,608493,SI-56827,16/09/2022,270,45,AHHBA,Blackpool Museum,3801,Other Expenses,Places
Blackpool Council,1135715,Steroplast Healthcare Ltd,608501,SIN151068,16/09/2022,1368.12,228.02,DIRCTR,Directorate,3801,Other Expenses,Community & Env Services
Blackpool Council,1049105,Led Projects Ltd,608513,8142,16/09/2022,4775.4,795.9,PJNA,New Features / Schemes - C & E,3041,Other Materials,Places
Blackpool Council,1099753,Nimble Group It Ltd,608520,INV-12513,08/09/2022,6050.4,1008.4,FGAC,Ict Technical Support,3531,Computer-H'Ware Purchase,Resources
Blackpool Council,1014426,Jacobs Uk Limited,608560,B550X016-001,02/09/2022,24560.48,4093.41,CPAABA,Shoreline,6501,Contract Payments,Capital - Comm & Environ
Blackpool Council,1094424,The Networking People,608566,SI111683,09/09/2022,300,50,FGAA,Ict Corporate Services,3525,Radio,Resources
Blackpool Council,1094424,The Networking People,608568,SI111702,15/09/2022,1228.91,204.82,CATERG,Catering Services,3531,Computer-H'Ware Purchase,Community & Env Services
Blackpool Council,1130995,Green Chauffering Service Ltd,608570,1852,16/09/2022,1152,192,PJHA,"Depot, Management & Admin",2211,Casual Hire,Places
Blackpool Council,1136186,Hardstaff Barriers,608571,IN104975,21/09/2022,15631.01,2605.17,PRB,Events,0917,Other Exps,Places
Blackpool Council,1007776,Nu Pax Limited,608585,134864,16/09/2022,705.02,117.5,PJOA,Commercial & Marketing,3041,Other Materials,Places
Blackpool Council,1114036,Odlings Ltd T/A The Columbaria Co,608586,INV0085697,16/09/2022,706.8,117.8,CEMCRE,Cems Crems Etc,3454,Remove And Refix Memorials,Governance & Partnerships
Blackpool Council,1075909,Viatec Uk Ltd,608591,1985957,16/09/2022,990,0,ZM0018,Highways & Engineering,9773,Orders Received Not Invoiced,Blackpool Services
Blackpool Council,1075909,Viatec Uk Ltd,608591,1985957,16/09/2022,1188,198,ZM0018,Highways & Engineering,9511A,Stocks Efin,Blackpool Services
Blackpool Council,1130442,Skyguard Ltd T/A Peoplesafe,608595,CI2486,15/09/2022,3385.15,564.19,HOPB,Housing Options,4004,Management Fees,Chief Executive
Blackpool Council,1103692,Calico Enterprise Limited,608596,SINV65/00000130,09/09/2022,275,45.83,HOPB,Housing Options,4004,Management Fees,Chief Executive
Blackpool Council,1049304,Insight Direct (Uk) Ltd,608600,2100329533,14/09/2022,6601.9,1100.32,FGAA,Ict Corporate Services,3532,Comp-Running & License Costs,Resources
Blackpool Council,1068172,Northern Print Distribution Ltd,608604,SI-56832,22/09/2022,270,45,PRB,Events,3401,General Services,Places
Blackpool Council,1006385,University Of Central Lancashire,608637,TUI262500001,29/09/2022,362.5,0,JA0505,Children'S Training,0911,Training Expenses,Children'S Services
Blackpool Council,1074052,Brent Stevenson Memorials Ltd,608638,24349,02/09/2022,380.1,63.35,CEMCRE,Cems Crems Etc,3454,Remove And Refix Memorials,Governance & Partnerships
Blackpool Council,1049304,Insight Direct (Uk) Ltd,608647,2100329105,14/09/2022,1368.18,228.03,FGAB,Ict E-Government,3532,Comp-Running & License Costs,Resources
Blackpool Council,1122620,Cooperative Network Infrastructure Ltd,608651,INV-1369,16/09/2022,2268,378,FGAA,Ict Corporate Services,3527,Communication Lines,Resources
Blackpool Council,1057663,Wilde Recruitment Ltd,608655,41390,16/09/2022,368.26,61.38,CTAHHA,Tramway Emergency Works,6501,Contract Payments,Capital - Commnctn & Regen
Blackpool Council,1091465,Dm Orthotics Limited,608657,17645,21/09/2022,576.8,0,MTEAJ,Equipment,5401,Aids To Daily Living,Adult & Families
Blackpool Council,1011675,Bambers Remedial Contractors Limited,608666,17783,07/09/2022,6604.41,0,CX4002,Disabled Facilities Grants,6501,Contract Payments,Capital - Adult Social Care
Blackpool Council,1011675,Bambers Remedial Contractors Limited,608667,17778,07/09/2022,6559.49,0,CX4002,Disabled Facilities Grants,6501,Contract Payments,Capital - Adult Social Care
Blackpool Council,1011675,Bambers Remedial Contractors Limited,608668,17785,07/09/2022,8479.29,0,CX4002,Disabled Facilities Grants,6501,Contract Payments,Capital - Adult Social Care
Blackpool Council,1011675,Bambers Remedial Contractors Limited,608669,17787,07/09/2022,7478.23,0,CX4002,Disabled Facilities Grants,6501,Contract Payments,Capital - Adult Social Care
Blackpool Council,1011675,Bambers Remedial Contractors Limited,608672,17781,07/09/2022,8878.83,0,CX4002,Disabled Facilities Grants,6501,Contract Payments,Capital - Adult Social Care
Blackpool Council,1011675,Bambers Remedial Contractors Limited,608673,17763,07/09/2022,4524,0,CXAAA,Local Authority Dwellings,6501,Contract Payments,Capital - Chief Executive
Blackpool Council,1085664,Astor Bannerman (Medical) Ltd,608674,29606,16/09/2022,762,0,CX4002,Disabled Facilities Grants,6501,Contract Payments,Capital - Adult Social Care
Blackpool Council,1011675,Bambers Remedial Contractors Limited,608676,17782,07/09/2022,6366.84,0,CX4002,Disabled Facilities Grants,6501,Contract Payments,Capital - Adult Social Care
Blackpool Council,1011675,Bambers Remedial Contractors Limited,608680,17776,07/09/2022,6662.57,0,CX4002,Disabled Facilities Grants,6501,Contract Payments,Capital - Adult Social Care
Blackpool Council,1011675,Bambers Remedial Contractors Limited,608681,17775,07/09/2022,14700,0,CX4002,Disabled Facilities Grants,6501,Contract Payments,Capital - Adult Social Care
Blackpool Council,1011675,Bambers Remedial Contractors Limited,608682,17793,07/09/2022,8235.36,0,CX4002,Disabled Facilities Grants,6501,Contract Payments,Capital - Adult Social Care
Blackpool Council,1026811,Stannah Lift Services Ltd,608684,1085457645,09/09/2022,6444,0,CX4002,Disabled Facilities Grants,6501,Contract Payments,Capital - Adult Social Care
Blackpool Council,1025240,Key Engineering Supplies Ltd,608696,52822,22/09/2022,905.52,0,ZM0018,Highways & Engineering,9773,Orders Received Not Invoiced,Blackpool Services
Blackpool Council,1025240,Key Engineering Supplies Ltd,608696,52822,22/09/2022,905.52,0,ZM0018,Highways & Engineering,9511A,Stocks Efin,Blackpool Services
Blackpool Council,1042869,Childs Play (International) Ltd,608701,OP/I108856,15/09/2022,583,0,BSTPRJ,Better Start Projects,3303,Games/Visits,Better Start Projects
Blackpool Council,1119587,Highway Workforce Ltd,608702,HWF 2022-255,28/09/2022,14424.8,2404.14,TRB,Maintenance & Works,4501,Private Contractors,Community & Env Services
Blackpool Council,1122496,Haldane Fisher,608703,1200/00195654,21/09/2022,3300.2,550.03,PJOA,Commercial & Marketing,3041,Other Materials,Places
Blackpool Council,1136296,Swift Temps (Nw) Ltd,608704,007239,15/09/2022,756.11,126.02,PJBA,Wages Overhead Account,3308,Servicing,Places
Blackpool Council,1136283,REDACTED PERSONAL INFO,608706,0001,20/09/2022,1000,0,PJW,Management - Places - Illumina,3819,Events Support,Places
Blackpool Council,1044756,Nec Software Solutions Ltd,608714,91464477,20/09/2022,303.18,50.53,EM1032,Client Finances,3532,Comp-Running & License Costs,Resources
Blackpool Council,1044756,Nec Software Solutions Ltd,608714,91464477,20/09/2022,462.42,77.07,FBBEA,"Income, Recovery & Debtors",3532,Comp-Running & License Costs,Resources
Blackpool Council,1044756,Nec Software Solutions Ltd,608714,91464477,20/09/2022,765.6,127.6,FCACA,Benefits - Admin,3532,Comp-Running & License Costs,Resources
Blackpool Council,1006292,Vodafone Corporate Ltd,608733,RM45608,02/09/2022,443.79,73.96,FGAA,Ict Corporate Services,3531,Computer-H'Ware Purchase,Resources
Blackpool Council,1006292,Vodafone Corporate Ltd,608734,RM45605,02/09/2022,443.79,73.96,FGAA,Ict Corporate Services,3531,Computer-H'Ware Purchase,Resources
Blackpool Council,1006292,Vodafone Corporate Ltd,608735,RM45606,02/09/2022,443.79,73.96,FGAA,Ict Corporate Services,3531,Computer-H'Ware Purchase,Resources
Blackpool Council,1080563,Bay Media,608737,7593,23/09/2022,1302,217,PRL,Marketing,3401,General Services,Places
Blackpool Council,1086772,Taylor Transformers Ltd,608785,52647,16/09/2022,2376,396,PJNA,New Features / Schemes - C & E,3041,Other Materials,Places
Blackpool Council,1060135,Happy Creative Ltd,608795,H5677,02/09/2022,499.2,83.2,PTA,Economic Development,3315,Marketing,Places
Blackpool Council,1123071,Whistlejacket London Limited,608797,INV-0869,13/09/2022,2557.39,426.23,HJA,Growth,3315,Marketing,Places
Blackpool Council,1132940,Q-Free Uk (Bristol) Ltd,608799,IN17894QTDC,16/09/2022,27072,4512,CT9606,Traffic Control,6501,Contract Payments,Capital - Completed Schemes
Blackpool Council,1006292,Vodafone Corporate Ltd,608810,RM45609,02/09/2022,443.79,73.96,FGAA,Ict Corporate Services,3531,Computer-H'Ware Purchase,Resources
Blackpool Council,1006292,Vodafone Corporate Ltd,608811,RM45610,02/09/2022,443.79,73.96,FGAA,Ict Corporate Services,3531,Computer-H'Ware Purchase,Resources
Blackpool Council,1006292,Vodafone Corporate Ltd,608812,RM45607,02/09/2022,443.79,73.96,FGAA,Ict Corporate Services,3531,Computer-H'Ware Purchase,Resources
Blackpool Council,1134332,Epe Reynell Advertising Limited,608816,INV_417082,02/09/2022,482.88,80.48,PKAAA,Head Of Planning & Trans,3806,Advertising-General,Places
Blackpool Council,1106094,Casson Mann Ltd,608819,2613,09/09/2022,12758.2,2126.37,CGTACA,Museum,6506,Consultants Fees,Capital - Commnctn & Regen
Blackpool Council,1074968,P N Grundy Ltd,608820,811,15/09/2022,865.36,0,FK0071,Corporate Training,3426,Course Fees,Chief Executive
Blackpool Council,1074968,P N Grundy Ltd,608821,810,16/09/2022,2230.86,0,FK0071,Corporate Training,3426,Course Fees,Chief Executive
Blackpool Council,1103450,Blackpool Entertainment Company Limited,608822,INV006309,02/09/2022,798,133,JA0505,Children'S Training,1702,Hire Of Meeting Rooms,Children'S Services
Blackpool Council,1103450,Blackpool Entertainment Company Limited,608823,INV006312,02/09/2022,900,150,LM0420,Adults Training,3426,Course Fees,Adult & Families
Blackpool Council,1093145,On A Roll Sandwich Company,608850,246920,02/09/2022,977,0,CATERG,Catering Services,3101,Provisions,Community & Env Services
Blackpool Council,1121728,Arrow County Supplies,608861,4964914,23/09/2022,334.2,55.7,AER,Dual Use Properties,1601,Consumable Supplies,Resources
Blackpool Council,1121728,Arrow County Supplies,608864,4964913,23/09/2022,2548.2,0,ZM0018,Highways & Engineering,9773,Orders Received Not Invoiced,Blackpool Services
Blackpool Council,1121728,Arrow County Supplies,608864,4964913,23/09/2022,3312,552,ZM0018,Highways & Engineering,9511A,Stocks Efin,Blackpool Services
Blackpool Council,1102823,Wilde Consultants Limited,608866,23554,26/09/2022,5161.2,860.2,TRA,Traffic Management,4501,Private Contractors,Community & Env Services
Blackpool Council,1006944,Siemens Financial Services Ltd,608867,244/22/0223696,16/09/2022,3017.52,502.91,APFBAB,Vitaline,3711,Subscriptions,Adult & Families
Blackpool Council,1018184,Blackpool Skip Hire Ltd,608875,042234,02/09/2022,252,42,FC1802,Social Fund - Client,5210,Community Care Support,Resources
Blackpool Council,1135792,Carley Daines And Partners Limited,608877,12267,23/09/2022,1062,177,CGIBAA,Land Release Fund,6506,Consultants Fees,Capital - Commnctn & Regen
Blackpool Council,1136296,Swift Temps (Nw) Ltd,608884,007285,22/09/2022,841.38,140.23,PJBA,Wages Overhead Account,3308,Servicing,Places
Blackpool Council,1103450,Blackpool Entertainment Company Limited,608885,INV006318,01/09/2022,810.72,135.12,DIRCTR,Directorate,3313,General Expenses,Community & Env Services
Blackpool Council,1107790,Taylek Ltd,608886,INV-22561,16/09/2022,297.6,49.6,PJRA,Electrical Infra - Places,3041,Other Materials,Places
Blackpool Council,1114782,REDACTED PERSONAL INFO,608932,AHJ182,07/09/2022,300,0,AHG,Art Gallery Summary,3456,Payment To Artists,Places
Blackpool Council,1114541,Integrity Print Ltd,608933,1336152,23/09/2022,396,66,PARADM,Parking Administration,3302,Stationery,Budgets Outside Cash Limits
Blackpool Council,1103450,Blackpool Entertainment Company Limited,608934,INV006301,02/09/2022,24000,4000,PRA,Conferences,3701,Grants,Places
Blackpool Council,1103450,Blackpool Entertainment Company Limited,608935,INV006302,02/09/2022,24000,4000,PRA,Conferences,3701,Grants,Places
Blackpool Council,1103450,Blackpool Entertainment Company Limited,608936,INV006303,02/09/2022,18000,3000,PRA,Conferences,3701,Grants,Places
Blackpool Council,1103450,Blackpool Entertainment Company Limited,608937,INV006304,02/09/2022,12000,2000,PRA,Conferences,3701,Grants,Places
Blackpool Council,1040208,Water Cost Savers Ltd,608939,1141,15/09/2022,612,102,FB0004,Energy & Sustainability,1401,Water Charges-Metered,Resources
Blackpool Council,1130900,Clarity Books Ltd,608947,ICB00217,21/09/2022,888,0,LBC,Branch Libraries,3304,Books And Periodicals,Places
Blackpool Council,1067536,Rlss Uk Enterprises Ltd T/A Rlss Uk Shop,608951,SIN020800,16/09/2022,426,0,LEISUR,Leisure Management,0911,Training Expenses,Community & Env Services
Blackpool Council,1015415,Hmg Paints Ltd,608953,5144808,23/09/2022,361.44,60.24,PJNA,New Features / Schemes - C & E,3041,Other Materials,Places
Blackpool Council,1027246,Active Lancashire Ltd,609045,1513,01/09/2022,5000,0,LEISUR,Leisure Management,3801,Other Expenses,Community & Env Services
Blackpool Council,1026811,Stannah Lift Services Ltd,609046,1085457117,08/09/2022,2281,0,CX4002,Disabled Facilities Grants,6501,Contract Payments,Capital - Adult Social Care
Blackpool Council,1049304,Insight Direct (Uk) Ltd,609047,2100340140,23/09/2022,10760.25,1793.37,FGAA,Ict Corporate Services,3531,Computer-H'Ware Purchase,Resources
Blackpool Council,1053453,Brenntag Uk Ltd,609048,32SI 3347405,12/09/2022,618.97,103.16,LEISUR,Leisure Management,3060,Chemicals,Community & Env Services
Blackpool Council,1090628,The Furniture Recycling Group,609050,INV31292,12/09/2022,335.66,55.94,CWASTE,Commercial Waste,4501,Private Contractors,Community & Env Services
Blackpool Council,1105889,3d Environmental Limited,609051,HO-0006,01/09/2022,411,68.5,HOPB,Housing Options,4004,Management Fees,Chief Executive
Blackpool Council,1006419,Tunstall Healthcare (Uk) Ltd,609058,INV/30044051,01/09/2022,12001.18,2000.2,APFBAB,Vitaline,4515,Contract Services,Adult & Families
Blackpool Council,1132978,Cornerstone Design And Marketing Limited,609060,11324,02/09/2022,510,85,PRKDEV,Parks Development,3806,Advertising-General,Community & Env Services
Blackpool Council,1086772,Taylor Transformers Ltd,609062,52681,23/09/2022,924,154,PJLA,Maintenance,3041,Other Materials,Places
Blackpool Council,1057573,Bwb Consulting Limited,609063,4153,23/09/2022,600,100,CGICAG,Town Deal,6506,Consultants Fees,Capital - Commnctn & Regen
Blackpool Council,1057573,Bwb Consulting Limited,609066,4493,23/09/2022,3066,511,CGICAG,Town Deal,6506,Consultants Fees,Capital - Commnctn & Regen
Blackpool Council,1057540,Bre,609067,85128251,23/09/2022,294,49,PLBAAA,Development Control,3605,Confs & Short Courses,Places
Blackpool Council,1009927,City Electrical Factors Limited,609071,BLA/331515,16/09/2022,457.2,76.2,PJNA,New Features / Schemes - C & E,3041,Other Materials,Places
Blackpool Council,1082482,Lytham Window Company Limited,609075,81096,01/09/2022,16633.34,0,PLCAAA,Building Control,3801,Other Expenses,Places
Blackpool Council,1010300,Blacktax Radio Taxis T/A Blackpool Courier,609080,465,13/09/2022,950,0,TRCHIL,Integrated Transport Children,2201,Contract Hire,Community & Env Services
Blackpool Council,1130656,Caseware Uk Ltd,609082,43959,23/09/2022,3516,586,FBBBA,Audit & Investigations,3605,Confs & Short Courses,Resources
Blackpool Council,1082067,Squire Patton Boggs (Uk) Llp,609083,2718368,23/09/2022,41945.39,6990.9,CP0511,Anchorsholme Seawall Scheme,6506,Consultants Fees,Capital - Comm & Environ
Blackpool Council,1109682,Entertainment Concepts Ltd,609091,367,05/09/2022,799.99,133.33,FMAK,Acquisitions 9/10,1131,Electrical Equipment - Repairs,Places
Blackpool Council,1088121,Candy House Events And Entertainments Ltd,609139,BMP011,02/09/2022,300,0,AHHBA,Blackpool Museum,3801,Other Expenses,Places
Blackpool Council,1130349,Montague Consulting Ltd,609143,330,12/09/2022,3000,0,BSTPRJ,Better Start Projects,3413,Consultants,Better Start Projects
Blackpool Council,1058510,Lifeline Language Services Ltd,609144,0522006,08/09/2022,357.6,59.6,JEA,Senior Management,5507,Personal,Children'S Services
Blackpool Council,1006944,Siemens Financial Services Ltd,609147,244/22/0229554,27/09/2022,1500,250,FCADA,Customer Services,3001,Office Equipment Purchase,Resources
Blackpool Council,1110996,Philip Holmes T/A Dragon Creative,609150,102661,12/09/2022,1700,0,PJHA,"Depot, Management & Admin",3413,Consultants,Places
Blackpool Council,1107790,Taylek Ltd,609152,INV-22465,02/09/2022,292.8,48.8,PJNA,New Features / Schemes - C & E,3041,Other Materials,Places
Blackpool Council,1006944,Siemens Financial Services Ltd,609155,244/22/0226360,22/09/2022,2391.38,398.56,APFBAB,Vitaline,3711,Subscriptions,Adult & Families
Blackpool Council,1011970,A1 Streamline Road Markings Ltd,609161,8068,01/09/2022,4231.76,705.29,ENGINE,Engineering,1012,Premises Maint-Priv.Contractor,Community & Env Services
Blackpool Council,1011970,A1 Streamline Road Markings Ltd,609162,8070,13/09/2022,410.11,68.35,TRB,Maintenance & Works,4501,Private Contractors,Community & Env Services
Blackpool Council,1011970,A1 Streamline Road Markings Ltd,609166,8089,09/09/2022,924.77,154.13,ENGINE,Engineering,1012,Premises Maint-Priv.Contractor,Community & Env Services
Blackpool Council,1117705,Rhea Projects Ltd,609170,LAD2-0333,01/09/2022,40250.95,6708.49,LH2092,Lad 2 Funding,4501,Private Contractors,Public Health
Blackpool Council,1117705,Rhea Projects Ltd,609171,LAD2-0335,01/09/2022,76797,12799.5,LH2092,Lad 2 Funding,4501,Private Contractors,Public Health
Blackpool Council,1117705,Rhea Projects Ltd,609172,LAD2-0334,01/09/2022,11796.73,1966.12,LH2092,Lad 2 Funding,4501,Private Contractors,Public Health
Blackpool Council,1134991,Legrand Electric Ltd,609173,0000253632,14/09/2022,41278.8,6879.8,CS01DH,A P S Capital Works,6517,Equipment,Capital - Adult Social Care
Blackpool Council,1134991,Legrand Electric Ltd,609174,0000253753,16/09/2022,20639.4,3439.9,CS01DH,A P S Capital Works,6517,Equipment,Capital - Adult Social Care
Blackpool Council,1116598,Dc & Mg Associates Ltd,609175,221718,06/09/2022,769.2,128.2,CZ5000,Miscellaneous Non-Op Recs,6506,Consultants Fees,Capital - Resources
Blackpool Council,1051858,Asgard Secure Steel Storage,609178,566155,07/09/2022,807,134.5,PRKDEV,Parks Development,1061,Locks And Security,Community & Env Services
Blackpool Council,1014996,Peters Ltd T/A Peters Bookselling Svces,609183,1927817,16/09/2022,551.65,0,LBB,Central Library,3304,Books And Periodicals,Places
Blackpool Council,1017722,Terrys Cut Price Carpets Ltd,609186,1953,09/09/2022,336,56,FC1802,Social Fund - Client,5507,Personal,Resources
Blackpool Council,1134691,Fylde Coast Academy Trust,609187,0000000384,01/09/2022,20000,0,MNGMT,Central Management,0917,Other Exps,Children'S Services
Blackpool Council,1132845,Susan Hayward Consulting,609188,008/BC,01/09/2022,4725,0,MNGMT,Central Management,0917,Other Exps,Children'S Services
Blackpool Council,1008871,Irrv Services,609189,A131650,21/09/2022,1800,300,FBBEA,"Income, Recovery & Debtors",3426,Course Fees,Resources
Blackpool Council,1123518,Department For Transport Account,609190,2373-01/04/2022,14/09/2022,2250,375,TRA,Traffic Management,4501,Private Contractors,Community & Env Services
Blackpool Council,1113301,Swarco Traffic Ltd,609191,90019683,29/09/2022,1791.43,298.57,TRA,Traffic Management,4501,Private Contractors,Community & Env Services
Blackpool Council,1025240,Key Engineering Supplies Ltd,609196,52987,29/09/2022,287.62,47.94,ZM0018,Highways & Engineering,9511A,Stocks Efin,Blackpool Services
Blackpool Council,1044905,Eric Wright Construction Ltd,609197,CNCSI00338,13/09/2022,5131.18,855.2,CGICAG,Town Deal,6514,B.Holes/Site Investgtn/Surveys,Capital - Commnctn & Regen
Blackpool Council,1119493,Centerprise International Ltd,609198,90285035,29/09/2022,870,145,CS0739,Ict Refresh,6525,I.T. Hardware Purchase,Capital - Resources
Blackpool Council,1119493,Centerprise International Ltd,609199,90285034,29/09/2022,83400,13900,CS0739,Ict Refresh,6525,I.T. Hardware Purchase,Capital - Resources
Blackpool Council,1027465,Ove Arup & Partners Limited,609203,88-2205715,05/09/2022,8866.72,1477.79,FMAK,Acquisitions 9/10,2002,Repairs And Maintenance,Places
Blackpool Council,1075547,Bauer Radio Ltd,609204,8081321,27/09/2022,480,80,PRL,Marketing,3315,Marketing,Places
Blackpool Council,1044756,Nec Software Solutions Ltd,609245,91464648,27/09/2022,429.88,71.65,EM1032,Client Finances,3532,Comp-Running & License Costs,Resources
Blackpool Council,1044756,Nec Software Solutions Ltd,609245,91464648,27/09/2022,1988.23,331.37,FBBEA,"Income, Recovery & Debtors",3532,Comp-Running & License Costs,Resources
Blackpool Council,1044756,Nec Software Solutions Ltd,609245,91464648,27/09/2022,268.7,44.78,FC1801,Social Fund - Admin,3532,Comp-Running & License Costs,Resources
Blackpool Council,1044756,Nec Software Solutions Ltd,609245,91464648,27/09/2022,5104.94,850.82,FCACA,Benefits - Admin,3532,Comp-Running & License Costs,Resources
Blackpool Council,1044756,Nec Software Solutions Ltd,609245,91464648,27/09/2022,1504.65,250.78,FCADA,Customer Services,3532,Comp-Running & License Costs,Resources
Blackpool Council,1006586,H Jenkinson & Co Ltd,609246,SINV00940305,27/09/2022,14684.52,2447.42,PVA,Other External Funding,3313,General Expenses,Places
Blackpool Council,1096596,Highfield Pfi Spv Ltd,609252,PHSIP000033,06/09/2022,45410.69,7568.45,EM1029,Highfield Pfi,4515,Contract Services,Children'S Services
Blackpool Council,1096596,Highfield Pfi Spv Ltd,609254,PHSIP000034,06/09/2022,404484.89,67414.15,EM1029,Highfield Pfi,4515,Contract Services,Children'S Services
Blackpool Council,1096596,Highfield Pfi Spv Ltd,609255,PHSIP000032,02/09/2022,2441.84,406.97,EM1029,Highfield Pfi,4701,Other Contracted Services,Children'S Services
Blackpool Council,1011269,Fylde Council,609257,73289411,02/09/2022,50200,0,CPAABK,Sand Dunes Env Wrk Ph105,6506,Consultants Fees,Capital - Comm & Environ
Blackpool Council,1112921,Kays Medical Ltd,609258,0000364419,27/09/2022,572.4,95.4,FK0013,Corporate Health,0911,Training Expenses,Chief Executive
Blackpool Council,1087549,Merlin Entertainments (Blackpool) Ltd,609259,INV13026-00019721,07/09/2022,84029.29,8643.88,FMAK,Acquisitions 9/10,3801,Other Expenses,Places
Blackpool Council,1010009,North & Western Lancs Chamber Of Commerce,609260,97946,02/09/2022,540,90,PTA,Economic Development,3711,Subscriptions,Places
Blackpool Council,1134418,REDACTED PERSONAL INFO,609262,000022,02/09/2022,1294,0,PJNA,New Features / Schemes - C & E,3308,Servicing,Places
Blackpool Council,1011714,Michael Hope Haulage Limited,609263,001590,05/09/2022,2160,360,SCHEME,Highways Schemes,1012,Premises Maint-Priv.Contractor,Community & Env Services
Blackpool Council,1013064,Tarmac Lafarge Trading Limited,609264,9045716731,09/09/2022,410.73,68.45,ENGINE,Engineering,3041,Other Materials,Community & Env Services
Blackpool Council,1018184,Blackpool Skip Hire Ltd,609271,040562,02/09/2022,396,66,SCHEME,Highways Schemes,1012,Premises Maint-Priv.Contractor,Community & Env Services
Blackpool Council,1055665,Clive Hurt (Plant Hire) Ltd,609272,0000103860,05/09/2022,582,97,SCHEME,Highways Schemes,3041,Other Materials,Community & Env Services
Blackpool Council,1022781,Moore Readymix Ltd,609273,128715,02/09/2022,452.52,75.42,ENGINE,Engineering,3041,Other Materials,Community & Env Services
Blackpool Council,1048810,The King'S Fund,609278,SIN-017574,02/09/2022,900,150,LEISUR,Leisure Management,0915,Conferences,Community & Env Services
Blackpool Council,1007228,Origin Amenity Solutions Ltd T/A Rigby Taylor,609279,OASI0030663,23/09/2022,4134,0,ZM0018,Highways & Engineering,9773,Orders Received Not Invoiced,Blackpool Services
Blackpool Council,1007228,Origin Amenity Solutions Ltd T/A Rigby Taylor,609279,OASI0030663,23/09/2022,4960.8,826.8,ZM0018,Highways & Engineering,9511A,Stocks Efin,Blackpool Services
Blackpool Council,1011952,Empowerment,609280,2129,05/09/2022,6000,0,EP8012,Homes For Ukraine,3801,Other Expenses,Children'S Services
Blackpool Council,1103450,Blackpool Entertainment Company Limited,609281,INV006311,12/09/2022,3240,540,EP8012,Homes For Ukraine,3801,Other Expenses,Children'S Services
Blackpool Council,1117945,Valtech Limited,609283,UKSI17498,29/09/2022,581.81,96.97,FC1404,Blue Badge Reform,3401,General Services,Resources
Blackpool Council,1042797,Lux Occ Medical Ltd,609284,BBC/345,06/09/2022,2000,0,FK0013,Corporate Health,0992,Medical Fees (Employee),Chief Executive
Blackpool Council,1117713,Allied Publicity Services (Manchester) Ltd,609286,C69129,29/09/2022,1170.88,195.15,FC1404,Blue Badge Reform,3401,General Services,Resources
Blackpool Council,1025240,Key Engineering Supplies Ltd,609287,53044,30/09/2022,520.32,86.72,ZM0018,Highways & Engineering,9511A,Stocks Efin,Blackpool Services
Blackpool Council,1025240,Key Engineering Supplies Ltd,609290,53043,30/09/2022,268.2,44.7,ZM0018,Highways & Engineering,9511A,Stocks Efin,Blackpool Services
Blackpool Council,1057663,Wilde Recruitment Ltd,609291,41486,23/09/2022,736.51,122.75,CTAHHA,Tramway Emergency Works,6501,Contract Payments,Capital - Commnctn & Regen
Blackpool Council,1028022,Prosolve,609292,0000401380,30/09/2022,438,0,ZM0018,Highways & Engineering,9773,Orders Received Not Invoiced,Blackpool Services
Blackpool Council,1028022,Prosolve,609292,0000401380,30/09/2022,525.6,87.6,ZM0018,Highways & Engineering,9511A,Stocks Efin,Blackpool Services
Blackpool Council,1088639,Browns Ctp Limited,609293,73810,30/09/2022,3905,0,PRG,Tourism General,3301,Printing,Places
Blackpool Council,1007008,Screwfix Direct Ltd,609299,1284459551,02/09/2022,322.48,0,ZM0018,Highways & Engineering,9773,Orders Received Not Invoiced,Blackpool Services
Blackpool Council,1007008,Screwfix Direct Ltd,609299,1284459551,02/09/2022,386.96,64.48,ZM0018,Highways & Engineering,9511A,Stocks Efin,Blackpool Services
Blackpool Council,1058510,Lifeline Language Services Ltd,609305,0522001,09/09/2022,324,54,JEA,Senior Management,5507,Personal,Children'S Services
Blackpool Council,1058510,Lifeline Language Services Ltd,609306,0522007,15/09/2022,357.6,59.6,JEA,Senior Management,5507,Personal,Children'S Services
Blackpool Council,1114704,Morson Human Resources Ltd,609307,HS442077,07/09/2022,2310,385,CTAHHI,Tramway Extention,6506,Consultants Fees,Capital - Commnctn & Regen
Blackpool Council,1058510,Lifeline Language Services Ltd,609308,0522008,22/09/2022,357.6,59.6,JEA,Senior Management,5507,Personal,Children'S Services
Blackpool Council,1131096,Abl Planning And Development Ltd,609351,2000807/215,21/09/2022,2766.2,0,PLBAAA,Development Control,4515,Contract Services,Places
Blackpool Council,1135117,Edge Training And Consultancy Ltd,609355,8441,30/09/2022,1050,175,LM0420,Adults Training,3426,Course Fees,Adult & Families
Blackpool Council,1028228,Danfo (Uk) Ltd,609356,0000006554,02/09/2022,51204.83,8534.14,PUBCON,Public Conveniences,4501,Private Contractors,Community & Env Services
Blackpool Council,1010311,Boc Limited,609360,3069600829,14/09/2022,544.96,90.83,LEISUR,Leisure Management,3060,Chemicals,Community & Env Services
Blackpool Council,1006940,Smiths Equipment Hire Ltd - Smiths Training,609361,12-1080206,28/09/2022,864,144,PJAA,"Erection, Operation & Dismantl",3006,Hire Of Equipment,Places
Blackpool Council,1006940,Smiths Equipment Hire Ltd - Smiths Training,609362,07-1080202,28/09/2022,1544.4,257.4,PJAA,"Erection, Operation & Dismantl",3006,Hire Of Equipment,Places
Blackpool Council,1006940,Smiths Equipment Hire Ltd - Smiths Training,609363,07-1080203,23/09/2022,2815.2,469.2,PJAA,"Erection, Operation & Dismantl",3006,Hire Of Equipment,Places
Blackpool Council,1006940,Smiths Equipment Hire Ltd - Smiths Training,609364,07-1080204,14/09/2022,618,103,PJAA,"Erection, Operation & Dismantl",3006,Hire Of Equipment,Places
Blackpool Council,1006940,Smiths Equipment Hire Ltd - Smiths Training,609365,12-1080207,23/09/2022,9374.4,547.4,PJAA,"Erection, Operation & Dismantl",3006,Hire Of Equipment,Places
Blackpool Council,1006940,Smiths Equipment Hire Ltd - Smiths Training,609367,12-1080209,23/09/2022,331.2,55.2,PJHA,"Depot, Management & Admin",3801,Other Expenses,Places
Blackpool Council,1131037,Technology One (Uk) Limited,609368,U005096,23/09/2022,3690,615,CGRESO,Resources Schemes,6526,I.T. Software Purchase,Capital - Resources
Blackpool Council,1016414,The Copyright Licensing Agency Ltd,609373,1025160,08/09/2022,296.5,49.42,ALEARN,Adult Learning,2008,Running Costs-Licences,Places
Blackpool Council,1026738,Cassidy + Ashton,609376,19565,30/09/2022,2814,469,FMAK,Acquisitions 9/10,3801,Other Expenses,Places
Blackpool Council,1100156,Centre For Civil Society Ltd,609377,INV-123131,12/09/2022,576,96,FK1006,Head Of Workforce & Org Dev,3711,Subscriptions,Chief Executive
Blackpool Council,1131154,Focus Consultants 2010 Llp,609379,012650,28/09/2022,3123.6,520.6,CGTACA,Museum,6503,Capital Salaries (Pro Advance),Capital - Commnctn & Regen
Blackpool Council,1053453,Brenntag Uk Ltd,609381,32SI 3347802,15/09/2022,618.97,103.16,LEISUR,Leisure Management,3060,Chemicals,Community & Env Services
Blackpool Council,1036991,Wec Group Ltd,609388,SIN182509,30/09/2022,55320,9220,PJNA,New Features / Schemes - C & E,3041,Other Materials,Places
Blackpool Council,1036991,Wec Group Ltd,609389,SIN182510,30/09/2022,15186,2531,PJNA,New Features / Schemes - C & E,3041,Other Materials,Places
Blackpool Council,1036991,Wec Group Ltd,609390,SIN182511,30/09/2022,21547.2,3591.2,PJLA,Maintenance,3041,Other Materials,Places
Blackpool Council,1121728,Arrow County Supplies,609393,4965558,30/09/2022,254.16,42.36,ZM0018,Highways & Engineering,9511A,Stocks Efin,Blackpool Services
Blackpool Council,1121728,Arrow County Supplies,609394,4965561,30/09/2022,925.2,0,ZM0018,Highways & Engineering,9773,Orders Received Not Invoiced,Blackpool Services
Blackpool Council,1121728,Arrow County Supplies,609394,4965561,30/09/2022,1364.4,227.4,ZM0018,Highways & Engineering,9511A,Stocks Efin,Blackpool Services
Blackpool Council,1059023,Arcadis Consulting (Uk) Limited,609395,14161201,12/09/2022,7199.19,1199.87,PLAAAA,Dev Plang (Incl Plang Policy),0981,Professional Fees,Places
Blackpool Council,1063803,Global Media Group Services Ltd,609397,C-INV140049,28/09/2022,1800,300,PBF,Communications,3315,Marketing,Places
Blackpool Council,1113651,Vmr Training Ltd,609403,5957,05/09/2022,816,136,SCHEME,Highways Schemes,1012,Premises Maint-Priv.Contractor,Community & Env Services
Blackpool Council,1090661,Genecon Limited,609405,2,30/09/2022,10800,1800,HJA,Growth,3413,Consultants,Places
Blackpool Council,1090661,Genecon Limited,609406,3,30/09/2022,36565.44,6094.24,HJA,Growth,3413,Consultants,Places
Blackpool Council,1135714,Oh Sourcing Ltd,609407,3682,30/09/2022,846,141,FK0013,Corporate Health,0791,Temp/Relief (Bureau Staff),Chief Executive
Blackpool Council,1011806,A D J Doors Ltd T/A Keman Roller Shutters,609410,9393,13/09/2022,654,109,PJHA,"Depot, Management & Admin",1012,Premises Maint-Priv.Contractor,Places
Blackpool Council,1019287,Citizens Advice Blackpool,609412,222321,07/09/2022,5600,0,EP8012,Homes For Ukraine,3801,Other Expenses,Children'S Services
Blackpool Council,1136392,Kodiak Medical Limited,609413,INV-0078,08/09/2022,3300,0,PRB,Events,3401,General Services,Places
Blackpool Council,1087953,Blackpool Local Education Partnership Ltd,609414,PBSIP000019,05/09/2022,683498.15,113916.36,CFCAAA,Cbd Phase 3,6501,Contract Payments,Capital - Commnctn & Regen
Blackpool Council,1087953,Blackpool Local Education Partnership Ltd,609414,PBSIP000019,05/09/2022,17615.93,0,ZF0001,"Insurance,Dso,Banking",97B6,Retention Monies - Cap Trsfr,Total Reconciliations
Blackpool Council,1006099,Blackpool Teaching Hospitals Nhs Ft,609416,1110062026,05/09/2022,5626.03,0,BSTPRJ,Better Start Projects,3313,General Expenses,Better Start Projects
Blackpool Council,1110786,Evolution Internet Ltd,609417,INV-29399,30/09/2022,264.49,44.08,MNGMT,Central Management,3711,Subscriptions,Children'S Services
Blackpool Council,1089812,Rider Levett Bucknall Uk Limited,609418,RLB-PJI-003197,30/09/2022,1260,210,FH1000,Business Loan Overheads,3413,Consultants,Budgets Outside Cash Limits
Blackpool Council,1006255,Waterstones,609419,2080100014,13/09/2022,294.82,0,MNGMT,Central Management,3304,Books And Periodicals,Children'S Services
Blackpool Council,1053894,Libraries Connected,609420,2557,09/09/2022,2143.59,0,LBF,Library Management,3711,Subscriptions,Places
Blackpool Council,1132845,Susan Hayward Consulting,609477,009/BC,30/09/2022,4275,0,MNGMT,Central Management,3413,Consultants,Children'S Services
Blackpool Council,1134959,Trebbi Continuum Ltd,609482,13021-01,30/09/2022,3600,600,PLBAAA,Development Control,0981,Professional Fees,Places
Blackpool Council,1009050,Harry B Litherland & Co Ltd,609483,725467,09/09/2022,427.2,71.2,PJLA,Maintenance,3041,Other Materials,Places
Blackpool Council,1023161,Suez Recycling And Recovery Uk Ltd,609484,80301050,29/09/2022,72163.42,12027.24,DOMPFI,Domestic Waste & Waste Pfi,4501,Private Contractors,Community & Env Services
Blackpool Council,1006633,Technology Services Ltd T/A The Lock Shop,609492,33968,09/09/2022,310.8,51.8,PJLA,Maintenance,3041,Other Materials,Places
Blackpool Council,1094424,The Networking People,609493,SI111783,30/09/2022,711.6,118.6,PJAA,"Erection, Operation & Dismantl",4501,Private Contractors,Places
Blackpool Council,1094424,The Networking People,609494,SI111785,30/09/2022,3913.8,652.3,PJNA,New Features / Schemes - C & E,3041,Other Materials,Places
Blackpool Council,1134418,REDACTED PERSONAL INFO,609495,000023,06/09/2022,1271,0,PJNA,New Features / Schemes - C & E,3308,Servicing,Places
Blackpool Council,1006940,Smiths Equipment Hire Ltd - Smiths Training,609496,07-1080205,09/09/2022,918,153,PJAA,"Erection, Operation & Dismantl",3006,Hire Of Equipment,Places
Blackpool Council,1066729,Equis Associates Limited,609498,12-92-PG-BC,14/09/2022,17400,2900,CTAHHI,Tramway Extention,6506,Consultants Fees,Capital - Commnctn & Regen
Blackpool Council,1126236,New Concept Security Ltd,609499,162487,13/09/2022,22590.9,3765.15,SECURE,Security Services,3401,General Services,Community & Env Services
Blackpool Council,1126236,New Concept Security Ltd,609500,162493,13/09/2022,6237,1039.5,SECURE,Security Services,3401,General Services,Community & Env Services
Blackpool Council,1009927,City Electrical Factors Limited,609542,BLA/332187,27/09/2022,955.32,159.22,PJLA,Maintenance,3041,Other Materials,Places
Blackpool Council,1018711,Yorkshire Building Society,609548,00016360,06/09/2022,1725,0,PJAA,"Erection, Operation & Dismantl",3308,Servicing,Places
Blackpool Council,1006940,Smiths Equipment Hire Ltd - Smiths Training,609569,05-1081177,09/09/2022,426.14,71.02,ENGINE,Engineering,3041,Other Materials,Community & Env Services
Blackpool Council,1006143,Yorkshire Purchasing Organisation,609579,SI-2083196,20/09/2022,446.22,74.37,NA1371,Management,3030,Domestic Equipment - Purchase,Children'S Services
Blackpool Council,1082924,Dotdigital Emea Ltd,609580,DM1448446,14/09/2022,432,72,PBF,Communications,3315,Marketing,Places
Blackpool Council,1006143,Yorkshire Purchasing Organisation,609581,SI-2083197,20/09/2022,446.22,74.37,NA1371,Management,3030,Domestic Equipment - Purchase,Children'S Services
Blackpool Council,1002190,South Shore Cricket Club & Squash Club,609584,BC7,14/09/2022,2329.18,0,CGICAD,Enterprise Zone,6518,Miscellaneous - Capital,Capital - Commnctn & Regen
Blackpool Council,1135790,Aquacool Ltd,609587,265679,06/09/2022,377.46,62.91,BEACHP,Beach Patrol,2001,Purchases,Places
Blackpool Council,1110996,Philip Holmes T/A Dragon Creative,609588,102668,07/09/2022,3250,0,PJW,Management - Places - Illumina,3401,General Services,Places
Blackpool Council,1027465,Ove Arup & Partners Limited,609589,88-2207031,07/09/2022,9174.31,1529.05,FMAK,Acquisitions 9/10,2002,Repairs And Maintenance,Places
Blackpool Council,1111234,Cbre Ltd,609606,50BCD00088202,07/09/2022,11910,1985,CGICAF,G&P Prudential Schemes,6506,Consultants Fees,Capital - Commnctn & Regen
Blackpool Council,1100372,Scheidt & Bachmann Uk Ltd,609611,S&B-GB214904,30/09/2022,23725.63,3954.27,PAROPE,Parking Operational,2002,Repairs And Maintenance,Budgets Outside Cash Limits
Blackpool Council,1006944,Siemens Financial Services Ltd,609612,244/22/0232382,30/09/2022,1822.5,303.75,APFBAB,Vitaline,3711,Subscriptions,Adult & Families
Blackpool Council,1006944,Siemens Financial Services Ltd,609613,244/22/0232383,30/09/2022,2396.34,399.39,APFBAB,Vitaline,3711,Subscriptions,Adult & Families
Blackpool Council,1006944,Siemens Financial Services Ltd,609615,244/22/0229555,27/09/2022,657.26,109.54,APFBAB,Vitaline,3711,Subscriptions,Adult & Families
Blackpool Council,1006944,Siemens Financial Services Ltd,609616,244/22/0228964,26/09/2022,3731.41,621.9,APFBAB,Vitaline,3711,Subscriptions,Adult & Families
Blackpool Council,1006944,Siemens Financial Services Ltd,609617,244122/0231102,29/09/2022,1174.49,195.74,APFBAB,Vitaline,3711,Subscriptions,Adult & Families
Blackpool Council,1011675,Bambers Remedial Contractors Limited,609618,17818,12/09/2022,1728,288,CXAAA,Local Authority Dwellings,6501,Contract Payments,Capital - Chief Executive
Blackpool Council,1011675,Bambers Remedial Contractors Limited,609619,17819,12/09/2022,985,0,CXAAA,Local Authority Dwellings,6501,Contract Payments,Capital - Chief Executive
Blackpool Council,1006944,Siemens Financial Services Ltd,609620,244/22/0231101,29/09/2022,406.4,67.73,APFBAB,Vitaline,3711,Subscriptions,Adult & Families
Blackpool Council,1026811,Stannah Lift Services Ltd,609621,1085461593,22/09/2022,5395,0,CX4002,Disabled Facilities Grants,6501,Contract Payments,Capital - Adult Social Care
Blackpool Council,1006944,Siemens Financial Services Ltd,609622,244/22/0231100,29/09/2022,500.71,83.45,APFBAB,Vitaline,3711,Subscriptions,Adult & Families
Blackpool Council,1081205,The Excellent Ramp System Ltd,609625,4111,12/09/2022,2875,0,CXAAA,Local Authority Dwellings,6501,Contract Payments,Capital - Chief Executive
Blackpool Council,1011675,Bambers Remedial Contractors Limited,609626,17808,12/09/2022,3960,0,CX4002,Disabled Facilities Grants,6501,Contract Payments,Capital - Adult Social Care
Blackpool Council,1006099,Blackpool Teaching Hospitals Nhs Ft,609628,1110062206,06/09/2022,13705.2,2284.2,MNGMT,Central Management,0917,Other Exps,Children'S Services
Blackpool Council,1112303,Access-Able (Uk) Limited (Fac001),609629,5177,30/09/2022,3153,0,CX4002,Disabled Facilities Grants,6501,Contract Payments,Capital - Adult Social Care
Blackpool Council,1026811,Stannah Lift Services Ltd,609630,1085461592,22/09/2022,1353,0,CX4002,Disabled Facilities Grants,6501,Contract Payments,Capital - Adult Social Care
Blackpool Council,1011675,Bambers Remedial Contractors Limited,609631,17817,12/09/2022,4752,792,CXAAA,Local Authority Dwellings,6501,Contract Payments,Capital - Chief Executive
Blackpool Council,1026811,Stannah Lift Services Ltd,609632,1085460653,21/09/2022,4894,0,CX4002,Disabled Facilities Grants,6501,Contract Payments,Capital - Adult Social Care
Blackpool Council,1112303,Access-Able (Uk) Limited (Fac001),609633,5161,29/09/2022,7675,0,CX4002,Disabled Facilities Grants,6501,Contract Payments,Capital - Adult Social Care
Blackpool Council,1118699,Enveco Blackpool Waste Services Ltd,609649,30174014,06/09/2022,660000,110000,SCLEAN,Street Cleaning,4501,Private Contractors,Community & Env Services
Blackpool Council,1076614,Blackpool Stanley Rugby League Club,609650,00104,07/09/2022,15000,0,PESPRT,Pe And Sport Team,4501,Private Contractors,Community & Env Services
Blackpool Council,1118699,Enveco Blackpool Waste Services Ltd,609651,30174013,07/09/2022,323458.8,53909.8,DOMPFI,Domestic Waste & Waste Pfi,4501,Private Contractors,Community & Env Services
Blackpool Council,1130307,Cool Milk At School Ltd,609653,CMS0433649,08/09/2022,30063.61,0,SCHBRK,Free School Breakfasts,3107,Milk For Drinking,Community & Env Services
Blackpool Council,1066498,Bnp Paribas Leasing Solutions Limited,609654,FLLB2279070,07/09/2022,643.55,107.26,CATERG,Catering Services,3006,Hire Of Equipment,Community & Env Services
Blackpool Council,1006292,Vodafone Corporate Ltd,609655,102121463,13/09/2022,61544.11,10257.35,FGAA,Ict Corporate Services,3523,Mobile Phones - Line Rental,Resources
Blackpool Council,1118699,Enveco Blackpool Waste Services Ltd,609658,30172639,08/09/2022,1446.91,241.15,CATERG,Catering Services,2002,Repairs And Maintenance,Community & Env Services
Blackpool Council,1134894,Walling Limited,609660,100537,20/09/2022,279.84,46.65,CATERG,Catering Services,3101,Provisions,Community & Env Services
Blackpool Council,1134894,Walling Limited,609662,100935,20/09/2022,307.11,51.19,CATERG,Catering Services,3101,Provisions,Community & Env Services
Blackpool Council,1035853,Norcash Ltd,609670,6662,08/09/2022,648,108,CATERG,Catering Services,3711,Subscriptions,Community & Env Services
Blackpool Council,1090874,Advanced Health And Care Limited,609671,ARMIN/00020460,30/09/2022,672,112,APDBAB,Homecare,2201,Contract Hire,Adult & Families
Blackpool Council,1111234,Cbre Ltd,609673,50PJM00002505,30/09/2022,11754,1959,HJA,Growth,3413,Consultants,Places
Blackpool Council,1105875,Ballzone Limited C.I.C.,609674,BZED 2122044,13/09/2022,2150,0,PESPRT,Pe And Sport Team,0911,Training Expenses,Community & Env Services
Blackpool Council,1087234,Aitch Tools & Fasteners Ltd,609677,062332,07/09/2022,841.68,0,ZM0018,Highways & Engineering,9773,Orders Received Not Invoiced,Blackpool Services
Blackpool Council,1087234,Aitch Tools & Fasteners Ltd,609677,062332,07/09/2022,1010.02,168.34,ZM0018,Highways & Engineering,9511A,Stocks Efin,Blackpool Services
Blackpool Council,1087234,Aitch Tools & Fasteners Ltd,609678,062324,07/09/2022,284.99,0,ZM0018,Highways & Engineering,9773,Orders Received Not Invoiced,Blackpool Services
Blackpool Council,1087234,Aitch Tools & Fasteners Ltd,609678,062324,07/09/2022,341.99,57,ZM0018,Highways & Engineering,9511A,Stocks Efin,Blackpool Services
Blackpool Council,1020550,Hays Specialist Recruitment Ltd,609679,1012415113,08/09/2022,2025.53,337.59,HJA,Growth,0791,Temp/Relief (Bureau Staff),Places
Blackpool Council,1020550,Hays Specialist Recruitment Ltd,609680,1012416935,08/09/2022,1035,172.5,HJA,Growth,0791,Temp/Relief (Bureau Staff),Places
Blackpool Council,1087234,Aitch Tools & Fasteners Ltd,609681,062762,07/09/2022,410.5,0,ZM0018,Highways & Engineering,9773,Orders Received Not Invoiced,Blackpool Services
Blackpool Council,1087234,Aitch Tools & Fasteners Ltd,609681,062762,07/09/2022,492.6,82.1,ZM0018,Highways & Engineering,9511A,Stocks Efin,Blackpool Services
Blackpool Council,1128784,Fresh Start Waste Services,609682,OUT-397022,09/09/2022,375.09,62.49,CGICAF,G&P Prudential Schemes,6518,Miscellaneous - Capital,Capital - Commnctn & Regen
Blackpool Council,1128784,Fresh Start Waste Services,609683,OUT-402824,07/09/2022,309.12,51.52,CGICAF,G&P Prudential Schemes,6518,Miscellaneous - Capital,Capital - Commnctn & Regen
Blackpool Council,1128784,Fresh Start Waste Services,609684,OUT-423369,09/09/2022,396.92,66.14,CGICAF,G&P Prudential Schemes,6518,Miscellaneous - Capital,Capital - Commnctn & Regen
Blackpool Council,1128784,Fresh Start Waste Services,609686,OUT-331912,12/09/2022,3247.99,541.35,HJA,Growth,1605,Waste Collection Chgs,Places
Blackpool Council,1103450,Blackpool Entertainment Company Limited,609688,INV006148,12/09/2022,300,50,PESPRT,Pe And Sport Team,0I91,Other,Community & Env Services
Blackpool Council,1010069,Caterware Ltd,609721,767,08/09/2022,749.7,124.95,CATERG,Catering Services,3050,Kitchen (Heavy) Equip-Purchase,Community & Env Services
Blackpool Council,1010069,Caterware Ltd,609722,812,09/09/2022,412.46,68.74,CATERG,Catering Services,3052,Kitchen (Light) Equip-Purchase,Community & Env Services
Blackpool Council,1016961,Elygra Limited,609724,15746,08/09/2022,2088,348,CATERG,Catering Services,3315,Marketing,Community & Env Services
Blackpool Council,1016961,Elygra Limited,609725,15747,08/09/2022,2485.2,414.2,CATERG,Catering Services,3315,Marketing,Community & Env Services
Blackpool Council,1016961,Elygra Limited,609726,15772,08/09/2022,2310,385,CATERG,Catering Services,3101,Provisions,Community & Env Services
Blackpool Council,1113022,Crookes Climbing Ltd T/A Climbing Wall Servs,609734,SI-2170,09/09/2022,867.6,144.6,LEISUR,Leisure Management,2002,Repairs And Maintenance,Community & Env Services
Blackpool Council,1090795,Aunty Social,609737,AS22-06,15/09/2022,550.8,0,EP8011,Covid Winter Grant,5101,Transfer Payments - General,Children'S Services
Blackpool Council,1132978,Cornerstone Design And Marketing Limited,609740,11430,23/09/2022,926.64,154.44,LEISUR,Leisure Management,3315,Marketing,Community & Env Services
Blackpool Council,1095113,Pearce Clinical Psychology Services Ltd,609742,955,30/09/2022,3300,0,FK0013,Corporate Health,0992,Medical Fees (Employee),Chief Executive
Blackpool Council,1110132,Health Assured Ltd,609746,SF-125782,30/09/2022,3170.7,528.45,FK0013,Corporate Health,0992,Medical Fees (Employee),Chief Executive
Blackpool Council,1016414,The Copyright Licensing Agency Ltd,609750,1026272,08/09/2022,16535.38,2755.9,FCADA,Customer Services,3401,General Services,Resources
Blackpool Council,1009513,Electro-Wind Ltd,609751,192223,30/09/2022,3780,630,PJLA,Maintenance,3041,Other Materials,Places
Blackpool Council,1082146,Ascentis,609752,81759,08/09/2022,504,0,ALEARN,Adult Learning,3404,Exam Fees & Exps (Sch),Places
Blackpool Council,1111394,REDACTED PERSONAL INFO,609753,001,12/09/2022,758,0,LEISUR,Leisure Management,0917,Other Exps,Community & Env Services
Blackpool Council,1007206,Road Safety Services Ltd,609754,91176,08/09/2022,674.4,112.4,PRB,Events,3006,Hire Of Equipment,Places
Blackpool Council,1007206,Road Safety Services Ltd,609755,91177,08/09/2022,804,134,PRB,Events,3006,Hire Of Equipment,Places
Blackpool Council,1007206,Road Safety Services Ltd,609756,91178,08/09/2022,342,57,PRB,Events,3006,Hire Of Equipment,Places
Blackpool Council,1007206,Road Safety Services Ltd,609757,91179,08/09/2022,650.4,108.4,PRB,Events,3006,Hire Of Equipment,Places
Blackpool Council,1133597,Russells Plumbers & Heating Engineers Ltd,609758,INV-1660-6579-48993,08/09/2022,771.6,128.6,PRB,Events,3401,General Services,Places
Blackpool Council,1063638,Pristine Hygiene,609759,4972,08/09/2022,383.1,63.85,APCBAA,Coopers Way,3408,Services To Clients,Adult & Families
Blackpool Council,1114726,The Magic Club,609760,310822,09/09/2022,12287,0,PU2064,Holiday Activities & Food(Haf),4501,Private Contractors,Public Health
Blackpool Council,1114337,The Bikeability,609761,1011,23/09/2022,1333,222.16,LEISUR,Leisure Management,0917,Other Exps,Community & Env Services
Blackpool Council,1079028,Institute Of Swimming Ltd,609762,IOSINV029783,30/09/2022,350,0,LEISUR,Leisure Management,0911,Training Expenses,Community & Env Services
Blackpool Council,1014688,F.R. Sharrock Ltd,609763,108627,21/09/2022,267.41,44.57,PRKDEV,Parks Development,3012,Other Equipment,Community & Env Services
Blackpool Council,1007206,Road Safety Services Ltd,609766,91198,12/09/2022,929.89,154.98,ENGINE,Engineering,1012,Premises Maint-Priv.Contractor,Community & Env Services
Blackpool Council,1007206,Road Safety Services Ltd,609767,91314,20/09/2022,16434,2739,PRB,Events,3006,Hire Of Equipment,Places
Blackpool Council,1007058,Scanlite Visual Communications Ltd,609769,218858,08/09/2022,3840,640,PRB,Events,3006,Hire Of Equipment,Places
Blackpool Council,1038738,Layton Primary School,609770,SINV11,08/09/2022,4110,0,EP8011,Covid Winter Grant,3701,Grants,Children'S Services
Blackpool Council,1021388,St Georges C Of E Academy,609771,0000000510,08/09/2022,22185,0,EP8011,Covid Winter Grant,3701,Grants,Children'S Services
Blackpool Council,1058510,Lifeline Language Services Ltd,609773,0522087,30/09/2022,363.6,60.6,JEA,Senior Management,5507,Personal,Children'S Services
Blackpool Council,1058510,Lifeline Language Services Ltd,609775,0522017,23/09/2022,324,54,JEA,Senior Management,5507,Personal,Children'S Services
Blackpool Council,1058510,Lifeline Language Services Ltd,609777,0522078,22/09/2022,270,45,JEA,Senior Management,5507,Personal,Children'S Services
Blackpool Council,1094424,The Networking People,609778,SI111782,30/09/2022,3558,593,BLMTCE,Building Maintenence,3531,Computer-H'Ware Purchase,Resources
Blackpool Council,1082240,E-On Uk Sustainable Energy Services Ltd,609779,035217,08/09/2022,2827.96,471.33,ENGINE,Engineering,1012,Premises Maint-Priv.Contractor,Community & Env Services
Blackpool Council,1057663,Wilde Recruitment Ltd,609783,41538,30/09/2022,552.38,92.06,CTAHHA,Tramway Emergency Works,6501,Contract Payments,Capital - Commnctn & Regen
Blackpool Council,1010353,Blackpool Football Club Ltd,609784,INV-1767,08/09/2022,72000,12000,PPA,Head Of Tourism Services,3816,Sponsorship,Places
Blackpool Council,1119761,Janet Carroll,609785,05/AUG22/TAS036,08/09/2022,4000,0,OPAREA,Opportunity Areas,3413,Consultants,Places
Blackpool Council,1011896,Capita Business Services Ltd,609786,6004121810,08/09/2022,4810.32,801.72,FBBEA,"Income, Recovery & Debtors",3533,Computer S/W Purchases,Resources
Blackpool Council,1102016,Critiqom Limited,609788,079311,08/09/2022,4423.91,737.32,FBBEA,"Income, Recovery & Debtors",3301,Printing,Resources
Blackpool Council,1102016,Critiqom Limited,609789,079312,08/09/2022,11632.54,1938.76,FBBEA,"Income, Recovery & Debtors",3511,Postages,Resources
Blackpool Council,1006940,Smiths Equipment Hire Ltd - Smiths Training,609793,01-1078141,08/09/2022,288,0,ZM0018,Highways & Engineering,9773,Orders Received Not Invoiced,Blackpool Services
Blackpool Council,1006940,Smiths Equipment Hire Ltd - Smiths Training,609793,01-1078141,08/09/2022,345.6,57.6,ZM0018,Highways & Engineering,9511A,Stocks Efin,Blackpool Services
Blackpool Council,1012272,National World Publishing,609796,628871,08/09/2022,708,118,PRL,Marketing,3315,Marketing,Places
Blackpool Council,1102943,Titanium Fireworks Ltd,609800,2467,12/09/2022,46800,7800,PRB,Events,3401,General Services,Places
Blackpool Council,1102943,Titanium Fireworks Ltd,609801,2468,13/09/2022,6000,1000,PRB,Events,3401,General Services,Places
Blackpool Council,1010069,Caterware Ltd,609802,INV002261,08/09/2022,303,50.5,CATERG,Catering Services,3051,Kitchen (Heavy) Equip-Repair,Community & Env Services
Blackpool Council,1016961,Elygra Limited,609803,15806,21/09/2022,1260,210,CATERG,Catering Services,3817,Artwork,Community & Env Services
Blackpool Council,1076636,Chicken Joes Ltd,609807,760592,20/09/2022,455.58,0,CATERG,Catering Services,3101,Provisions,Community & Env Services
Blackpool Council,1076636,Chicken Joes Ltd,609810,769120,23/09/2022,613.08,0,CATERG,Catering Services,3101,Provisions,Community & Env Services
Blackpool Council,1076636,Chicken Joes Ltd,609811,769372,29/09/2022,418.66,0,CATERG,Catering Services,3101,Provisions,Community & Env Services
Blackpool Council,1076636,Chicken Joes Ltd,609812,770159,30/09/2022,528.54,0,CATERG,Catering Services,3101,Provisions,Community & Env Services
Blackpool Council,1076636,Chicken Joes Ltd,609814,770165,30/09/2022,408.48,0,CATERG,Catering Services,3101,Provisions,Community & Env Services
Blackpool Council,1076636,Chicken Joes Ltd,609815,770168,30/09/2022,672.81,0,CATERG,Catering Services,3101,Provisions,Community & Env Services
Blackpool Council,1093145,On A Roll Sandwich Company,609817,247293,08/09/2022,631.49,0,CATERG,Catering Services,3101,Provisions,Community & Env Services
Blackpool Council,1093145,On A Roll Sandwich Company,609818,247330,08/09/2022,703.7,0,CATERG,Catering Services,3101,Provisions,Community & Env Services
Blackpool Council,1120827,Engage Esm Ltd,609821,5337007142,22/09/2022,2064.24,344.04,FGAC,Ict Technical Support,3532,Comp-Running & License Costs,Resources
Blackpool Council,1039408,Pay360 Ltd,609822,6095278907,14/09/2022,563.6,93.93,ZX0501,"Tourism,Promotions & Conferen.",9687,Tourism Sale Of Tickets,Place Directorate
Blackpool Council,1051417,North West Power Washer Ltd,609835,14758,30/09/2022,784.06,130.68,LEISUR,Leisure Management,3031,Cleaning Equipment - Purchase,Community & Env Services
Blackpool Council,1006099,Blackpool Teaching Hospitals Nhs Ft,609837,1110062211,08/09/2022,8910,1485,PUBH24,Children'S Public Health,4501,Private Contractors,Public Health
Blackpool Council,1006099,Blackpool Teaching Hospitals Nhs Ft,609874,1110062145,08/09/2022,27350,0,LIFEVE,Life Events Reg & Care,3801,Other Expenses,Governance & Partnerships
Blackpool Council,1102016,Critiqom Limited,609876,079313,08/09/2022,661.44,110.24,FBBEA,"Income, Recovery & Debtors",3301,Printing,Resources
Blackpool Council,1102016,Critiqom Limited,609877,079314,08/09/2022,4310.3,718.38,FBBEA,"Income, Recovery & Debtors",3511,Postages,Resources
Blackpool Council,1008871,Irrv Services,609878,051484,16/09/2022,564.75,0,FBBEA,"Income, Recovery & Debtors",3304,Books And Periodicals,Resources
Blackpool Council,1132962,Sysco Productions Ltd,609880,196572,15/09/2022,107850.97,17975.16,CGTACA,Museum,6517,Equipment,Capital - Commnctn & Regen
Blackpool Council,1082364,M2 Education,609883,PIN-51635,08/09/2022,516,86,VIRTUL,Virtual Hub,3013,Educational Equip-Consumables,Children'S Services
Blackpool Council,1011730,Metric Group Limited,609884,C64099,30/09/2022,15181.63,2530.27,PARADM,Parking Administration,2002,Repairs And Maintenance,Budgets Outside Cash Limits
Blackpool Council,1129563,Marwood Electrical Company Ltd,609885,304621,08/09/2022,4898.4,816.4,PJRA,Electrical Infra - Places,1012,Premises Maint-Priv.Contractor,Places
Blackpool Council,1006292,Vodafone Corporate Ltd,609892,RM81268,08/09/2022,492.99,82.16,FGAA,Ict Corporate Services,3531,Computer-H'Ware Purchase,Resources
Blackpool Council,1006292,Vodafone Corporate Ltd,609893,RN31711,15/09/2022,374.4,62.4,FGAA,Ict Corporate Services,3531,Computer-H'Ware Purchase,Resources
Blackpool Council,1006292,Vodafone Corporate Ltd,609894,RN51342,20/09/2022,443.79,73.96,FGAA,Ict Corporate Services,3531,Computer-H'Ware Purchase,Resources
Blackpool Council,1118794,Awol Adventure Limited,609896,6191,08/09/2022,2400,400,BSTPRJ,Better Start Projects,3401,General Services,Better Start Projects
Blackpool Council,1118794,Awol Adventure Limited,609897,6190,08/09/2022,2400,400,BSTPRJ,Better Start Projects,3401,General Services,Better Start Projects
Blackpool Council,1118794,Awol Adventure Limited,609898,6196,08/09/2022,2400,400,BSTPRJ,Better Start Projects,3401,General Services,Better Start Projects
Blackpool Council,1020550,Hays Specialist Recruitment Ltd,609900,1012430945,14/09/2022,828,138,HJA,Growth,0791,Temp/Relief (Bureau Staff),Places
Blackpool Council,1091329,Pentagull Limited,609901,19420,08/09/2022,9600,1600,FGAA,Ict Corporate Services,3532,Comp-Running & License Costs,Resources
Blackpool Council,1049304,Insight Direct (Uk) Ltd,609903,2100341009,23/09/2022,1733.83,288.97,FGAA,Ict Corporate Services,3532,Comp-Running & License Costs,Resources
Blackpool Council,1077963,Electricity Northwest Ltd,609904,5500248593/A,08/09/2022,744.31,124.05,FB0004,Energy & Sustainability,1202,Electricity,Resources
Blackpool Council,1077963,Electricity Northwest Ltd,609905,5500194069/B,08/09/2022,3279.7,546.62,FB0004,Energy & Sustainability,1202,Electricity,Resources
Blackpool Council,1009417,Eriks Industrial Services Fna Wyko,609907,02064202,30/09/2022,1494.8,249.14,PJLA,Maintenance,3041,Other Materials,Places
Blackpool Council,1117705,Rhea Projects Ltd,609908,LAD2-0343,08/09/2022,49119.6,8186.6,LH2092,Lad 2 Funding,4501,Private Contractors,Public Health
Blackpool Council,1117705,Rhea Projects Ltd,609909,LAD2-0344,08/09/2022,14940,2490,LH2092,Lad 2 Funding,4501,Private Contractors,Public Health
Blackpool Council,1015228,Virgin Media Payments Limited,609911,806981-236,16/09/2022,347.98,58,FGAA,Ict Corporate Services,3521,Landline - Line Rental,Resources
Blackpool Council,1103450,Blackpool Entertainment Company Limited,609912,INV006351,16/09/2022,432,72,MNGMT,Central Management,1702,Hire Of Meeting Rooms,Children'S Services
Blackpool Council,1119935,Imperial Treasury Services Ltd,609913,2044,08/09/2022,8383.56,0,FH0001,Treasury Management,3401,General Services,Budgets Outside Cash Limits
Blackpool Council,1115803,Richard Barber & Company,609914,22-8006,12/09/2022,540,90,CGIBAA,Land Release Fund,6527,Marketing,Capital - Commnctn & Regen
Blackpool Council,1006099,Blackpool Teaching Hospitals Nhs Ft,609915,1110062008,08/09/2022,13705.2,2284.2,EDDIV,Education Diversity,3412,Therapeutic Work,Children'S Services
Blackpool Council,1034316,Bgc European Holdings Lp,609918,BGC-JUN-2022-00002689,08/09/2022,1484.93,0,FH0001,Treasury Management,3401,General Services,Budgets Outside Cash Limits
Blackpool Council,1010386,Montgomery Academy,609919,3000000197,16/09/2022,6135,0,CWAN,Children With Additional Needs,2301,Bus & Tram Fares,Children'S Services
Blackpool Council,1117705,Rhea Projects Ltd,609920,LAD2-0338,08/09/2022,42740.02,0,LH2092,Lad 2 Funding,4501,Private Contractors,Public Health
Blackpool Council,1117705,Rhea Projects Ltd,609921,LAD2-0336,08/09/2022,36075,0,LH2092,Lad 2 Funding,4501,Private Contractors,Public Health
Blackpool Council,1117705,Rhea Projects Ltd,609922,LAD2-0341,08/09/2022,1932,322,LH2092,Lad 2 Funding,4501,Private Contractors,Public Health
Blackpool Council,1117705,Rhea Projects Ltd,609923,LAD2-0337,08/09/2022,71505.63,0,LH2092,Lad 2 Funding,4501,Private Contractors,Public Health
Blackpool Council,1117705,Rhea Projects Ltd,609924,LAD2-0342,08/09/2022,938.4,156.4,LH2092,Lad 2 Funding,4501,Private Contractors,Public Health
Blackpool Council,1010619,Askews And Holts Library Services Ltd,609927,6743102,14/09/2022,434.33,0,LBB,Central Library,3304,Books And Periodicals,Places
Blackpool Council,1099512,Dga (Uk) Ltd,609932,SIN230163,14/09/2022,27456,4576,CGTBBB,Conference Centre,6506,Consultants Fees,Capital - Commnctn & Regen
Blackpool Council,1099512,Dga (Uk) Ltd,609933,SIN230162,14/09/2022,21873,3645.5,CP0511,Anchorsholme Seawall Scheme,6506,Consultants Fees,Capital - Comm & Environ
Blackpool Council,1007206,Road Safety Services Ltd,609935,90641,08/09/2022,704.02,117.34,PARADM,Parking Administration,4501,Private Contractors,Budgets Outside Cash Limits
Blackpool Council,1030119,Generation (Uk) Ltd,609936,H2698942,30/09/2022,3644.7,607.45,PJAA,"Erection, Operation & Dismantl",3006,Hire Of Equipment,Places
Blackpool Council,1120442,Poppy & Jacks Ltd T/A Happy Tots Nursery,609938,0000800971,08/09/2022,264,0,SBOARD,Springboard,4501,Private Contractors,Children'S Services
Blackpool Council,1109682,Entertainment Concepts Ltd,609940,371,16/09/2022,1080,180,PJAA,"Erection, Operation & Dismantl",3308,Servicing,Places
Blackpool Council,1120716,"Home-Start Blackpool, Fylde And Wyre",609948,137A,12/09/2022,18500,0,EP8012,Homes For Ukraine,3801,Other Expenses,Children'S Services
Blackpool Council,1040364,Conlon Construction Ltd,609950,11204,08/09/2022,184293.58,30715.6,CGTACA,Museum,6501,Contract Payments,Capital - Commnctn & Regen
Blackpool Council,1040364,Conlon Construction Ltd,609950,11204,08/09/2022,4749.83,0,ZF0001,"Insurance,Dso,Banking",97B6,Retention Monies - Cap Trsfr,Total Reconciliations
Blackpool Council,1010619,Askews And Holts Library Services Ltd,609954,6743103,14/09/2022,293.4,0,LBB,Central Library,3304,Books And Periodicals,Places
Blackpool Council,1077963,Electricity Northwest Ltd,610025,990111387,09/09/2022,1889.44,314.91,FB0004,Energy & Sustainability,1202,Electricity,Resources
Blackpool Council,1109913,Tough Furniture Ltd,610027,24891,20/09/2022,1218,203,MTEAJ,Equipment,5401,Aids To Daily Living,Adult & Families
Blackpool Council,1026811,Stannah Lift Services Ltd,610028,1085459283,20/09/2022,6979.2,1163.2,CXAAA,Local Authority Dwellings,6501,Contract Payments,Capital - Chief Executive
Blackpool Council,1136453,REDACTED PERSONAL INFO,610084,1,12/09/2022,1500,0,AHHBA,Blackpool Museum,3801,Other Expenses,Places
Blackpool Council,1010311,Boc Limited,610090,3069238817,12/09/2022,396.59,66.1,LEISUR,Leisure Management,0911,Training Expenses,Community & Env Services
Blackpool Council,1114704,Morson Human Resources Ltd,610091,HS443270,14/09/2022,1848,308,CTAHHI,Tramway Extention,6506,Consultants Fees,Capital - Commnctn & Regen
Blackpool Council,1063638,Pristine Hygiene,610093,4971,12/09/2022,383.1,63.85,APCBAA,Coopers Way,3408,Services To Clients,Adult & Families
Blackpool Council,1010619,Askews And Holts Library Services Ltd,610097,6743104,14/09/2022,320.72,0,LBB,Central Library,3304,Books And Periodicals,Places
Blackpool Council,1109377,Skills Recruitment Ltd,610099,SI-15938,16/09/2022,10080,0,EDDIV,Education Diversity,4101,Other Local Authorities,Children'S Services
Blackpool Council,1118699,Enveco Blackpool Waste Services Ltd,610100,30172645,12/09/2022,292.04,48.67,EDDIV,Education Diversity,3606,Incidental Expenses,Children'S Services
Blackpool Council,1005071,Blackpool Transport Services Limited,610102,I0004132,16/09/2022,8910,0,OTHL,Other Learning,2301,Bus & Tram Fares,Children'S Services
Blackpool Council,1134894,Walling Limited,610106,101143,20/09/2022,348.75,58.13,CATERG,Catering Services,3101,Provisions,Community & Env Services
Blackpool Council,1134894,Walling Limited,610109,101379,20/09/2022,332.42,55.41,CATERG,Catering Services,3101,Provisions,Community & Env Services
Blackpool Council,1010138,C Cabs,610115,07866,12/09/2022,2383.7,0,EDDIV,Education Diversity,2201,Contract Hire,Children'S Services
Blackpool Council,1010138,C Cabs,610116,08779,12/09/2022,2879.3,0,EDDIV,Education Diversity,2201,Contract Hire,Children'S Services
Blackpool Council,1013064,Tarmac Lafarge Trading Limited,610118,9045769651,21/09/2022,260.07,43.34,ENGINE,Engineering,3041,Other Materials,Community & Env Services
Blackpool Council,1013064,Tarmac Lafarge Trading Limited,610122,9045783178,23/09/2022,2060.86,343.47,ENGINE,Engineering,3041,Other Materials,Community & Env Services
Blackpool Council,1133179,First Aid Academy Ltd,610126,R25196,12/09/2022,1080,180,JA0505,Children'S Training,3426,Course Fees,Children'S Services
Blackpool Council,1118699,Enveco Blackpool Waste Services Ltd,610134,30172648,12/09/2022,1934.9,322.48,ENGINE,Engineering,1012,Premises Maint-Priv.Contractor,Community & Env Services
Blackpool Council,1118699,Enveco Blackpool Waste Services Ltd,610135,30172650,12/09/2022,19747.82,3291.3,ENGINE,Engineering,1012,Premises Maint-Priv.Contractor,Community & Env Services
Blackpool Council,1118699,Enveco Blackpool Waste Services Ltd,610136,30172661,12/09/2022,4804.18,800.7,ENGINE,Engineering,1012,Premises Maint-Priv.Contractor,Community & Env Services
Blackpool Council,1075026,Henco International Ltd,610140,12165,12/09/2022,12925.39,2154.23,AEB,Buildings,1301,Rent & Hire Of Premises,Resources
Blackpool Council,1119718,Street To Scale Community Interest Company,610141,STSBS007,12/09/2022,11705.86,0,BSTPRJ,Better Start Projects,3401,General Services,Better Start Projects
Blackpool Council,1121077,J & J Decorating Services Ltd,610145,0084,26/09/2022,300,50,PVA,Other External Funding,3313,General Expenses,Places
Blackpool Council,1040498,Savoy Timber Ltd,610147,135486,22/09/2022,276.77,46.13,PRKDEV,Parks Development,1062,Other Minor Repairs,Community & Env Services
Blackpool Council,1034222,Teleshore (Uk) Ltd,610148,36886,14/09/2022,3290.4,548.4,CEMCRE,Cems Crems Etc,3041,Other Materials,Governance & Partnerships
Blackpool Council,1136269,Playtime Wholesale Ltd,610149,10764,15/09/2022,345.6,57.6,PRC,Visitor Services,3808,Souvenirs & Gifts,Places
Blackpool Council,1105889,3d Environmental Limited,610162,BBC-0408,16/09/2022,330,55,PYEP,Environmental Protection,3313,General Expenses,Community & Env Services
Blackpool Council,1008423,Lancaster University,610164,8700848,21/09/2022,2640,0,JPA,Children Centres,3426,Course Fees,Children'S Services
Blackpool Council,1011970,A1 Streamline Road Markings Ltd,610175,7824,13/09/2022,600,100,TRA,Traffic Management,4501,Private Contractors,Community & Env Services
Blackpool Council,1011970,A1 Streamline Road Markings Ltd,610177,7929,22/09/2022,879.94,146.66,TRA,Traffic Management,4501,Private Contractors,Community & Env Services
Blackpool Council,1117705,Rhea Projects Ltd,610181,RP-1673,13/09/2022,11040,1840,LH2078,Energy Efficiency C1 Scheme,4501,Private Contractors,Public Health
Blackpool Council,1042797,Lux Occ Medical Ltd,610182,BBC/333,13/09/2022,2000,0,FK0013,Corporate Health,0992,Medical Fees (Employee),Chief Executive
Blackpool Council,1133927,Key Card Co (Sas) Ltd,610238,INV-0052,23/09/2022,325,0,LEISUR,Leisure Management,5557,Health Requirements,Community & Env Services
Blackpool Council,1066498,Bnp Paribas Leasing Solutions Limited,610239,FLGB2003153,13/09/2022,771.6,128.6,CATERG,Catering Services,3006,Hire Of Equipment,Community & Env Services
Blackpool Council,1066498,Bnp Paribas Leasing Solutions Limited,610240,FLLB2687988,15/09/2022,643.55,107.26,CATERG,Catering Services,3006,Hire Of Equipment,Community & Env Services
Blackpool Council,1016258,M J Teale Plant Hire Ltd,610242,001874,13/09/2022,1206,201,SCHEME,Highways Schemes,1012,Premises Maint-Priv.Contractor,Community & Env Services
Blackpool Council,1009079,Pearson Education Ltd,610248,IJVH33_VOC,13/09/2022,419.4,0,EDDIV,Education Diversity,3404,Exam Fees & Exps (Sch),Children'S Services
Blackpool Council,1128443,Andrea Howe,610253,AHBC016,13/09/2022,4320,0,LH2092,Lad 2 Funding,4501,Private Contractors,Public Health
Blackpool Council,1115477,REDACTED PERSONAL INFO,610254,0057,20/09/2022,360,0,AHG,Art Gallery Summary,3456,Payment To Artists,Places
Blackpool Council,1007487,Post Office Ltd,610256,200BLACKPOOL07092022,13/09/2022,10000,0,FC1802,Social Fund - Client,5209,Crisis/Emergency Support,Resources
Blackpool Council,1093421,Effective Pedagogy Solutions Cic,610257,TAB 0224,13/09/2022,5000,0,PESPRT,Pe And Sport Team,0I91,Other,Community & Env Services
Blackpool Council,1032438,Civica Election Services Ltd,610259,CES22_2450,13/09/2022,1889.45,314.91,BGA,Electoral Services,3401,General Services,Governance & Partnerships
Blackpool Council,1032438,Civica Election Services Ltd,610260,CES22_2256,13/09/2022,701.31,116.89,BGA,Electoral Services,3511,Postages,Governance & Partnerships
Blackpool Council,1010138,C Cabs,610261,09129,13/09/2022,582.1,0,NA1371,Management,2251,Ad Hoc Taxi Use,Children'S Services
Blackpool Council,1116762,Dt Electrical (Uk) Ltd,610268,IN2913,22/09/2022,9482.62,1580.43,PJLA,Maintenance,1012,Premises Maint-Priv.Contractor,Places
Blackpool Council,1037034,REDACTED PERSONAL DATA,610269,1,13/09/2022,300,0,AHHBA,Blackpool Museum,3801,Other Expenses,Places
Blackpool Council,1040364,Conlon Construction Ltd,610271,11199,13/09/2022,374002.13,62333.69,CGICAD,Enterprise Zone,6501,Contract Payments,Capital - Commnctn & Regen
Blackpool Council,1040364,Conlon Construction Ltd,610271,11199,13/09/2022,16403.6,0,ZF0001,"Insurance,Dso,Banking",97B6,Retention Monies - Cap Trsfr,Total Reconciliations
Blackpool Council,1114634,Waterscan Limited,610272,SI003278,15/09/2022,2499.6,416.6,FB0004,Energy & Sustainability,1401,Water Charges-Metered,Resources
Blackpool Council,1116727,Salutem Ld Bidco Iv Limited T/A Ambito,610287,0000135591,21/09/2022,4725.35,0,CWAN,Children With Additional Needs,4501,Private Contractors,Children'S Services
Blackpool Council,1008525,Kingswood Office Supplies Limited,610289,440293,16/09/2022,769.44,128.24,AER,Dual Use Properties,3302,Stationery,Resources
Blackpool Council,1115437,Haywood Rope Access Ltd,610295,IN:248BCC,21/09/2022,19080,3180,FMAK,Acquisitions 9/10,3801,Other Expenses,Places
Blackpool Council,1116610,Smart Video & Sensing Limited,610298,101454,22/09/2022,5611.2,935.2,TRA,Traffic Management,4501,Private Contractors,Community & Env Services
Blackpool Council,1071702,Links Signs & Graphics Ltd,610299,LSGI33992,14/09/2022,588,98,PVA,Other External Funding,3313,General Expenses,Places
Blackpool Council,1053592,Tfs Training Consultants Ltd,610307,477,22/09/2022,660,110,FK0071,Corporate Training,3426,Course Fees,Chief Executive
Blackpool Council,1103450,Blackpool Entertainment Company Limited,610310,INV006348,16/09/2022,1040,173.33,FMAK,Acquisitions 9/10,1301,Rent & Hire Of Premises,Places
Blackpool Council,1116831,Ocean Boulevard Iii Ltd T/A Boulevard Hotel,610311,1906,14/09/2022,5040,840,PRB,Events,1704,Bed & Breakfast Accomm.,Places
Blackpool Council,1130837,Macdonald & Company Freelance Ltd,610317,SI-00026057,14/09/2022,2079,346.5,AEE,Estates,0981,Professional Fees,Resources
Blackpool Council,1103450,Blackpool Entertainment Company Limited,610320,INV006307,14/09/2022,1040,173.33,FMAK,Acquisitions 9/10,1301,Rent & Hire Of Premises,Places
Blackpool Council,1025318,Salford City Council,610321,506023787,14/09/2022,12000,2000,CORDEV,Corporate Delivery Unit,3801,Other Expenses,Chief Executive
Blackpool Council,1087549,Merlin Entertainments (Blackpool) Ltd,610324,INV13026-00007551,14/09/2022,68634,11439,CGTAAA,Leisure Assets,6501,Contract Payments,Capital - Commnctn & Regen
Blackpool Council,1094424,The Networking People,610326,SI111791,30/09/2022,1423.2,237.2,CGRESO,Resources Schemes,6507,Materials,Capital - Resources
Blackpool Council,1094424,The Networking People,610327,SI111797,30/09/2022,2490.6,415.1,CGRESO,Resources Schemes,6507,Materials,Capital - Resources
Blackpool Council,1134332,Epe Reynell Advertising Limited,610328,INV_418286,29/09/2022,379.3,63.22,TRA,Traffic Management,4501,Private Contractors,Community & Env Services
Blackpool Council,1070036,Gaist Solutions Ltd,610329,11426,23/09/2022,36000,6000,TRB,Maintenance & Works,4501,Private Contractors,Community & Env Services
Blackpool Council,1006666,The Local Govt  Technical Advisers Group,610371,22-C/8,14/09/2022,460,0,FL1235,Trans - Technical Support,3711,Subscriptions,Community & Env Services
Blackpool Council,1006099,Blackpool Teaching Hospitals Nhs Ft,610373,1110062272,14/09/2022,10415.11,495.96,PUBH18,Stop Smoking Services & Interv,4501,Private Contractors,Public Health
Blackpool Council,1133417,REDACTED PERSONAL INFO,610378,0091,14/09/2022,875,0,PJW,Management - Places - Illumina,3401,General Services,Places
Blackpool Council,1094355,Les Mills Fitness Uk Ltd,610379,LMUK-SIV-130092,14/09/2022,450,75,LEISUR,Leisure Management,3801,Other Expenses,Community & Env Services
Blackpool Council,1096607,Cutlers Property Consultancy (Services),610380,0070513,30/09/2022,2665,0,AEE,Estates,0781,Contracted,Resources
Blackpool Council,1026738,Cassidy + Ashton,610382,19531,30/09/2022,1716,286,CGICAG,Town Deal,6506,Consultants Fees,Capital - Commnctn & Regen
Blackpool Council,1073580,Blackpool Sound And Light,610391,3000,14/09/2022,6173.34,1028.89,PJHA,"Depot, Management & Admin",3308,Servicing,Places
Blackpool Council,1134418,REDACTED PERSONAL INFO,610395,000024,14/09/2022,960,0,PJNA,New Features / Schemes - C & E,3308,Servicing,Places
Blackpool Council,1114782,REDACTED PERSONAL INFO,610399,AHJ183,14/09/2022,1292.5,0,AHG,Art Gallery Summary,3456,Payment To Artists,Places
Blackpool Council,1011675,Bambers Remedial Contractors Limited,610402,17835,28/09/2022,12332.03,0,CX4002,Disabled Facilities Grants,6501,Contract Payments,Capital - Adult Social Care
Blackpool Council,1011675,Bambers Remedial Contractors Limited,610403,17839,28/09/2022,2106,0,CXAAA,Local Authority Dwellings,6501,Contract Payments,Capital - Chief Executive
Blackpool Council,1011675,Bambers Remedial Contractors Limited,610404,17794,28/09/2022,6871.78,0,CXAAA,Local Authority Dwellings,6501,Contract Payments,Capital - Chief Executive
Blackpool Council,1109377,Skills Recruitment Ltd,610411,SI-15939,16/09/2022,14784,0,EDDIV,Education Diversity,4101,Other Local Authorities,Children'S Services
Blackpool Council,1103692,Calico Enterprise Limited,610412,SINV65/00000090,14/09/2022,3080.4,513.4,FC1802,Social Fund - Client,5210,Community Care Support,Resources
Blackpool Council,1087549,Merlin Entertainments (Blackpool) Ltd,610418,INV13026-00018669,29/09/2022,33924.98,5654.16,CGTAAA,Leisure Assets,6501,Contract Payments,Capital - Commnctn & Regen
Blackpool Council,1087549,Merlin Entertainments (Blackpool) Ltd,610422,INV13026-00009554,15/09/2022,521953.13,86992.19,CGTAAA,Leisure Assets,6501,Contract Payments,Capital - Commnctn & Regen
Blackpool Council,1136399,Sanderson Weatherall Llp,610426,MAN9224,28/09/2022,2100,350,CGICAG,Town Deal,6501,Contract Payments,Capital - Commnctn & Regen
Blackpool Council,1005071,Blackpool Transport Services Limited,610430,I0004153,23/09/2022,2400,0,JEA,Senior Management,2301,Bus & Tram Fares,Children'S Services
Blackpool Council,1044156,Pell Frischmann,610431,64022988,20/09/2022,7470.72,1245.12,CTAHHI,Tramway Extention,6506,Consultants Fees,Capital - Commnctn & Regen
Blackpool Council,1044156,Pell Frischmann,610434,64022989,20/09/2022,2548.36,424.73,CGICAD,Enterprise Zone,6506,Consultants Fees,Capital - Commnctn & Regen
Blackpool Council,1096596,Highfield Pfi Spv Ltd,610436,PHSIP000036,15/09/2022,1476,246,EM1029,Highfield Pfi,4701,Other Contracted Services,Children'S Services
Blackpool Council,1096596,Highfield Pfi Spv Ltd,610437,PHSIP000035,15/09/2022,404484.89,67414.15,EM1029,Highfield Pfi,4701,Other Contracted Services,Children'S Services
Blackpool Council,1081237,The Speech Bubble Ltd,610441,TSBI-3077,15/09/2022,7740,0,EDDIV,Education Diversity,3413,Consultants,Children'S Services
Blackpool Council,1135057,Prepaid Financial Services Limited,610443,INV67648,15/09/2022,1170,195,EM1032,Client Finances,3401,General Services,Resources
Blackpool Council,1135057,Prepaid Financial Services Limited,610444,INV71097,30/09/2022,1170,195,EM1032,Client Finances,3401,General Services,Resources
Blackpool Council,1135057,Prepaid Financial Services Limited,610446,INV69451,15/09/2022,1170,195,EM1032,Client Finances,3401,General Services,Resources
Blackpool Council,1134332,Epe Reynell Advertising Limited,610447,INV_416430,15/09/2022,820.9,136.82,TRA,Traffic Management,4501,Private Contractors,Community & Env Services
Blackpool Council,1133383,Ainsty Timber Marketing Limited,610451,3182,15/09/2022,3710.28,618.38,TRB,Maintenance & Works,4501,Private Contractors,Community & Env Services
Blackpool Council,1011675,Bambers Remedial Contractors Limited,610464,17474,15/09/2022,66057.6,11009.6,CGTCCD,Heritage Action Zone,6502,Grants & Advances,Capital - Commnctn & Regen
Blackpool Council,1011675,Bambers Remedial Contractors Limited,610465,17473,15/09/2022,93948,15658,CGTCCD,Heritage Action Zone,6502,Grants & Advances,Capital - Commnctn & Regen
Blackpool Council,1011675,Bambers Remedial Contractors Limited,610466,17475,15/09/2022,88761.6,14793.6,CGTCCD,Heritage Action Zone,6502,Grants & Advances,Capital - Commnctn & Regen
Blackpool Council,1011675,Bambers Remedial Contractors Limited,610467,17472,15/09/2022,97882.8,16313.8,CGTCCD,Heritage Action Zone,6502,Grants & Advances,Capital - Commnctn & Regen
Blackpool Council,1011714,Michael Hope Haulage Limited,610471,001592,15/09/2022,1728,288,SCHEME,Highways Schemes,1012,Premises Maint-Priv.Contractor,Community & Env Services
Blackpool Council,1078425,REDACTED PERSONAL INFO,610474,0091,22/09/2022,925,0,PJW,Management - Places - Illumina,3401,General Services,Places
Blackpool Council,1011714,Michael Hope Haulage Limited,610475,001591,15/09/2022,2160,360,SCHEME,Highways Schemes,1012,Premises Maint-Priv.Contractor,Community & Env Services
Blackpool Council,1011714,Michael Hope Haulage Limited,610476,001577,15/09/2022,864,144,SCHEME,Highways Schemes,1012,Premises Maint-Priv.Contractor,Community & Env Services
Blackpool Council,1073709,Delphi Medical Limited,610477,SINV63/00000049,16/09/2022,30000,0,PU2095,Rough Sleepers & At Risk,4501,Private Contractors,Public Health
Blackpool Council,1073709,Delphi Medical Limited,610478,SINV63/00000050,16/09/2022,30000,0,PU2095,Rough Sleepers & At Risk,4501,Private Contractors,Public Health
Blackpool Council,1134373,Drag Story Hour Uk Ltd,610529,DQSHUK-000811,15/09/2022,450,0,LBF,Library Management,3456,Payment To Artists,Places
Blackpool Council,1131037,Technology One (Uk) Limited,610530,U005058,23/09/2022,13483.26,2247.21,CGRESO,Resources Schemes,6526,I.T. Software Purchase,Capital - Resources
Blackpool Council,1135209,The Hiring Department Ltd,610532,INV-0006,27/09/2022,2500,0,AHHBA,Blackpool Museum,3801,Other Expenses,Places
Blackpool Council,1049385,Fylde Coast Ymca,610534,20002056,15/09/2022,1105,0,EDDIV,Education Diversity,3303,Games/Visits,Children'S Services
Blackpool Council,1103450,Blackpool Entertainment Company Limited,610535,INV006355,23/09/2022,403.5,67.25,HJA,Growth,1702,Hire Of Meeting Rooms,Places
Blackpool Council,1134332,Epe Reynell Advertising Limited,610537,INV_418483,30/09/2022,337.15,56.19,TRA,Traffic Management,4501,Private Contractors,Community & Env Services
Blackpool Council,1134332,Epe Reynell Advertising Limited,610538,INV_416065,15/09/2022,724.32,120.72,TRA,Traffic Management,4501,Private Contractors,Community & Env Services
Blackpool Council,1073709,Delphi Medical Limited,610541,SINV62/00000103,22/09/2022,3500,0,PUBH04,Substance Misuse,4501,Private Contractors,Public Health
Blackpool Council,1070719,Teachers 2 Parents Ltd,610543,10063852/5,15/09/2022,778.8,129.8,EDDIV,Education Diversity,3711,Subscriptions,Children'S Services
Blackpool Council,1118699,Enveco Blackpool Waste Services Ltd,610545,30173237,15/09/2022,433.49,72.25,EDDIV,Education Diversity,3606,Incidental Expenses,Children'S Services
Blackpool Council,1136212,Ofec Consulting Ltd,610549,655106,29/09/2022,273.6,45.6,EDDIV,Education Diversity,3711,Subscriptions,Children'S Services
Blackpool Council,1133264,J H Shackleton - Carrying With Confidence,610550,0016,15/09/2022,1230,0,BSTPRJ,Better Start Projects,3401,General Services,Better Start Projects
Blackpool Council,1108166,Pennine Education Ltd,610551,2106,16/09/2022,360,60,EDDIV,Education Diversity,3606,Incidental Expenses,Children'S Services
Blackpool Council,1133264,J H Shackleton - Carrying With Confidence,610552,0015,15/09/2022,950,0,BSTPRJ,Better Start Projects,3401,General Services,Better Start Projects
Blackpool Council,1120720,5 Ways Boxing Academy Cic,610560,5051,15/09/2022,1120,0,EDDIV,Education Diversity,4101,Other Local Authorities,Children'S Services
Blackpool Council,1006944,Siemens Financial Services Ltd,610561,244/22/0157663,15/09/2022,2067.76,344.62,APFBAB,Vitaline,3711,Subscriptions,Adult & Families
Blackpool Council,1008878,Cipfa Business Limited,610564,3165536,20/09/2022,1170,195,FL1235,Trans - Technical Support,3711,Subscriptions,Community & Env Services
Blackpool Council,1010138,C Cabs,610567,08977,15/09/2022,1179.8,0,EDDIV,Education Diversity,2201,Contract Hire,Children'S Services
Blackpool Council,1131981,Splashreel Limited,610568,120922_ODYSSEY,15/09/2022,1500,250,PJNA,New Features / Schemes - C & E,3413,Consultants,Places
Blackpool Council,1010138,C Cabs,610570,08978,15/09/2022,296.4,0,EDDIV,Education Diversity,2201,Contract Hire,Children'S Services
Blackpool Council,1103692,Calico Enterprise Limited,610572,SINV65/00000127,15/09/2022,1958.4,326.4,FC1802,Social Fund - Client,5210,Community Care Support,Resources
Blackpool Council,1116610,Smart Video & Sensing Limited,610574,101401,22/09/2022,5820,970,CTACBA,Ltp Scheme 21/22,6501,Contract Payments,Capital - Commnctn & Regen
Blackpool Council,1128516,Steven A. Hunt & Associates,610588,9191,28/09/2022,979.63,163.27,CGICAF,G&P Prudential Schemes,6506,Consultants Fees,Capital - Commnctn & Regen
Blackpool Council,1020550,Hays Specialist Recruitment Ltd,610589,1012456152,27/09/2022,1035,172.5,HJA,Growth,0791,Temp/Relief (Bureau Staff),Places
Blackpool Council,1020550,Hays Specialist Recruitment Ltd,610591,1012440070,20/09/2022,1391.59,231.93,HJA,Growth,0791,Temp/Relief (Bureau Staff),Places
Blackpool Council,1020550,Hays Specialist Recruitment Ltd,610592,1012440028,20/09/2022,621,103.5,HJA,Growth,0791,Temp/Relief (Bureau Staff),Places
Blackpool Council,1020550,Hays Specialist Recruitment Ltd,610593,1012455945,27/09/2022,1979.15,329.86,HJA,Growth,0791,Temp/Relief (Bureau Staff),Places
Blackpool Council,1031698,Facultatieve Technologies Ltd,610594,22103976,20/09/2022,19059.6,3176.6,CEMCRE,Cems Crems Etc,3801,Other Expenses,Governance & Partnerships
Blackpool Council,1058510,Lifeline Language Services Ltd,610595,0522097,23/09/2022,250.8,41.8,SBOARD,Springboard,4501,Private Contractors,Children'S Services
Blackpool Council,1010300,Blacktax Radio Taxis T/A Blackpool Courier,610597,393,30/09/2022,1444,0,TRCHIL,Integrated Transport Children,2201,Contract Hire,Community & Env Services
Blackpool Council,1129634,Av-Id,610600,235,15/09/2022,2122.2,353.7,EK0198,Adult Learning Health Works Alterations,3531,Computer-H'Ware Purchase,Places
Blackpool Council,1128443,Andrea Howe,610601,AHBC017,15/09/2022,4800,0,LH2092,Lad 2 Funding,4501,Private Contractors,Public Health
Blackpool Council,1103450,Blackpool Entertainment Company Limited,610602,INV006322,28/09/2022,2016.33,336.06,FMAK,Acquisitions 9/10,3801,Other Expenses,Places
Blackpool Council,1087549,Merlin Entertainments (Blackpool) Ltd,610603,INV13026-00015580,28/09/2022,402057.67,67009.61,FMAK,Acquisitions 9/10,3801,Other Expenses,Places
Blackpool Council,1103450,Blackpool Entertainment Company Limited,610604,INV006319,28/09/2022,5580,930,FMAK,Acquisitions 9/10,3801,Other Expenses,Places
Blackpool Council,1103450,Blackpool Entertainment Company Limited,610608,INV006320,28/09/2022,3600,600,FMAK,Acquisitions 9/10,3801,Other Expenses,Places
Blackpool Council,1126236,New Concept Security Ltd,610610,162496,21/09/2022,7103.7,1183.95,SECURE,Security Services,3401,General Services,Community & Env Services
Blackpool Council,1126236,New Concept Security Ltd,610612,162506,21/09/2022,9849.6,1641.6,SECURE,Security Services,3401,General Services,Community & Env Services
Blackpool Council,1073709,Delphi Medical Limited,610682,SINV62/00000089,20/09/2022,4000,0,PUBH04,Substance Misuse,4501,Private Contractors,Public Health
Blackpool Council,1094424,The Networking People,610686,SI111798,30/09/2022,3630,605,CGRESO,Resources Schemes,6507,Materials,Capital - Resources
Blackpool Council,1017975,The Cctv User Group Ltd,610687,SI-12228,27/09/2022,358.8,59.8,CCTV,Cctv,3012,Other Equipment,Community & Env Services
Blackpool Council,1094424,The Networking People,610688,SI111195,16/09/2022,1140,190,FGAA,Ict Corporate Services,3531,Computer-H'Ware Purchase,Resources
Blackpool Council,1114704,Morson Human Resources Ltd,610690,HS445249,21/09/2022,2772,462,CTAHHI,Tramway Extention,6506,Consultants Fees,Capital - Commnctn & Regen
Blackpool Council,1103450,Blackpool Entertainment Company Limited,610692,INV006321,28/09/2022,8994,1499,FMAK,Acquisitions 9/10,3801,Other Expenses,Places
Blackpool Council,1095955,Stopford Information Systems Ltd,610693,SI-2714,16/09/2022,2268,378,LIFEVE,Life Events Reg & Care,0781,Contracted,Governance & Partnerships
Blackpool Council,1013064,Tarmac Lafarge Trading Limited,610694,9045793672,28/09/2022,264.79,44.13,ENGINE,Engineering,3041,Other Materials,Community & Env Services
Blackpool Council,1011923,Rp Tyson Construction Ltd,610695,IN3609,16/09/2022,113128.54,0,CXC11,Site Development,6501,Contract Payments,Capital - Chief Executive
Blackpool Council,1011923,Rp Tyson Construction Ltd,610695,IN3609,16/09/2022,27319.83,0,ZH0001,Housing Revenue Account,97A6,Retention Monies - Capital,Housing Revenue Account
Blackpool Council,1022781,Moore Readymix Ltd,610699,126063,16/09/2022,304.8,50.8,ENGINE,Engineering,3041,Other Materials,Community & Env Services
Blackpool Council,1018184,Blackpool Skip Hire Ltd,610702,042657,21/09/2022,396,66,SCHEME,Highways Schemes,1012,Premises Maint-Priv.Contractor,Community & Env Services
Blackpool Council,1013064,Tarmac Lafarge Trading Limited,610703,9045793669,23/09/2022,338.18,56.36,ENGINE,Engineering,3041,Other Materials,Community & Env Services
Blackpool Council,1013064,Tarmac Lafarge Trading Limited,610706,9045793674,30/09/2022,948.54,158.09,ENGINE,Engineering,3041,Other Materials,Community & Env Services
Blackpool Council,1115239,Imperative Training T/A Defibshop.Co.Uk,610796,1000098895,21/09/2022,2652,442,PRKOP1,Parks Operational Manager  1,3010,Safety Equipment,Community & Env Services
Blackpool Council,1011868,W H Tarmacadam Limited,610813,6324,20/09/2022,9768,1628,SCHEME,Highways Schemes,1012,Premises Maint-Priv.Contractor,Community & Env Services
Blackpool Council,1011868,W H Tarmacadam Limited,610814,6323,20/09/2022,8880,1480,PARADE,Parades & Seawall,1012,Premises Maint-Priv.Contractor,Community & Env Services
Blackpool Council,1118699,Enveco Blackpool Waste Services Ltd,610815,30174373,20/09/2022,4728.66,788.11,DOMPFI,Domestic Waste & Waste Pfi,2002,Repairs And Maintenance,Community & Env Services
Blackpool Council,1118699,Enveco Blackpool Waste Services Ltd,610815,30174373,20/09/2022,1673.46,278.91,DOMPFI,Domestic Waste & Waste Pfi,2004,Running Costs-Diesel,Community & Env Services
Blackpool Council,1005144,Blackpool Airport Operations Limited,610823,0000024430,21/09/2022,900,150,CGWBAA,Cbd Phase 2,6518,Miscellaneous - Capital,Capital - Commnctn & Regen
Blackpool Council,1029873,Portakabin Limited,610824,900971591,23/09/2022,70933.2,11822.2,CFCAAA,Cbd Phase 3,6501,Contract Payments,Capital - Commnctn & Regen
Blackpool Council,1119587,Highway Workforce Ltd,610832,HWF 2022-280,23/09/2022,9785.96,1631,TRB,Maintenance & Works,4501,Private Contractors,Community & Env Services
Blackpool Council,1119587,Highway Workforce Ltd,610833,HWF 2022-278,23/09/2022,4051.22,675.2,TRB,Maintenance & Works,4501,Private Contractors,Community & Env Services
Blackpool Council,1119864,Lorraine Petersen Educational Consultancy,610845,862,20/09/2022,754.7,0,MNGMT,Central Management,3413,Consultants,Children'S Services
Blackpool Council,1057663,Wilde Recruitment Ltd,610848,41363,22/09/2022,552.38,92.06,CTAHHA,Tramway Emergency Works,6501,Contract Payments,Capital - Commnctn & Regen
Blackpool Council,1008454,Police & Crime Commissioner For Lancashire,610849,7500014393,20/09/2022,4969.21,0,BSTPRJ,Better Start Projects,0911,Training Expenses,Better Start Projects
Blackpool Council,1004963,F Parkinson Ltd,610854,10501,21/09/2022,836831.33,139471.89,CGICAF,G&P Prudential Schemes,6501,Contract Payments,Capital - Commnctn & Regen
Blackpool Council,1004963,F Parkinson Ltd,610854,10501,21/09/2022,21567.82,0,ZF0001,"Insurance,Dso,Banking",97B6,Retention Monies - Cap Trsfr,Total Reconciliations
Blackpool Council,1026738,Cassidy + Ashton,610858,19539,23/09/2022,3300,550,CGICAD,Enterprise Zone,6506,Consultants Fees,Capital - Commnctn & Regen
Blackpool Council,1028804,United Utilities Water Ltd,610859,96019866,20/09/2022,25758,4293,FB0004,Energy & Sustainability,1401,Water Charges-Metered,Resources
Blackpool Council,1118699,Enveco Blackpool Waste Services Ltd,610861,30174372,21/09/2022,549,91.5,BEACHP,Beach Patrol,2003,Running Costs-Petrol,Places
Blackpool Council,1006419,Tunstall Healthcare (Uk) Ltd,610896,INV/30044140,29/09/2022,27611.9,4601.98,APFBAB,Vitaline,4515,Contract Services,Adult & Families
Blackpool Council,1011675,Bambers Remedial Contractors Limited,610898,17868,22/09/2022,8194.83,0,CX4002,Disabled Facilities Grants,6501,Contract Payments,Capital - Adult Social Care
Blackpool Council,1011675,Bambers Remedial Contractors Limited,610899,17867,22/09/2022,6916.14,0,CXAAA,Local Authority Dwellings,6501,Contract Payments,Capital - Chief Executive
Blackpool Council,1006460,Closomat Limited,610905,SI-100112,22/09/2022,368.4,61.4,MVA,18-64,5401,Aids To Daily Living,Adult & Families
Blackpool Council,1011675,Bambers Remedial Contractors Limited,610906,17865,22/09/2022,6904.28,0,CX4002,Disabled Facilities Grants,6501,Contract Payments,Capital - Adult Social Care
Blackpool Council,1011675,Bambers Remedial Contractors Limited,610908,17838,22/09/2022,5607.8,0,CX4002,Disabled Facilities Grants,6501,Contract Payments,Capital - Adult Social Care
Blackpool Council,1018184,Blackpool Skip Hire Ltd,610913,042961,30/09/2022,1358.64,226.44,PJHA,"Depot, Management & Admin",3006,Hire Of Equipment,Places
Blackpool Council,1090774,Richardson Traction Limited,610914,22705,30/09/2022,3924,654,PJAA,"Erection, Operation & Dismantl",3041,Other Materials,Places
Blackpool Council,1012071,Bethell Construction Limited,610915,18275,22/09/2022,7347.48,1224.58,PJNA,New Features / Schemes - C & E,1012,Premises Maint-Priv.Contractor,Places
Blackpool Council,1079399,Schenker Ltd,610917,1000492250,21/09/2022,613.15,0,PJHA,"Depot, Management & Admin",3308,Servicing,Places
Blackpool Council,1134418,REDACTED PERSONAL INFO,610918,000025,21/09/2022,932,0,PJNA,New Features / Schemes - C & E,3308,Servicing,Places
Blackpool Council,1073709,Delphi Medical Limited,610919,SINV62/00000091,21/09/2022,1290,0,PUBH04,Substance Misuse,4501,Private Contractors,Public Health
Blackpool Council,1073709,Delphi Medical Limited,610920,SINV62/00000102,22/09/2022,3500,0,PU2095,Rough Sleepers & At Risk,4501,Private Contractors,Public Health
Blackpool Council,1135139,Facility&Sports Club Development Services Ltd,610922,INV-0174,22/09/2022,3600,600,PESPRT,Pe And Sport Team,3801,Other Expenses,Community & Env Services
Blackpool Council,1006644,Telewest/Virgin Media Payments Ltd,610927,067437901/506/0922,22/09/2022,3253.14,542.19,FGAA,Ict Corporate Services,3521,Landline - Line Rental,Resources
Blackpool Council,1006644,Telewest/Virgin Media Payments Ltd,610928,078850001/547/0922,22/09/2022,314.4,52.4,FGAA,Ict Corporate Services,3521,Landline - Line Rental,Resources
Blackpool Council,1006644,Telewest/Virgin Media Payments Ltd,610930,081127901/504/0922,22/09/2022,612,102,FGAA,Ict Corporate Services,3521,Landline - Line Rental,Resources
Blackpool Council,1136569,REDACTED PERSONAL INFO,610940,01002,28/09/2022,300,0,PJW,Management - Places - Illumina,3456,Payment To Artists,Places
Blackpool Council,1005071,Blackpool Transport Services Limited,610948,I0004166,30/09/2022,2736,0,INTRAD,Integrated Transport Admin,2001,Purchases,Community & Env Services
Blackpool Council,1005071,Blackpool Transport Services Limited,610949,I0004167,30/09/2022,1026,0,INTRAD,Integrated Transport Admin,2001,Purchases,Community & Env Services
Blackpool Council,1005071,Blackpool Transport Services Limited,610950,I0004168,30/09/2022,1698.63,0,FRAEA,Public Transport Contracts,3401,General Services,Community & Env Services
Blackpool Council,1017867,British Telecommunications Plc,610961,VP 21330270 Q08501,22/09/2022,20033.56,3338.92,FGAA,Ict Corporate Services,3521,Landline - Line Rental,Resources
Blackpool Council,1011714,Michael Hope Haulage Limited,610965,001593,22/09/2022,2160,360,SCHEME,Highways Schemes,1012,Premises Maint-Priv.Contractor,Community & Env Services
Blackpool Council,1099262,Nhs Blackpool & Nhs Lancs & South Cumbria Icb,610966,7440000115,22/09/2022,39347,0,BSTPRJ,Better Start Projects,5101,Transfer Payments - General,Better Start Projects
Blackpool Council,1010353,Blackpool Football Club Ltd,610971,INV-1920,30/09/2022,480,80,BSTPRJ,Better Start Projects,1702,Hire Of Meeting Rooms,Better Start Projects
Blackpool Council,1073088,Muse Developments Limited,610972,51008188,22/09/2022,1126733.68,187788.95,CGWBAA,Cbd Phase 2,6501,Contract Payments,Capital - Commnctn & Regen
Blackpool Council,1073088,Muse Developments Limited,610972,51008188,22/09/2022,44925.59,0,ZF0001,"Insurance,Dso,Banking",97B6,Retention Monies - Cap Trsfr,Total Reconciliations
Blackpool Council,1031342,One51 Es Plastics (Uk) Ltd T/A Mgb Plastics,611008,41517,26/09/2022,19908,3318,DOMPFI,Domestic Waste & Waste Pfi,3041,Other Materials,Community & Env Services
Blackpool Council,1136585,Rezina Kelly Consulting Ltd,611009,172,22/09/2022,452.1,0,HS0006,Friend For Life,3413,Consultants,Children'S Services
Blackpool Council,1111234,Cbre Ltd,611010,50BCD00088776,22/09/2022,11910,1985,CGICAF,G&P Prudential Schemes,6506,Consultants Fees,Capital - Commnctn & Regen
Blackpool Council,1111234,Cbre Ltd,611011,50BCD00088920,22/09/2022,24000,4000,CGICAF,G&P Prudential Schemes,6506,Consultants Fees,Capital - Commnctn & Regen
Blackpool Council,1107720,The Accounting Officer - Ministry Of Defence,611012,7700443,29/09/2022,41220,5920,PRB,Events,3417,Entertainment,Places
Blackpool Council,1127962,John Graham Construction Limited,611049,917293,23/09/2022,702116.95,117019.49,CGICAF,G&P Prudential Schemes,6501,Contract Payments,Capital - Commnctn & Regen
Blackpool Council,1127962,John Graham Construction Limited,611049,917293,23/09/2022,18095.8,0,ZF0001,"Insurance,Dso,Banking",97B6,Retention Monies - Cap Trsfr,Total Reconciliations
Blackpool Council,1009925,City & Guilds Of London Institute,611050,806093820,23/09/2022,2700,0,ALEARN,Adult Learning,3711,Subscriptions,Places
Blackpool Council,1118699,Enveco Blackpool Waste Services Ltd,611051,30174395,23/09/2022,483,80.5,FP4801,Bus Shelters,2002,Repairs And Maintenance,Places
Blackpool Council,1118699,Enveco Blackpool Waste Services Ltd,611051,30174395,23/09/2022,288,48,FP4801,Bus Shelters,2003,Running Costs-Petrol,Places
Blackpool Council,1129634,Av-Id,611052,241,23/09/2022,3045.48,507.58,PVA,Other External Funding,3313,General Expenses,Places
Blackpool Council,1002210,Read & Errington,611056,4575,30/09/2022,2446.55,0,CX4002,Disabled Facilities Grants,6501,Contract Payments,Capital - Adult Social Care
Blackpool Council,1007206,Road Safety Services Ltd,611068,91309,26/09/2022,485.76,80.96,ZM0003,Planning,9624,Rechargeable Works Account,Place Directorate
Blackpool Council,1071925,Groundwork Cheshire Lancs And Merseyside,611115,0000003891,26/09/2022,9726.71,0,PVA,Other External Funding,3313,General Expenses,Places
Blackpool Council,1078534,Ekos Consulting Uk Ltd T/A Ekosgen,611116,INV-2344,26/09/2022,3598.61,599.77,PVA,Other External Funding,3313,General Expenses,Places
Blackpool Council,1078534,Ekos Consulting Uk Ltd T/A Ekosgen,611117,INV-2378,26/09/2022,4798.15,799.69,PVA,Other External Funding,3313,General Expenses,Places
Blackpool Council,1012071,Bethell Construction Limited,611118,18326,28/09/2022,17832.83,2972.14,ENGINE,Engineering,1012,Premises Maint-Priv.Contractor,Community & Env Services
Blackpool Council,1012071,Bethell Construction Limited,611119,18317,30/09/2022,1943.89,323.98,ENGINE,Engineering,1012,Premises Maint-Priv.Contractor,Community & Env Services
Blackpool Council,1012071,Bethell Construction Limited,611120,18314,30/09/2022,1776.86,296.14,ENGINE,Engineering,1012,Premises Maint-Priv.Contractor,Community & Env Services
Blackpool Council,1011923,Rp Tyson Construction Ltd,611121,IN3618,28/09/2022,1028347.62,0,CXC11,Site Development,6501,Contract Payments,Capital - Chief Executive
Blackpool Council,1011923,Rp Tyson Construction Ltd,611121,IN3618,28/09/2022,31804.58,0,ZH0001,Housing Revenue Account,97B6,Retention Monies - Cap Trsfr,Housing Revenue Account
Blackpool Council,1114016,Vetpartners Practices Ltd T/A Gillivervet,611123,530764,30/09/2022,911.36,151.89,PYLA,Licencing,3413,Consultants,Community & Env Services
Blackpool Council,1108053,Buy Art Fair Limited,611126,BAF00000648,28/09/2022,1824,304,AHG,Art Gallery Summary,3801,Other Expenses,Places
Blackpool Council,1098193,Westminster Primary Academy,611130,6000000118,26/09/2022,17655,0,BSTPRJ,Better Start Projects,1012,Premises Maint-Priv.Contractor,Better Start Projects
Blackpool Council,1099262,Nhs Blackpool & Nhs Lancs & South Cumbria Icb,611133,7440000117,26/09/2022,85579.5,0,BSTPRJ,Better Start Projects,5101,Transfer Payments - General,Better Start Projects
Blackpool Council,1099262,Nhs Blackpool & Nhs Lancs & South Cumbria Icb,611134,7440000116,26/09/2022,85579.5,0,BSTPRJ,Better Start Projects,5101,Transfer Payments - General,Better Start Projects
Blackpool Council,1103450,Blackpool Entertainment Company Limited,611137,INV006364,30/09/2022,321.3,53.55,JA0505,Children'S Training,3426,Course Fees,Children'S Services
Blackpool Council,1109814,Nickelodeon Uk Limited,611139,1800000602,26/09/2022,252000,42000,PRB,Events,3401,General Services,Places
Blackpool Council,1109814,Nickelodeon Uk Limited,611140,1800000601,26/09/2022,252000,42000,PRB,Events,3401,General Services,Places
Blackpool Council,1086456,Adelaide Street Family Practice,611144,LYRL/00000152,26/09/2022,290,0,PUBH18,Stop Smoking Services & Interv,4501,Private Contractors,Public Health
Blackpool Council,1084725,Stonyhill Medical Practice,611145,LZLQ/00000107,27/09/2022,1836.1,0,PUBH02,Sexual Health Services-Contrac,4501,Private Contractors,Public Health
Blackpool Council,1013245,St Pauls Medical Centre,611146,LYTK/00000122,27/09/2022,329.68,0,PUBH02,Sexual Health Services-Contrac,4501,Private Contractors,Public Health
Blackpool Council,1046253,The Partners At Newton Drive Health Centre,611147,LYWV/00000069,27/09/2022,329.68,0,PUBH02,Sexual Health Services-Contrac,4501,Private Contractors,Public Health
Blackpool Council,1009019,Highfield Surgery,611148,LZCM/00000079,27/09/2022,616,0,PUBH02,Sexual Health Services-Contrac,4501,Private Contractors,Public Health
Blackpool Council,1086456,Adelaide Street Family Practice,611151,LYRL/00000151,27/09/2022,1624,0,PUBH02,Sexual Health Services-Contrac,4501,Private Contractors,Public Health
Blackpool Council,1045131,North Shore Surgery,611153,LZJT/00000121,27/09/2022,663,0,PUBH02,Sexual Health Services-Contrac,4501,Private Contractors,Public Health
Blackpool Council,1011970,A1 Streamline Road Markings Ltd,611157,8153,29/09/2022,449.28,74.88,PARADM,Parking Administration,4501,Private Contractors,Budgets Outside Cash Limits
Blackpool Council,1086456,Adelaide Street Family Practice,611158,LYRL/00000153,27/09/2022,1568,0,PUBH02,Sexual Health Services-Contrac,4501,Private Contractors,Public Health
Blackpool Council,1013245,St Pauls Medical Centre,611159,LYTK/00000123,26/09/2022,550,0,PUBH18,Stop Smoking Services & Interv,4501,Private Contractors,Public Health
Blackpool Council,1118699,Enveco Blackpool Waste Services Ltd,611167,30174376,26/09/2022,727.08,121.18,CCTV,Cctv,2002,Repairs And Maintenance,Community & Env Services
Blackpool Council,1136269,Playtime Wholesale Ltd,611170,10765,26/09/2022,4410,735,PPB,Marketing Company,3808,Souvenirs & Gifts,Places
Blackpool Council,1012071,Bethell Construction Limited,611174,18325,28/09/2022,493.98,82.33,ENGINE,Engineering,1012,Premises Maint-Priv.Contractor,Community & Env Services
Blackpool Council,1012071,Bethell Construction Limited,611175,18318,28/09/2022,1876.21,312.7,ENGINE,Engineering,1012,Premises Maint-Priv.Contractor,Community & Env Services
Blackpool Council,1012071,Bethell Construction Limited,611176,18321,28/09/2022,371.71,61.95,ENGINE,Engineering,1012,Premises Maint-Priv.Contractor,Community & Env Services
Blackpool Council,1012071,Bethell Construction Limited,611177,18324,28/09/2022,474.8,79.13,ENGINE,Engineering,1012,Premises Maint-Priv.Contractor,Community & Env Services
Blackpool Council,1012071,Bethell Construction Limited,611178,18319,28/09/2022,2049.49,341.58,ENGINE,Engineering,1012,Premises Maint-Priv.Contractor,Community & Env Services
Blackpool Council,1012071,Bethell Construction Limited,611179,18320,28/09/2022,1805.24,300.87,ENGINE,Engineering,1012,Premises Maint-Priv.Contractor,Community & Env Services
Blackpool Council,1012071,Bethell Construction Limited,611180,18323,28/09/2022,2154.1,359.02,ENGINE,Engineering,1012,Premises Maint-Priv.Contractor,Community & Env Services
Blackpool Council,1012071,Bethell Construction Limited,611181,18315,28/09/2022,6661.58,1110.26,ENGINE,Engineering,1012,Premises Maint-Priv.Contractor,Community & Env Services
Blackpool Council,1012071,Bethell Construction Limited,611182,18316,28/09/2022,2817.46,469.58,ENGINE,Engineering,1012,Premises Maint-Priv.Contractor,Community & Env Services
Blackpool Council,1012071,Bethell Construction Limited,611183,18322,28/09/2022,2724.1,454.02,ENGINE,Engineering,1012,Premises Maint-Priv.Contractor,Community & Env Services
Blackpool Council,1118699,Enveco Blackpool Waste Services Ltd,611184,30174387,27/09/2022,12924.86,2154.14,ENGINE,Engineering,2002,Repairs And Maintenance,Community & Env Services
Blackpool Council,1118699,Enveco Blackpool Waste Services Ltd,611184,30174387,27/09/2022,1529.64,254.94,ENGINE,Engineering,2004,Running Costs-Diesel,Community & Env Services
Blackpool Council,1018679,Radiodetection Ltd,611186,6197341,26/09/2022,435.6,72.6,SCHEME,Highways Schemes,3041,Other Materials,Community & Env Services
Blackpool Council,1118699,Enveco Blackpool Waste Services Ltd,611188,30165428,26/09/2022,350.83,58.47,EDDIV,Education Diversity,3606,Incidental Expenses,Children'S Services
Blackpool Council,1118699,Enveco Blackpool Waste Services Ltd,611189,30169029,26/09/2022,344.68,57.45,EDDIV,Education Diversity,3606,Incidental Expenses,Children'S Services
Blackpool Council,1132311,Treestyle Consultancy Ltd,611192,INV-0132,28/09/2022,3000,0,PRKDEV,Parks Development,1012,Premises Maint-Priv.Contractor,Community & Env Services
Blackpool Council,1132812,Cognisoft Limited,611195,INV-0675,26/09/2022,1110,185,PVA,Other External Funding,3313,General Expenses,Places
Blackpool Council,1010138,C Cabs,611200,09149,26/09/2022,328.2,0,TRCHIL,Integrated Transport Children,2201,Contract Hire,Community & Env Services
Blackpool Council,1010138,C Cabs,611201,09145,26/09/2022,3097.9,0,TRCHIL,Integrated Transport Children,2201,Contract Hire,Community & Env Services
Blackpool Council,1010300,Blacktax Radio Taxis T/A Blackpool Courier,611204,490,26/09/2022,1293,0,TRADUL,Intergrated Transport Adults,2201,Contract Hire,Community & Env Services
Blackpool Council,1099262,Nhs Blackpool & Nhs Lancs & South Cumbria Icb,611209,7440000137,29/09/2022,692050,0,LM9027,Bcf Control,5101,Transfer Payments - General,Bcf General And Control
Blackpool Council,1110951,Leisure Property Services Limited,611212,INV-1706,29/09/2022,13500,2250,FH1000,Business Loan Overheads,3413,Consultants,Budgets Outside Cash Limits
Blackpool Council,1134188,Five Rivers Child Care Ltd,611213,0000094096,26/09/2022,5000,0,VIRTUL,Virtual Hub,3313,General Expenses,Children'S Services
Blackpool Council,1087805,Blackpool Fc Community Trust,611214,BFCCT1354,26/09/2022,1803.58,0,HS0003,Headstart Commissioning,3401,General Services,Children'S Services
Blackpool Council,1066073,Blackpool Coastal Housing,611216,30002145,26/09/2022,952.39,158.73,TRB,Maintenance & Works,4501,Private Contractors,Community & Env Services
Blackpool Council,1117705,Rhea Projects Ltd,611219,LAD2-0350,26/09/2022,66053.13,0,LH2092,Lad 2 Funding,4501,Private Contractors,Public Health
Blackpool Council,1117705,Rhea Projects Ltd,611220,LAD2-0351,26/09/2022,4830,805,LH2092,Lad 2 Funding,4501,Private Contractors,Public Health
Blackpool Council,1117705,Rhea Projects Ltd,611221,LAD2-0352,26/09/2022,3049.8,508.3,LH2092,Lad 2 Funding,4501,Private Contractors,Public Health
Blackpool Council,1117705,Rhea Projects Ltd,611222,LAD2-0353,26/09/2022,54723.94,0,LH2092,Lad 2 Funding,4501,Private Contractors,Public Health
Blackpool Council,1117705,Rhea Projects Ltd,611223,LAD2-0354,26/09/2022,2898,483,LH2092,Lad 2 Funding,4501,Private Contractors,Public Health
Blackpool Council,1117705,Rhea Projects Ltd,611224,LAD2-0355,26/09/2022,3049.8,508.3,LH2092,Lad 2 Funding,4501,Private Contractors,Public Health
Blackpool Council,1117705,Rhea Projects Ltd,611225,LAD2-0356,26/09/2022,54080.77,0,LH2092,Lad 2 Funding,4501,Private Contractors,Public Health
Blackpool Council,1117705,Rhea Projects Ltd,611226,LAD2-0357,26/09/2022,1932,322,LH2092,Lad 2 Funding,4501,Private Contractors,Public Health
Blackpool Council,1117705,Rhea Projects Ltd,611227,LAD2-0358,26/09/2022,2346,391,LH2092,Lad 2 Funding,4501,Private Contractors,Public Health
Blackpool Council,1106132,Bridge Education And Training Ltd,611228,10842,26/09/2022,840,140,AEF,Facilities,0791,Temp/Relief (Bureau Staff),Resources
Blackpool Council,1069760,W Robinson (Bils) Ltd,611229,85763,27/09/2022,464,0,ZM0018,Highways & Engineering,9773,Orders Received Not Invoiced,Blackpool Services
Blackpool Council,1069760,W Robinson (Bils) Ltd,611229,85763,27/09/2022,556.8,92.8,ZM0018,Highways & Engineering,9511A,Stocks Efin,Blackpool Services
Blackpool Council,1009927,City Electrical Factors Limited,611232,BLA/332463,30/09/2022,324,54,PJLA,Maintenance,3041,Other Materials,Places
Blackpool Council,1116762,Dt Electrical (Uk) Ltd,611238,IN2881,27/09/2022,3838.08,639.68,PJLA,Maintenance,3308,Servicing,Places
Blackpool Council,1134418,REDACTED PERSONAL INFO,611239,000026,27/09/2022,1026,0,PJNA,New Features / Schemes - C & E,3308,Servicing,Places
Blackpool Council,1134828,Rosscon Training Ltd,611241,INV0016,27/09/2022,5000,0,PTC,"A.C.E. Regen, Tourism & Cultur",0917,Other Exps,Places
Blackpool Council,1087549,Merlin Entertainments (Blackpool) Ltd,611246,INV13026-00019320,28/09/2022,600,100,PESPRT,Pe And Sport Team,0I91,Other,Community & Env Services
Blackpool Council,1008525,Kingswood Office Supplies Limited,611248,441321,30/09/2022,769.44,128.24,AER,Dual Use Properties,3302,Stationery,Resources
Blackpool Council,1117763,Street Angels - Angels Rest,611254,0013,27/09/2022,27375,0,HOPB,Housing Options,4004,Management Fees,Chief Executive
Blackpool Council,1118699,Enveco Blackpool Waste Services Ltd,611260,30171860,27/09/2022,1748.28,291.38,APCBAA,Coopers Way,0911,Training Expenses,Adult & Families
Blackpool Council,1008141,Martin Brown Paints Ltd,611263,HA119232,27/09/2022,297.22,49.54,PJOA,Commercial & Marketing,3041,Other Materials,Places
Blackpool Council,1008141,Martin Brown Paints Ltd,611264,HA119248,27/09/2022,863.86,143.98,PJNA,New Features / Schemes - C & E,3041,Other Materials,Places
Blackpool Council,1069531,Masta Ltd,611267,0000576039,29/09/2022,5376,896,FK0013,Corporate Health,3065,Drugs & Medical Requisites,Chief Executive
Blackpool Council,1010004,Celplas Pvc Limited,611268,211558,27/09/2022,307.21,0,ZM0018,Highways & Engineering,9773,Orders Received Not Invoiced,Blackpool Services
Blackpool Council,1010004,Celplas Pvc Limited,611268,211558,27/09/2022,368.65,61.44,ZM0018,Highways & Engineering,9511A,Stocks Efin,Blackpool Services
Blackpool Council,1131096,Abl Planning And Development Ltd,611270,2000807/202,27/09/2022,1852.45,0,PLBAAA,Development Control,4515,Contract Services,Places
Blackpool Council,1129132,Mhr International Uk Ltd,611313,SIN160547,27/09/2022,40500,6750,CGRESO,Resources Schemes,6526,I.T. Software Purchase,Capital - Resources
Blackpool Council,1067733,West Lancs Roofing,611319,0910,28/09/2022,1008,168,ZM0003,Planning,9624,Rechargeable Works Account,Place Directorate
Blackpool Council,1067733,West Lancs Roofing,611324,0907,28/09/2022,1056,176,ZM0003,Planning,9624,Rechargeable Works Account,Place Directorate
Blackpool Council,1067733,West Lancs Roofing,611325,0908,28/09/2022,1248,208,ZM0003,Planning,9624,Rechargeable Works Account,Place Directorate
Blackpool Council,1087234,Aitch Tools & Fasteners Ltd,611328,064337,27/09/2022,536,0,ZM0018,Highways & Engineering,9773,Orders Received Not Invoiced,Blackpool Services
Blackpool Council,1087234,Aitch Tools & Fasteners Ltd,611328,064337,27/09/2022,643.2,107.2,ZM0018,Highways & Engineering,9511A,Stocks Efin,Blackpool Services
Blackpool Council,1087234,Aitch Tools & Fasteners Ltd,611332,064312,27/09/2022,313,0,ZM0018,Highways & Engineering,9773,Orders Received Not Invoiced,Blackpool Services
Blackpool Council,1087234,Aitch Tools & Fasteners Ltd,611332,064312,27/09/2022,375.6,62.6,ZM0018,Highways & Engineering,9511A,Stocks Efin,Blackpool Services
Blackpool Council,1011369,Lancashire County Council,611335,5200252292,27/09/2022,293087,0,FR5001,Concessionary Fares,3401,General Services,Budgets Outside Cash Limits
Blackpool Council,1011369,Lancashire County Council,611336,5200256129,27/09/2022,293087,0,FR5001,Concessionary Fares,3401,General Services,Budgets Outside Cash Limits
Blackpool Council,1009209,Gemini Blinds,611339,1102,30/09/2022,6771.5,1128.58,APDBBB,Arc,3401,General Services,Adult & Families
Blackpool Council,1087805,Blackpool Fc Community Trust,611348,BFCCT1389,27/09/2022,33822,0,PVA,Other External Funding,3313,General Expenses,Places
Blackpool Council,1043424,Aivaf Limited,611356,3585,29/09/2022,45360,7560,CGTACA,Museum,6517,Equipment,Capital - Commnctn & Regen
Blackpool Council,1016649,Iems Services,611362,2284,28/09/2022,440,0,PJNA,New Features / Schemes - C & E,1012,Premises Maint-Priv.Contractor,Places
Blackpool Council,1016649,Iems Services,611364,2287,29/09/2022,660,0,PJNA,New Features / Schemes - C & E,1012,Premises Maint-Priv.Contractor,Places
Blackpool Council,1016649,Iems Services,611365,2286,29/09/2022,660,0,PJNA,New Features / Schemes - C & E,1012,Premises Maint-Priv.Contractor,Places
Blackpool Council,1136090,Wireless Logic Ltd,611367,SIWL01007001516,27/09/2022,604.8,100.8,PJHA,"Depot, Management & Admin",3308,Servicing,Places
Blackpool Council,1136409,REDACTED PERSONAL INFO,611368,000406,28/09/2022,1200,200,AHM,Arts Miscellaneous,3456,Payment To Artists,Places
Blackpool Council,1006940,Smiths Equipment Hire Ltd - Smiths Training,611373,07-1085488,27/09/2022,303,50.5,PJAA,"Erection, Operation & Dismantl",3006,Hire Of Equipment,Places
Blackpool Council,1136685,Sara Blackburn T/A Make It Wild,611376,0018,27/09/2022,300,0,PJW,Management - Places - Illumina,3456,Payment To Artists,Places
Blackpool Council,1126236,New Concept Security Ltd,611378,162511,28/09/2022,7601.86,1266.98,SECURE,Security Services,3401,General Services,Community & Env Services
Blackpool Council,1126236,New Concept Security Ltd,611379,162507,28/09/2022,6245.1,1040.85,SECURE,Security Services,3401,General Services,Community & Env Services
Blackpool Council,1011952,Empowerment,611382,2198,27/09/2022,900,0,JPA,Children Centres,0911,Training Expenses,Children'S Services
Blackpool Council,1114704,Morson Human Resources Ltd,611383,HS446568,28/09/2022,2772,462,CTAHHI,Tramway Extention,6506,Consultants Fees,Capital - Commnctn & Regen
Blackpool Council,1118699,Enveco Blackpool Waste Services Ltd,611384,30174386,27/09/2022,438.6,73.1,ENGINE,Engineering,2002,Repairs And Maintenance,Community & Env Services
Blackpool Council,1118699,Enveco Blackpool Waste Services Ltd,611384,30174386,27/09/2022,718.38,119.73,ENGINE,Engineering,2004,Running Costs-Diesel,Community & Env Services
Blackpool Council,1118699,Enveco Blackpool Waste Services Ltd,611385,30174396,27/09/2022,4896.72,816.12,ENGINE,Engineering,2002,Repairs And Maintenance,Community & Env Services
Blackpool Council,1118699,Enveco Blackpool Waste Services Ltd,611385,30174396,27/09/2022,743.76,123.96,ENGINE,Engineering,2004,Running Costs-Diesel,Community & Env Services
Blackpool Council,1006940,Smiths Equipment Hire Ltd - Smiths Training,611387,01-1033952,27/09/2022,790.5,131.75,FMAB,Commercial Propereties,1064,Delegated Maintenance,Resources
Blackpool Council,1134607,Ulok Ltd,611388,INV-1527,27/09/2022,324,0,HOPB,Housing Options,4004,Management Fees,Chief Executive
Blackpool Council,1006944,Siemens Financial Services Ltd,611390,244/22/0180850,28/09/2022,2947.64,491.27,APFBAB,Vitaline,3711,Subscriptions,Adult & Families
Blackpool Council,1073580,Blackpool Sound And Light,611395,3008,28/09/2022,3681.48,613.58,PJHA,"Depot, Management & Admin",3308,Servicing,Places
Blackpool Council,1087234,Aitch Tools & Fasteners Ltd,611401,064300,28/09/2022,252,42,ZM0018,Highways & Engineering,9511A,Stocks Efin,Blackpool Services
Blackpool Council,1087234,Aitch Tools & Fasteners Ltd,611402,064095,28/09/2022,637.2,0,ZM0018,Highways & Engineering,9773,Orders Received Not Invoiced,Blackpool Services
Blackpool Council,1087234,Aitch Tools & Fasteners Ltd,611402,064095,28/09/2022,764.64,127.44,ZM0018,Highways & Engineering,9511A,Stocks Efin,Blackpool Services
Blackpool Council,1108451,Poulton Pets Ltd T/A Sundown Kennels,611451,BI0082,28/09/2022,2579.4,429.9,PYEP,Environmental Protection,4502,Dog Kennelling Contractor,Community & Env Services
Blackpool Council,1116288,Amas Ltd - Common Receipts Account,611463,202200000656,28/09/2022,184125,0,HJI,Growth Investments,1301,Rent & Hire Of Premises,Places
Blackpool Council,1011369,Lancashire County Council,611473,5200258840,28/09/2022,1992,0,FR5001,Concessionary Fares,3401,General Services,Budgets Outside Cash Limits
Blackpool Council,1007206,Road Safety Services Ltd,611476,90484,28/09/2022,495,82.5,ZM0003,Planning,9624,Rechargeable Works Account,Place Directorate
Blackpool Council,1058510,Lifeline Language Services Ltd,611484,0522074,29/09/2022,270,45,JEA,Senior Management,5507,Personal,Children'S Services
Blackpool Council,1058510,Lifeline Language Services Ltd,611485,0622027,30/09/2022,309,51.5,JEA,Senior Management,5507,Personal,Children'S Services
Blackpool Council,1134977,Darwen Terracotta Limited,611488,417,28/09/2022,926.38,154.4,CGTCCD,Heritage Action Zone,6501,Contract Payments,Capital - Commnctn & Regen
Blackpool Council,1032438,Civica Election Services Ltd,611501,CES2202730,28/09/2022,10489.97,1748.33,BGA,Electoral Services,3511,Postages,Governance & Partnerships
Blackpool Council,1129132,Mhr International Uk Ltd,611502,SIN161156,28/09/2022,1296,216,CGRESO,Resources Schemes,6526,I.T. Software Purchase,Capital - Resources
Blackpool Council,1071702,Links Signs & Graphics Ltd,611503,LSGI34144,28/09/2022,660,110,CGTCCD,Heritage Action Zone,6501,Contract Payments,Capital - Commnctn & Regen
Blackpool Council,1129132,Mhr International Uk Ltd,611504,SIN161067,28/09/2022,4536,756,CGRESO,Resources Schemes,6526,I.T. Software Purchase,Capital - Resources
Blackpool Council,1090795,Aunty Social,611509,AS22-05,28/09/2022,2760.35,0,CGTCCD,Heritage Action Zone,6501,Contract Payments,Capital - Commnctn & Regen
Blackpool Council,1103450,Blackpool Entertainment Company Limited,611511,INV006232,28/09/2022,1488.48,248.08,CGTCCD,Heritage Action Zone,6501,Contract Payments,Capital - Commnctn & Regen
Blackpool Council,1118715,Alison Black Ltd T/A Sportmax,611513,121614,28/09/2022,1316.58,219.43,LEISUR,Leisure Management,3815,Saleable Goods,Community & Env Services
Blackpool Council,1112369,We Are Sunday Ltd,611514,032194,28/09/2022,1058.4,176.4,HJA,Growth,0921,Advertising (Staff Vac.),Places
Blackpool Council,1129132,Mhr International Uk Ltd,611527,SIN161381,29/09/2022,648,108,CGRESO,Resources Schemes,6526,I.T. Software Purchase,Capital - Resources
Blackpool Council,1116610,Smart Video & Sensing Limited,611532,101394,30/09/2022,522,87,CTACBA,Ltp Scheme 21/22,6501,Contract Payments,Capital - Commnctn & Regen
Blackpool Council,1053261,Ad Systems (Uk) Limited,611540,INV-10338,29/09/2022,1634.64,272.44,CGRESO,Resources Schemes,6507,Materials,Capital - Resources
Blackpool Council,1096607,Cutlers Property Consultancy (Services),611551,0070514,30/09/2022,2470,0,AEE,Estates,0781,Contracted,Resources
Blackpool Council,1096607,Cutlers Property Consultancy (Services),611552,0070517,30/09/2022,2340,0,AEE,Estates,0781,Contracted,Resources
Blackpool Council,1096607,Cutlers Property Consultancy (Services),611553,0070518,30/09/2022,2600,0,AEE,Estates,0781,Contracted,Resources
Blackpool Council,1096607,Cutlers Property Consultancy (Services),611554,0070520,30/09/2022,3120,0,AEE,Estates,0781,Contracted,Resources
Blackpool Council,1006385,University Of Central Lancashire,611556,5110891,29/09/2022,4396.01,0,DDC,Partnerships & Business Dev,3801,Other Expenses,Places
Blackpool Council,1046723,Brightprint (Fac008 Payment Only),611559,34799,29/09/2022,546,91,FP4801,Bus Shelters,3301,Printing,Places
Blackpool Council,1083256,Community Lighting Partnership (Bpool) Ltd,611561,153,28/09/2022,548513.5,91418.92,FL1259,Pfi Management Costs,4501,Private Contractors,Community & Env Services
Blackpool Council,1027465,Ove Arup & Partners Limited,611562,88-2203926,29/09/2022,9587.4,1597.9,PLBAAA,Development Control,0981,Professional Fees,Places
Blackpool Council,1018184,Blackpool Skip Hire Ltd,611569,043150,29/09/2022,656.54,109.42,CEMCRE,Cems Crems Etc,3801,Other Expenses,Governance & Partnerships
Blackpool Council,1134971,Uk Green Waste & Remediation Ltd,611571,INV-0149,28/09/2022,72000,12000,CGICAG,Town Deal,6501,Contract Payments,Capital - Commnctn & Regen
Blackpool Council,1129634,Av-Id,611573,244,29/09/2022,948.9,158.15,FGAA,Ict Corporate Services,3531,Computer-H'Ware Purchase,Resources
Blackpool Council,1103450,Blackpool Entertainment Company Limited,611636,INV005954,30/09/2022,8400,1400,FMAK,Acquisitions 9/10,1301,Rent & Hire Of Premises,Places
Blackpool Council,1100566,Central Property Management,611637,811,29/09/2022,680,0,HOPB,Housing Options,1301,Rent & Hire Of Premises,Chief Executive
Blackpool Council,1011369,Lancashire County Council,611640,5200259446,29/09/2022,2639,0,FR5001,Concessionary Fares,3401,General Services,Budgets Outside Cash Limits
Blackpool Council,1125489,Garth Steven Gratrix T/A Abingdon Studios Ltd,611642,ABS50,29/09/2022,2000,0,CGTCCD,Heritage Action Zone,6501,Contract Payments,Capital - Commnctn & Regen
Blackpool Council,1119368,Sd Wind Energy,611651,0000001851,30/09/2022,5526,921,FB0004,Energy & Sustainability,1202,Electricity,Resources
Blackpool Council,1118699,Enveco Blackpool Waste Services Ltd,611652,30174390,29/09/2022,7371,1228.5,PYLA,Licencing,3424,Registration & Inspection,Community & Env Services
Blackpool Council,1086788,Idox Software Ltd,611659,7039577,30/09/2022,43200,7200,CWAN,Children With Additional Needs,3532,Comp-Running & License Costs,Children'S Services
Blackpool Council,1134332,Epe Reynell Advertising Limited,611669,INV_415838,29/09/2022,869.18,144.86,TRA,Traffic Management,4501,Private Contractors,Community & Env Services
Blackpool Council,1123520,Education Software Solutions Ltd,611675,6004180519,30/09/2022,3393,565.5,EDDIV,Education Diversity,3711,Subscriptions,Children'S Services
Blackpool Council,1006292,Vodafone Corporate Ltd,611690,RO14986,30/09/2022,707.79,117.96,FGAA,Ict Corporate Services,3531,Computer-H'Ware Purchase,Resources
Blackpool Council,1006292,Vodafone Corporate Ltd,611739,RO23754,30/09/2022,14832,2472,FGAA,Ict Corporate Services,3531,Computer-H'Ware Purchase,Resources
Blackpool Council,1006292,Vodafone Corporate Ltd,611740,RO23755,30/09/2022,6180,1030,FGAA,Ict Corporate Services,3531,Computer-H'Ware Purchase,Resources
Blackpool Council,1006292,Vodafone Corporate Ltd,611741,RO40309,30/09/2022,11094.9,1849.15,FGAA,Ict Corporate Services,3531,Computer-H'Ware Purchase,Resources
Blackpool Council,1087805,Blackpool Fc Community Trust,611745,BFCCT1364,30/09/2022,668,0,EDDIV,Education Diversity,4101,Other Local Authorities,Children'S Services
Blackpool Council,1011675,Bambers Remedial Contractors Limited,611764,17866,30/09/2022,6041,0,CXAAA,Local Authority Dwellings,6501,Contract Payments,Capital - Chief Executive
Blackpool Council,1011675,Bambers Remedial Contractors Limited,611764,17866,30/09/2022,322,0,CXC31,Hra Capital Programme 2022/23,6501,Contract Payments,Capital - Chief Executive
Blackpool Council,1011675,Bambers Remedial Contractors Limited,611765,17890,30/09/2022,6735.5,0,CXAAA,Local Authority Dwellings,6501,Contract Payments,Capital - Chief Executive
Blackpool Council,1011675,Bambers Remedial Contractors Limited,611768,17886,30/09/2022,3925,0,CX4002,Disabled Facilities Grants,6501,Contract Payments,Capital - Adult Social Care
Blackpool Council,1120105,Complex Cleaning Supplies Ltd,611880,SCN-0248735,30/09/2022,454.01,75.67,BLCLEA,Building Cleaning,1604,Window Cleaning,Community & Env Services
Blackpool Council,1008551,Glengarry Court Care Home,4655445,456953,21/09/2022,10259.92,0,MVCBD,Residential Placements,7582,Indep Sect Residential Homes,Adult & Families
Blackpool Council,1008551,Glengarry Court Care Home,4655445,456953,21/09/2022,3933.48,0,MVBBD,Residential Placements,4505,Residential Homes,Adult & Families
Blackpool Council,1008551,Glengarry Court Care Home,4665129,460630,21/09/2022,5393.47,0,MVCBD,Residential Placements,7582,Indep Sect Residential Homes,Adult & Families
Blackpool Council,1011952,Empowerment,4718566,2051,21/09/2022,266.2,0,LM0401,Safeguarding Vulnerable Adults,4501,Private Contractors,Adult & Families
Blackpool Council,1118238,Keskin Tencon Limited,4726183,2122181,07/09/2022,300,50,CX4002,Disabled Facilities Grants,6501,Contract Payments,Capital - Adult Social Care
Blackpool Council,1115716,North Liverpool Construction Ltd (Fac067),4731875,129751,07/09/2022,3037.46,506.24,CXXXX,Hra Non Specific Contingency,6501,Contract Payments,Capital - Chief Executive
Blackpool Council,1105953,Simple Servicing Works,4733592,1013,21/09/2022,397.2,66.2,MTEAJ,Equipment,5401,Aids To Daily Living,Adult & Families
Blackpool Council,1115716,North Liverpool Construction Ltd (Fac067),4736115,129753,07/09/2022,888.1,148.02,CXXXX,Hra Non Specific Contingency,6501,Contract Payments,Capital - Chief Executive
Blackpool Council,1043100,Traffic Enforcement Centre,4737757,RBP02322,15/09/2022,2349,0,PARADM,Parking Administration,3801,Other Expenses,Budgets Outside Cash Limits
Blackpool Council,1107817,Evolution Construction Group Ltd,4739326,2478,14/09/2022,2853.4,475.57,CXXXX,Hra Non Specific Contingency,6501,Contract Payments,Capital - Chief Executive
Blackpool Council,1107817,Evolution Construction Group Ltd,4739330,2517,14/09/2022,4053.01,675.5,CXXXX,Hra Non Specific Contingency,6501,Contract Payments,Capital - Chief Executive
Blackpool Council,1121638,REDACTED PERSONAL INFO,4739708,UNI BURSARY - YEAR 3,01/09/2022,666.67,0,JEA,Senior Management,5555,Educational Support,Children'S Services
Blackpool Council,1115088,REDACTED PERSONAL INFO,4739709,HE BURSARY - YEAR 3,01/09/2022,666.67,0,JEA,Senior Management,5555,Educational Support,Children'S Services
Blackpool Council,1117457,Wrps Ltd,4742373,11076,07/09/2022,917.32,152.89,CXC31,Hra Capital Programme 2022/23,6501,Contract Payments,Capital - Chief Executive
Blackpool Council,1103360,Complete Background Screening Ltd,4743211,INV-24251,06/09/2022,311.4,51.9,FK1005,Dbs Recharging,6207,Personnel Services,Chief Executive
Blackpool Council,1111328,Hadley Fraser Ltd,4743220,BLA137,22/09/2022,7964.16,1327.36,LM0401,Safeguarding Vulnerable Adults,4501,Private Contractors,Adult & Families
Blackpool Council,1123190,Cder Group Limted,4744014,220233,02/09/2022,2990.5,498.42,FBBEA,"Income, Recovery & Debtors",3807,Legal & Court Costs,Resources
Blackpool Council,1123190,Cder Group Limted,4744015,220234,02/09/2022,270,45,FBBEA,"Income, Recovery & Debtors",3807,Legal & Court Costs,Resources
Blackpool Council,1134893,REDACTED PERSONAL INFO,4744019,271381,01/09/2022,570,95,BAAA,Legal Services,4707,Counsels Fees,Governance & Partnerships
Blackpool Council,1105003,Socal Healthcare Ltd,4744288,0822-229-230,05/09/2022,351.8,0,LM0401,Safeguarding Vulnerable Adults,4501,Private Contractors,Adult & Families
Blackpool Council,1097947,REDACTED PERSONAL INFO,4744293,469207,01/09/2022,1170,195,BAAA,Legal Services,4707,Counsels Fees,Governance & Partnerships
Blackpool Council,1097947,REDACTED PERSONAL INFO,4744294,469208,01/09/2022,1170,195,BAAA,Legal Services,4707,Counsels Fees,Governance & Partnerships
Blackpool Council,1106677,REDACTED PERSONAL INFO,4744295,446757,02/09/2022,1380,230,BAAA,Legal Services,4707,Counsels Fees,Governance & Partnerships
Blackpool Council,1113969,REDACTED PERSONAL INFO,4744297,270364,02/09/2022,300,50,BAAA,Legal Services,4707,Counsels Fees,Governance & Partnerships
Blackpool Council,1088102,Whistl Uk Limited,4744308,IN18US22003654,02/09/2022,5442.96,907.16,FCADA,Customer Services,3511,Postages,Resources
Blackpool Council,1044395,Sellick Partnership Limited,4744309,INV428432,07/09/2022,2121.41,353.57,BAAA,Legal Services,0793,Supply Cost Of Other Agency,Governance & Partnerships
Blackpool Council,1054796,Bolton Gate Services Ltd,4744343,SI0077688,01/09/2022,483,80.5,FMAE,Civic Centre,1012,Premises Maint-Priv.Contractor,Resources
Blackpool Council,1054796,Bolton Gate Services Ltd,4744344,SI0077689,01/09/2022,471,78.5,FMAE,Civic Centre,1012,Premises Maint-Priv.Contractor,Resources
Blackpool Council,1130425,Sure Maintenance,4744369,334927,02/09/2022,262.2,43.7,AER,Dual Use Properties,1012,Premises Maint-Priv.Contractor,Resources
Blackpool Council,1107100,Nonstop Consulting Ltd,4744377,209250,01/09/2022,2114.33,352.39,JBT,Looked After Children,0791,Temp/Relief (Bureau Staff),Children'S Services
Blackpool Council,1107100,Nonstop Consulting Ltd,4744394,209427,01/09/2022,2008.66,334.78,JAH,Duty And Assessment,0791,Temp/Relief (Bureau Staff),Children'S Services
Blackpool Council,1115716,North Liverpool Construction Ltd (Fac067),4744453,129790,07/09/2022,891.49,148.58,CXC31,Hra Capital Programme 2022/23,6501,Contract Payments,Capital - Chief Executive
Blackpool Council,1115716,North Liverpool Construction Ltd (Fac067),4744454,129796,07/09/2022,396,66,MVA,18-64,5401,Aids To Daily Living,Adult & Families
Blackpool Council,1115716,North Liverpool Construction Ltd (Fac067),4744455,129797,07/09/2022,384,64,MVA,18-64,5401,Aids To Daily Living,Adult & Families
Blackpool Council,1115716,North Liverpool Construction Ltd (Fac067),4744456,129798,07/09/2022,780,130,CXAAA,Local Authority Dwellings,6501,Contract Payments,Capital - Chief Executive
Blackpool Council,1115716,North Liverpool Construction Ltd (Fac067),4744457,129799,07/09/2022,1092,182,MVBBJ,Equipment,5401,Aids To Daily Living,Adult & Families
Blackpool Council,1115716,North Liverpool Construction Ltd (Fac067),4744458,129800,07/09/2022,456,76,MVBBJ,Equipment,5401,Aids To Daily Living,Adult & Families
Blackpool Council,1115716,North Liverpool Construction Ltd (Fac067),4744459,129801,07/09/2022,468,78,MVBBJ,Equipment,5401,Aids To Daily Living,Adult & Families
Blackpool Council,1115716,North Liverpool Construction Ltd (Fac067),4744460,129791,07/09/2022,1088.18,181.36,CXC31,Hra Capital Programme 2022/23,6501,Contract Payments,Capital - Chief Executive
Blackpool Council,1115716,North Liverpool Construction Ltd (Fac067),4744461,129792,07/09/2022,1438.62,239.77,CXC31,Hra Capital Programme 2022/23,6501,Contract Payments,Capital - Chief Executive
Blackpool Council,1115716,North Liverpool Construction Ltd (Fac067),4744462,129793,07/09/2022,2370,395,CXC31,Hra Capital Programme 2022/23,6501,Contract Payments,Capital - Chief Executive
Blackpool Council,1115716,North Liverpool Construction Ltd (Fac067),4744463,129794,07/09/2022,1446,241,CXC31,Hra Capital Programme 2022/23,6501,Contract Payments,Capital - Chief Executive
Blackpool Council,1115716,North Liverpool Construction Ltd (Fac067),4744469,129802,07/09/2022,906,151,MVBBJ,Equipment,5401,Aids To Daily Living,Adult & Families
Blackpool Council,1115716,North Liverpool Construction Ltd (Fac067),4744470,129803,07/09/2022,1080,180,MVBBJ,Equipment,5401,Aids To Daily Living,Adult & Families
Blackpool Council,1115716,North Liverpool Construction Ltd (Fac067),4744471,129804,07/09/2022,312,52,MVBBJ,Equipment,5401,Aids To Daily Living,Adult & Families
Blackpool Council,1115716,North Liverpool Construction Ltd (Fac067),4744474,129806,07/09/2022,708,118,MVBBJ,Equipment,5401,Aids To Daily Living,Adult & Families
Blackpool Council,1115716,North Liverpool Construction Ltd (Fac067),4744476,129807,07/09/2022,468,78,MVBBJ,Equipment,5401,Aids To Daily Living,Adult & Families
Blackpool Council,1115716,North Liverpool Construction Ltd (Fac067),4744477,129808,07/09/2022,708,118,CXC31,Hra Capital Programme 2022/23,6501,Contract Payments,Capital - Chief Executive
Blackpool Council,1115716,North Liverpool Construction Ltd (Fac067),4744478,129809,07/09/2022,1032,172,MVBBJ,Equipment,5401,Aids To Daily Living,Adult & Families
Blackpool Council,1026811,Stannah Lift Services Ltd,4744488,1085441704,01/09/2022,1897.1,316.18,MVA,18-64,5401,Aids To Daily Living,Adult & Families
Blackpool Council,1026811,Stannah Lift Services Ltd,4744488,1085441704,01/09/2022,1129.19,188.2,MVBBJ,Equipment,5401,Aids To Daily Living,Adult & Families
Blackpool Council,1130425,Sure Maintenance,4744753,334924,02/09/2022,342,57,PJHA,"Depot, Management & Admin",1012,Premises Maint-Priv.Contractor,Places
Blackpool Council,1008551,Glengarry Court Care Home,4745978,501224,21/09/2022,2435.76,0,MSDAD,Residential Placements,4505,Residential Homes,Adult & Families
Blackpool Council,1069397,REDACTED PERSONAL INFO,4746806,460018,02/09/2022,960,160,BAAA,Legal Services,4707,Counsels Fees,Governance & Partnerships
Blackpool Council,1136146,REDACTED PERSONAL INFO,4746807,301/23,02/09/2022,1354.75,225.79,JEA,Senior Management,4715,Other Fees,Children'S Services
Blackpool Council,1108346,Lancashire Interpretation & Translation Serv,4746814,LITS/080822/ZC,05/09/2022,361.2,60.2,MVBAK,Other Services,3419,Interpreters Fees,Adult & Families
Blackpool Council,1107817,Evolution Construction Group Ltd,4747164,2548,14/09/2022,672.3,112.05,CXC31,Hra Capital Programme 2022/23,6501,Contract Payments,Capital - Chief Executive
Blackpool Council,1107817,Evolution Construction Group Ltd,4747165,2546,14/09/2022,1603.8,267.3,CXXXX,Hra Non Specific Contingency,6501,Contract Payments,Capital - Chief Executive
Blackpool Council,1107817,Evolution Construction Group Ltd,4747166,2549,14/09/2022,978.84,163.14,CXXXX,Hra Non Specific Contingency,6501,Contract Payments,Capital - Chief Executive
Blackpool Council,1123472,Lancashire Care Ltd T/A Lastminute Nursing,4747237,15474,26/09/2022,3502.26,0,MTEBF,Home Care,4512,Other Care Block Payments,Adult & Families
Blackpool Council,1123472,Lancashire Care Ltd T/A Lastminute Nursing,4747238,15518,26/09/2022,4846.5,0,MTEBF,Home Care,4512,Other Care Block Payments,Adult & Families
Blackpool Council,1123190,Cder Group Limted,4747239,221060,09/09/2022,2584.8,430.8,FBBEA,"Income, Recovery & Debtors",3807,Legal & Court Costs,Resources
Blackpool Council,1123190,Cder Group Limted,4747240,221061,09/09/2022,639.2,106.53,FBBEA,"Income, Recovery & Debtors",3807,Legal & Court Costs,Resources
Blackpool Council,1115716,North Liverpool Construction Ltd (Fac067),4747248,129816,13/09/2022,2940,490,CXC31,Hra Capital Programme 2022/23,6501,Contract Payments,Capital - Chief Executive
Blackpool Council,1115716,North Liverpool Construction Ltd (Fac067),4747249,129817,09/09/2022,3605.26,600.88,CXC31,Hra Capital Programme 2022/23,6501,Contract Payments,Capital - Chief Executive
Blackpool Council,1115716,North Liverpool Construction Ltd (Fac067),4747250,129818,09/09/2022,3166.7,527.76,CXC31,Hra Capital Programme 2022/23,6501,Contract Payments,Capital - Chief Executive
Blackpool Council,1115716,North Liverpool Construction Ltd (Fac067),4747251,129815,09/09/2022,712.13,118.69,CXC31,Hra Capital Programme 2022/23,6501,Contract Payments,Capital - Chief Executive
Blackpool Council,1007467,Premier Paper Group Ltd,4747509,2232509,02/09/2022,639.48,106.58,PRINTS,Print Blackpool,3344,Paper,Places
Blackpool Council,1010104,Canon (Uk ) Ltd,4747515,2208800056517,02/09/2022,1856.68,309.45,PRINTS,Print Blackpool,3004,Operating Lease,Places
Blackpool Council,1011995,Technical & Electrical Services Ltd,4747537,C 10171,01/09/2022,3396.38,566.06,CXC31,Hra Capital Programme 2022/23,6501,Contract Payments,Capital - Chief Executive
Blackpool Council,1011995,Technical & Electrical Services Ltd,4747538,C 10170,01/09/2022,2154.02,359,CXC31,Hra Capital Programme 2022/23,6501,Contract Payments,Capital - Chief Executive
Blackpool Council,1054707,REDACTED PERSONAL INFO,4747552,458698,08/09/2022,5844,974,BAAA,Legal Services,4707,Counsels Fees,Governance & Partnerships
Blackpool Council,1113969,REDACTED PERSONAL INFO,4747565,270364,08/09/2022,840,140,BAAA,Legal Services,4707,Counsels Fees,Governance & Partnerships
Blackpool Council,1091377,REDACTED PERSONAL INFO,4747566,270626,07/09/2022,1080,180,BAAA,Legal Services,4707,Counsels Fees,Governance & Partnerships
Blackpool Council,1106677,REDACTED PERSONAL INFO,4747568,446757 090822,08/09/2022,978,163,BAAA,Legal Services,4707,Counsels Fees,Governance & Partnerships
Blackpool Council,1134659,Dr. Kim Whitaker Ltd,4747573,5607-1,02/09/2022,815.04,135.84,JEA,Senior Management,4712,Experts Fees,Children'S Services
Blackpool Council,1107100,Nonstop Consulting Ltd,4747582,209802,08/09/2022,1348.6,224.77,JBT,Looked After Children,0791,Temp/Relief (Bureau Staff),Children'S Services
Blackpool Council,1105889,3d Environmental Limited,4747609,BPCBCH-0051,01/09/2022,736.54,122.76,CXXXX,Hra Non Specific Contingency,6501,Contract Payments,Capital - Chief Executive
Blackpool Council,1135065,Paramount Children'S Services,4747742,PCS_AM_004,02/09/2022,23250,0,JEA,Senior Management,4501,Private Contractors,Children'S Services
Blackpool Council,1128694,Imap Centre Limited,4747744,R0062,07/09/2022,43488.57,0,JEA,Senior Management,4501,Private Contractors,Children'S Services
Blackpool Council,1135702,Apollo Home Healthcare Limited,4747753,55429,02/09/2022,954,0,JEA,Senior Management,5507,Personal,Children'S Services
Blackpool Council,1006586,H Jenkinson & Co Ltd,4747772,SINV00938726,02/09/2022,2384.88,397.48,JPA,Children Centres,1012,Premises Maint-Priv.Contractor,Children'S Services
Blackpool Council,1093585,Jpf Systems Limited,4747802,919142,02/09/2022,341.81,56.97,AEB,Buildings,1012,Premises Maint-Priv.Contractor,Resources
Blackpool Council,1094411,Fox Fire Security Limited,4747811,INV 3747,06/09/2022,264,44,AEB,Buildings,1012,Premises Maint-Priv.Contractor,Resources
Blackpool Council,1120588,G2 Recruitment Solutions,4747819,106622,09/09/2022,1395,232.5,AEF,Facilities,0791,Temp/Relief (Bureau Staff),Resources
Blackpool Council,1115716,North Liverpool Construction Ltd (Fac067),4747821,129819,14/09/2022,2550,425,CXC31,Hra Capital Programme 2022/23,6501,Contract Payments,Capital - Chief Executive
Blackpool Council,1115716,North Liverpool Construction Ltd (Fac067),4747822,129820,14/09/2022,764.56,127.43,CXC31,Hra Capital Programme 2022/23,6501,Contract Payments,Capital - Chief Executive
Blackpool Council,1115716,North Liverpool Construction Ltd (Fac067),4747823,129821,14/09/2022,260.41,43.4,CXXXX,Hra Non Specific Contingency,6501,Contract Payments,Capital - Chief Executive
Blackpool Council,1115716,North Liverpool Construction Ltd (Fac067),4747824,129822,14/09/2022,312,52,MVBBJ,Equipment,5401,Aids To Daily Living,Adult & Families
Blackpool Council,1115716,North Liverpool Construction Ltd (Fac067),4747825,129823,14/09/2022,312,52,MVBBJ,Equipment,5401,Aids To Daily Living,Adult & Families
Blackpool Council,1115716,North Liverpool Construction Ltd (Fac067),4747826,129824,14/09/2022,576,96,MVA,18-64,5401,Aids To Daily Living,Adult & Families
Blackpool Council,1033908,Northumberland County Council,4747838,246146,02/09/2022,37200,0,JEA,Senior Management,4501,Private Contractors,Children'S Services
Blackpool Council,1068962,Merlin Entertainments(Sea Life Blackpool Ltd),4747881,INV14004-00004675,02/09/2022,269.24,44.86,ZX0501,"Tourism,Promotions & Conferen.",9687,Tourism Sale Of Tickets,Place Directorate
Blackpool Council,1088102,Whistl Uk Limited,4747882,IN18US22003816,09/09/2022,5021.36,836.89,FCADA,Customer Services,3511,Postages,Resources
Blackpool Council,1011868,W H Tarmacadam Limited,4747903,6313,01/09/2022,379.2,63.2,CXC31,Hra Capital Programme 2022/23,6501,Contract Payments,Capital - Chief Executive
Blackpool Council,1118765,Dwf Law Llp,4747907,157-0315962,09/09/2022,569.34,94.89,HJA,Growth,3807,Legal & Court Costs,Places
Blackpool Council,1044395,Sellick Partnership Limited,4747988,INV429686,14/09/2022,1620.98,270.16,BAAA,Legal Services,0793,Supply Cost Of Other Agency,Governance & Partnerships
Blackpool Council,1039034,Contract Floors Ltd,4748003,INV-2047,01/09/2022,1314,219,CXC31,Hra Capital Programme 2022/23,6501,Contract Payments,Capital - Chief Executive
Blackpool Council,1039034,Contract Floors Ltd,4748015,INV-2049,01/09/2022,1212,202,CXC31,Hra Capital Programme 2022/23,6501,Contract Payments,Capital - Chief Executive
Blackpool Council,1039034,Contract Floors Ltd,4748016,INV-2050,01/09/2022,876,146,CXC31,Hra Capital Programme 2022/23,6501,Contract Payments,Capital - Chief Executive
Blackpool Council,1011995,Technical & Electrical Services Ltd,4748024,VR 22642,01/09/2022,377.38,62.9,CXC31,Hra Capital Programme 2022/23,6501,Contract Payments,Capital - Chief Executive
Blackpool Council,1011995,Technical & Electrical Services Ltd,4748025,VR 22643,01/09/2022,377.38,62.9,CXC31,Hra Capital Programme 2022/23,6501,Contract Payments,Capital - Chief Executive
Blackpool Council,1104767,North Star Environmental Ltd,4748026,INV-26520,14/09/2022,1170,195,CXC31,Hra Capital Programme 2022/23,6501,Contract Payments,Capital - Chief Executive
Blackpool Council,1134092,Point,4748108,INV-0236,05/09/2022,4723.33,0,CWAN,Children With Additional Needs,3711,Subscriptions,Children'S Services
Blackpool Council,1105003,Socal Healthcare Ltd,4748907,0822-233-234,05/09/2022,350.45,0,LM0401,Safeguarding Vulnerable Adults,4501,Private Contractors,Adult & Families
Blackpool Council,1111078,Dr Y P Shukla,4748919,30/2022,22/09/2022,1437.35,0,LM0401,Safeguarding Vulnerable Adults,4501,Private Contractors,Adult & Families
Blackpool Council,1132514,Personnel Leasing Limited,4748921,INVBP0114,07/09/2022,2098.38,349.73,JBT,Looked After Children,0791,Temp/Relief (Bureau Staff),Children'S Services
Blackpool Council,1118652,Paradigm Professional Consultancy Ltd,4748995,V66V122178,02/09/2022,2088,348,JAB,Locality,0791,Temp/Relief (Bureau Staff),Children'S Services
Blackpool Council,1011995,Technical & Electrical Services Ltd,4749006,C 10114,01/09/2022,1886.88,314.48,CXC31,Hra Capital Programme 2022/23,6501,Contract Payments,Capital - Chief Executive
Blackpool Council,1105240,Hanzak Ltd T/A Dr Rashad Nazir,4749175,21079RN,14/09/2022,1099.05,0,LM0401,Safeguarding Vulnerable Adults,4501,Private Contractors,Adult & Families
Blackpool Council,1111078,Dr Y P Shukla,4749176,31/2022,22/09/2022,1783.65,0,LM0401,Safeguarding Vulnerable Adults,4501,Private Contractors,Adult & Families
Blackpool Council,1123472,Lancashire Care Ltd T/A Lastminute Nursing,4749177,15564,26/09/2022,3456,0,MTEBF,Home Care,4512,Other Care Block Payments,Adult & Families
Blackpool Council,1135702,Apollo Home Healthcare Limited,4749236,55676,09/09/2022,954,0,JAB,Locality,4403,Special Needs - Children,Children'S Services
Blackpool Council,1132514,Personnel Leasing Limited,4749465,INVBP0116,14/09/2022,2151.3,358.55,JBT,Looked After Children,0791,Temp/Relief (Bureau Staff),Children'S Services
Blackpool Council,1132514,Personnel Leasing Limited,4749466,INVBP0115,14/09/2022,2100.72,350.12,JBT,Looked After Children,0791,Temp/Relief (Bureau Staff),Children'S Services
Blackpool Council,1107100,Nonstop Consulting Ltd,4749470,UK210225,15/09/2022,2114.33,352.39,JBT,Looked After Children,0791,Temp/Relief (Bureau Staff),Children'S Services
Blackpool Council,1114632,Gs Social Care Solutions Ltd,4749480,SI-14402,13/09/2022,3600,0,JEA,Senior Management,5505,Travel,Children'S Services
Blackpool Council,1117457,Wrps Ltd,4749678,11157,07/09/2022,1588.8,264.8,CXC31,Hra Capital Programme 2022/23,6501,Contract Payments,Capital - Chief Executive
Blackpool Council,1117457,Wrps Ltd,4749679,11169,08/09/2022,3705.62,617.6,CXC31,Hra Capital Programme 2022/23,6501,Contract Payments,Capital - Chief Executive
Blackpool Council,1117457,Wrps Ltd,4749685,11204,16/09/2022,9456,1576,CXC31,Hra Capital Programme 2022/23,6501,Contract Payments,Capital - Chief Executive
Blackpool Council,1120588,G2 Recruitment Solutions,4749710,106967,16/09/2022,2724,454,AEF,Facilities,0791,Temp/Relief (Bureau Staff),Resources
Blackpool Council,1112992,Key To Independence Ltd,4749716,JLD100822/DH/HIGHFIELD,01/09/2022,475,0,CX4002,Disabled Facilities Grants,6506,Consultants Fees,Capital - Adult Social Care
Blackpool Council,1115668,Greenfield Removals Ltd,4749718,INV-17018,16/09/2022,642.6,107.1,CXC31,Hra Capital Programme 2022/23,6501,Contract Payments,Capital - Chief Executive
Blackpool Council,1115668,Greenfield Removals Ltd,4749720,INV-17021,16/09/2022,760.5,126.75,CXC31,Hra Capital Programme 2022/23,6501,Contract Payments,Capital - Chief Executive
Blackpool Council,1115668,Greenfield Removals Ltd,4749721,INV-17022,16/09/2022,279,46.5,CXC31,Hra Capital Programme 2022/23,6501,Contract Payments,Capital - Chief Executive
Blackpool Council,1115668,Greenfield Removals Ltd,4749724,INV-17025,16/09/2022,1041.6,173.6,CXC31,Hra Capital Programme 2022/23,6501,Contract Payments,Capital - Chief Executive
Blackpool Council,1115668,Greenfield Removals Ltd,4749725,INV-17026,16/09/2022,642.6,107.1,CXC31,Hra Capital Programme 2022/23,6501,Contract Payments,Capital - Chief Executive
Blackpool Council,1115668,Greenfield Removals Ltd,4749727,INV-17028,16/09/2022,654,109,CXC31,Hra Capital Programme 2022/23,6501,Contract Payments,Capital - Chief Executive
Blackpool Council,1011675,Bambers Remedial Contractors Limited,4749971,17715,07/09/2022,1525,0,CX4002,Disabled Facilities Grants,6501,Contract Payments,Capital - Adult Social Care
Blackpool Council,1115668,Greenfield Removals Ltd,4749974,INV-17029,16/09/2022,2520,420,CXC31,Hra Capital Programme 2022/23,6501,Contract Payments,Capital - Chief Executive
Blackpool Council,1115668,Greenfield Removals Ltd,4749975,INV-17030,16/09/2022,628.92,104.82,CXC31,Hra Capital Programme 2022/23,6501,Contract Payments,Capital - Chief Executive
Blackpool Council,1134724,Medico Legal Uk Chambers Limited,4749979,JB17082022SB A F,14/09/2022,259.2,43.2,JEA,Senior Management,4712,Experts Fees,Children'S Services
Blackpool Council,1104767,North Star Environmental Ltd,4750255,INV-26686,16/09/2022,780,130,CXC31,Hra Capital Programme 2022/23,6501,Contract Payments,Capital - Chief Executive
Blackpool Council,1010104,Canon (Uk ) Ltd,4750265,2208800062064,02/09/2022,370.1,61.68,PRINTS,Print Blackpool,3001,Office Equipment Purchase,Places
Blackpool Council,1082681,Ad Merchandise Ltd,4750269,43332,09/09/2022,369.79,61.63,PRINTS,Print Blackpool,3408,Services To Clients,Places
Blackpool Council,1082681,Ad Merchandise Ltd,4750270,43351,16/09/2022,289.2,48.2,PRINTS,Print Blackpool,3408,Services To Clients,Places
Blackpool Council,1088379,Innotech Digital & Display Ltd,4750271,504932,16/09/2022,396.84,66.14,PRINTS,Print Blackpool,3345,Print Stocks,Places
Blackpool Council,1122908,Cavity Extraction Specialists Nw Ltd,4751050,120736,13/09/2022,1335.6,222.6,CXC31,Hra Capital Programme 2022/23,6501,Contract Payments,Capital - Chief Executive
Blackpool Council,1122908,Cavity Extraction Specialists Nw Ltd,4751051,120737,07/09/2022,834,139,CXC31,Hra Capital Programme 2022/23,6501,Contract Payments,Capital - Chief Executive
Blackpool Council,1011675,Bambers Remedial Contractors Limited,4751052,17779,01/09/2022,62072.4,10345.4,CXC31,Hra Capital Programme 2022/23,6501,Contract Payments,Capital - Chief Executive
Blackpool Council,1043100,Traffic Enforcement Centre,4751108,RBP02622,15/09/2022,1548,0,PARADM,Parking Administration,3801,Other Expenses,Budgets Outside Cash Limits
Blackpool Council,1092657,Carter Towler Llp,4751125,E14/0398/MRF,15/09/2022,1270.15,211.69,PAROPE,Parking Operational,3801,Other Expenses,Budgets Outside Cash Limits
Blackpool Council,1044395,Sellick Partnership Limited,4751128,INV431087,21/09/2022,1628.64,271.44,BAAA,Legal Services,0793,Supply Cost Of Other Agency,Governance & Partnerships
Blackpool Council,1117457,Wrps Ltd,4751198,11211,21/09/2022,15221.6,2536.93,CXC31,Hra Capital Programme 2022/23,6501,Contract Payments,Capital - Chief Executive
Blackpool Council,1057348,Venn Group Limited,4751273,3930876,16/09/2022,1560,260,BAAA,Legal Services,0793,Supply Cost Of Other Agency,Governance & Partnerships
Blackpool Council,1077392,Reed Specialist Recruitment Ltd,4751329,E021014991M,08/09/2022,1941.61,323.6,JAB,Locality,0791,Temp/Relief (Bureau Staff),Children'S Services
Blackpool Council,1077392,Reed Specialist Recruitment Ltd,4751329,E021014991M,08/09/2022,6395.25,1065.87,JAH,Duty And Assessment,0791,Temp/Relief (Bureau Staff),Children'S Services
Blackpool Council,1077392,Reed Specialist Recruitment Ltd,4751329,E021014991M,08/09/2022,3883.22,647.2,JBT,Looked After Children,0791,Temp/Relief (Bureau Staff),Children'S Services
Blackpool Council,1077392,Reed Specialist Recruitment Ltd,4751329,E021014991M,08/09/2022,5838.92,973.15,JEA,Senior Management,0791,Temp/Relief (Bureau Staff),Children'S Services
Blackpool Council,1077392,Reed Specialist Recruitment Ltd,4751329,E021014991M,08/09/2022,2082.15,347.01,LM3064,Community Team North,0791,Temp/Relief (Bureau Staff),Adult & Families
Blackpool Council,1077392,Reed Specialist Recruitment Ltd,4751329,E021014991M,08/09/2022,2799.95,466.66,LM3068,Rapid Response,0791,Temp/Relief (Bureau Staff),Adult & Families
Blackpool Council,1077392,Reed Specialist Recruitment Ltd,4751329,E021014991M,08/09/2022,1082.16,180.37,PU0000,Covid Test And Trace,0791,Temp/Relief (Bureau Staff),Public Health
Blackpool Council,1077392,Reed Specialist Recruitment Ltd,4751329,E021014991M,08/09/2022,676.35,112.73,PU0001,Public Health Team,0791,Temp/Relief (Bureau Staff),Public Health
Blackpool Council,1123190,Cder Group Limted,4751330,214905,15/09/2022,6790.14,1131.69,FV6705,Phoenix Commercial Collection,7366,Car Parking Fees,Budgets Outside Cash Limits
Blackpool Council,1123190,Cder Group Limted,4751331,215780,15/09/2022,5413.82,902.3,FV6705,Phoenix Commercial Collection,7366,Car Parking Fees,Budgets Outside Cash Limits
Blackpool Council,1123190,Cder Group Limted,4751332,216677,15/09/2022,4615.87,769.31,FV6705,Phoenix Commercial Collection,7366,Car Parking Fees,Budgets Outside Cash Limits
Blackpool Council,1123190,Cder Group Limted,4751333,217600,15/09/2022,4136.29,689.38,FV6705,Phoenix Commercial Collection,7366,Car Parking Fees,Budgets Outside Cash Limits
Blackpool Council,1123190,Cder Group Limted,4751334,218419,15/09/2022,4708.3,784.72,FV6705,Phoenix Commercial Collection,7366,Car Parking Fees,Budgets Outside Cash Limits
Blackpool Council,1123190,Cder Group Limted,4751335,219301,15/09/2022,4873.97,812.33,FV6705,Phoenix Commercial Collection,7366,Car Parking Fees,Budgets Outside Cash Limits
Blackpool Council,1123190,Cder Group Limted,4751336,220235,15/09/2022,3062.53,510.42,FV6705,Phoenix Commercial Collection,7366,Car Parking Fees,Budgets Outside Cash Limits
Blackpool Council,1011121,Fylde Coast Gate Ltd,4751343,29905,01/09/2022,294,49,CXC31,Hra Capital Programme 2022/23,6501,Contract Payments,Capital - Chief Executive
Blackpool Council,1123190,Cder Group Limted,4751344,221063,15/09/2022,7365.68,1227.61,FV6705,Phoenix Commercial Collection,7366,Car Parking Fees,Budgets Outside Cash Limits
Blackpool Council,1123190,Cder Group Limted,4751345,221838,16/09/2022,5219.63,869.94,FV6705,Phoenix Commercial Collection,7366,Car Parking Fees,Budgets Outside Cash Limits
Blackpool Council,1136139,Astor Hotel Blackpool,4751363,ASTOR001,01/09/2022,3200,0,HOPB,Housing Options,1704,Bed & Breakfast Accomm.,Chief Executive
Blackpool Council,1068962,Merlin Entertainments(Sea Life Blackpool Ltd),4751369,INV14004-00004939,16/09/2022,657.01,109.49,ZX0501,"Tourism,Promotions & Conferen.",9687,Tourism Sale Of Tickets,Place Directorate
Blackpool Council,1107100,Nonstop Consulting Ltd,4751375,UK210475,16/09/2022,1606.92,267.82,JAH,Duty And Assessment,0791,Temp/Relief (Bureau Staff),Children'S Services
Blackpool Council,1117225,REDACTED PERSONAL INFO,4751378,UNI BURSARY,02/09/2022,666.67,0,JEA,Senior Management,5555,Educational Support,Children'S Services
Blackpool Council,1116598,Dc & Mg Associates Ltd,4751760,221715,01/09/2022,2400,400,CXC31,Hra Capital Programme 2022/23,6501,Contract Payments,Capital - Chief Executive
Blackpool Council,1014404,REDACTED PERSONAL INFO,4751791,266061,15/09/2022,1080,180,BAAA,Legal Services,4707,Counsels Fees,Governance & Partnerships
Blackpool Council,1008630,REDACTED PERSONAL INFO,4751795,463172,15/09/2022,1488,248,BAAA,Legal Services,4707,Counsels Fees,Governance & Partnerships
Blackpool Council,1014404,REDACTED PERSONAL INFO,4751796,269776,16/09/2022,1752,292,BAAA,Legal Services,4707,Counsels Fees,Governance & Partnerships
Blackpool Council,1009870,Cooper Nimmo Ltd,4751797,003119,07/09/2022,395.28,0,JEA,Senior Management,4715,Other Fees,Children'S Services
Blackpool Council,1112231,North West Fire Protection Limited,4751798,0110BCH,21/09/2022,912,152,CXC31,Hra Capital Programme 2022/23,6501,Contract Payments,Capital - Chief Executive
Blackpool Council,1115716,North Liverpool Construction Ltd (Fac067),4751800,129838,22/09/2022,510,85,MVBBJ,Equipment,5401,Aids To Daily Living,Adult & Families
Blackpool Council,1048456,R T C,4751801,10793,02/09/2022,2124,354,CXC31,Hra Capital Programme 2022/23,6501,Contract Payments,Capital - Chief Executive
Blackpool Council,1115716,North Liverpool Construction Ltd (Fac067),4751804,129826,22/09/2022,1645.53,274.25,CXXXX,Hra Non Specific Contingency,6501,Contract Payments,Capital - Chief Executive
Blackpool Council,1115716,North Liverpool Construction Ltd (Fac067),4751805,129834.,22/09/2022,273,45.5,MVBBJ,Equipment,5401,Aids To Daily Living,Adult & Families
Blackpool Council,1116675,Pickering Psychology Services Ltd,4751806,PPS4639,16/09/2022,2938.12,489.69,JEA,Senior Management,4712,Experts Fees,Children'S Services
Blackpool Council,1048456,R T C,4751807,10796,02/09/2022,528,88,CXC31,Hra Capital Programme 2022/23,6501,Contract Payments,Capital - Chief Executive
Blackpool Council,1115716,North Liverpool Construction Ltd (Fac067),4751808,129835,22/09/2022,858,143,MVBBJ,Equipment,5401,Aids To Daily Living,Adult & Families
Blackpool Council,1115716,North Liverpool Construction Ltd (Fac067),4751809,129836,22/09/2022,390,65,MVBBJ,Equipment,5401,Aids To Daily Living,Adult & Families
Blackpool Council,1115716,North Liverpool Construction Ltd (Fac067),4751810,129837,22/09/2022,861,143.5,MVBBJ,Equipment,5401,Aids To Daily Living,Adult & Families
Blackpool Council,1115716,North Liverpool Construction Ltd (Fac067),4751811,129828,22/09/2022,630,105,MVBBJ,Equipment,5401,Aids To Daily Living,Adult & Families
Blackpool Council,1115716,North Liverpool Construction Ltd (Fac067),4751812,129829,22/09/2022,1182,197,MVBBJ,Equipment,5401,Aids To Daily Living,Adult & Families
Blackpool Council,1115716,North Liverpool Construction Ltd (Fac067),4751813,129830,22/09/2022,351,58.5,MVBBJ,Equipment,5401,Aids To Daily Living,Adult & Families
Blackpool Council,1115716,North Liverpool Construction Ltd (Fac067),4751815,129832,22/09/2022,1176,196,MVBBJ,Equipment,5401,Aids To Daily Living,Adult & Families
Blackpool Council,1115716,North Liverpool Construction Ltd (Fac067),4751816,129833,22/09/2022,4590,765,MVBBJ,Equipment,5401,Aids To Daily Living,Adult & Families
Blackpool Council,1048456,R T C,4751817,10795,02/09/2022,758.4,126.4,CXC31,Hra Capital Programme 2022/23,6501,Contract Payments,Capital - Chief Executive
Blackpool Council,1048456,R T C,4751818,10798,02/09/2022,4914,819,CXC31,Hra Capital Programme 2022/23,6501,Contract Payments,Capital - Chief Executive
Blackpool Council,1116675,Pickering Psychology Services Ltd,4751873,PPS4650,16/09/2022,2900.94,483.49,JEA,Senior Management,4712,Experts Fees,Children'S Services
Blackpool Council,1105889,3d Environmental Limited,4751875,BPCASC-0062,15/09/2022,734.38,122.4,MSAAK,Other Services,4501,Private Contractors,Adult & Families
Blackpool Council,1118391,Baltimore Consulting Ltd (Contract),4751880,26414,15/09/2022,2712,452,LM5001,Service Manager Secondarymh/Ld,0791,Temp/Relief (Bureau Staff),Adult & Families
Blackpool Council,1123472,Lancashire Care Ltd T/A Lastminute Nursing,4752033,15589,26/09/2022,3132,0,MTEBF,Home Care,4512,Other Care Block Payments,Adult & Families
Blackpool Council,1048456,R T C,4752219,10802,07/09/2022,3768,628,CXC31,Hra Capital Programme 2022/23,6501,Contract Payments,Capital - Chief Executive
Blackpool Council,1080116,Olivia Josephine Care Ltd - Willows Care Home,4753124,504209,07/09/2022,4943.66,0,MGDBD,Residential Placements,7583,Indep Sect Nursing Homes,Adult & Families
Blackpool Council,1080116,Olivia Josephine Care Ltd - Willows Care Home,4753124,504209,07/09/2022,11418.22,0,MGDBD,Residential Placements,4505,Residential Homes,Adult & Families
Blackpool Council,1080116,Olivia Josephine Care Ltd - Willows Care Home,4753126,504107,07/09/2022,626.73,0,MGDBD,Residential Placements,7582,Indep Sect Residential Homes,Adult & Families
Blackpool Council,1080116,Olivia Josephine Care Ltd - Willows Care Home,4753127,504035I,07/09/2022,1637.32,0,MRDBD,Residential Placements,4505,Residential Homes,Adult & Families
Blackpool Council,1089769,Federation Of Jewish Services,4753131,503770,07/09/2022,1532,0,MVCBC,Nursing Placements,4506,Nursing Homes,Adult & Families
Blackpool Council,1124725,Fy Care Ltd,4753468,1004,15/09/2022,1145.1,0,MFABF,Home Care,4507,Domiciliary Care,Adult & Families
Blackpool Council,1124725,Fy Care Ltd,4753469,1005,15/09/2022,1613.55,0,MFABF,Home Care,4507,Domiciliary Care,Adult & Families
Blackpool Council,1009300,Fylde Coast Women'S Aid,4753806,16/22-23,22/09/2022,14719.5,0,DOMABU,Domestic Abuse,5101,Transfer Payments - General,Children'S Services
Blackpool Council,1086148,Chelsea Kindergarten Blackpool Ltd,4753824,004CC,05/09/2022,1200,0,CWAN,Children With Additional Needs,4403,Special Needs - Children,Children'S Services
Blackpool Council,1008429,Red Rose School,4753825,F4272,05/09/2022,6763,0,CWAN,Children With Additional Needs,4501,Private Contractors,Children'S Services
Blackpool Council,1023864,Cedar House School,4753826,CEDA122060081,05/09/2022,15393.18,0,CWAN,Children With Additional Needs,4501,Private Contractors,Children'S Services
Blackpool Council,1094002,Waterloo Primary Academy,4753827,WPSI 96,05/09/2022,2139.9,0,CWAN,Children With Additional Needs,4403,Special Needs - Children,Children'S Services
Blackpool Council,1107817,Evolution Construction Group Ltd,4753848,2599,14/09/2022,8893.8,1482.3,CXC31,Hra Capital Programme 2022/23,6501,Contract Payments,Capital - Chief Executive
Blackpool Council,1009300,Fylde Coast Women'S Aid,4753849,14/22-23,22/09/2022,4864,0,SP1019,Domestic Violence,5101,Transfer Payments - General,Adult & Families
Blackpool Council,1009300,Fylde Coast Women'S Aid,4753850,20/22-23,22/09/2022,4864,0,SP1019,Domestic Violence,5101,Transfer Payments - General,Adult & Families
Blackpool Council,1009300,Fylde Coast Women'S Aid,4753851,15/22-23,22/09/2022,4298,0,EP8002,Speech And Language,5101,Transfer Payments - General,Children'S Services
Blackpool Council,1009300,Fylde Coast Women'S Aid,4753852,21/22-23,22/09/2022,14719.5,0,DOMABU,Domestic Abuse,5101,Transfer Payments - General,Children'S Services
Blackpool Council,1009300,Fylde Coast Women'S Aid,4753853,17/22-23,22/09/2022,4864,0,SP1019,Domestic Violence,5101,Transfer Payments - General,Adult & Families
Blackpool Council,1009300,Fylde Coast Women'S Aid,4753854,19/22-23,22/09/2022,14719.5,0,DOMABU,Domestic Abuse,5101,Transfer Payments - General,Children'S Services
Blackpool Council,1123190,Cder Group Limted,4753862,222590,23/09/2022,3773.57,628.93,FBBEA,"Income, Recovery & Debtors",3807,Legal & Court Costs,Resources
Blackpool Council,1123190,Cder Group Limted,4753863,222591,23/09/2022,2748.64,458.11,FBBEA,"Income, Recovery & Debtors",3807,Legal & Court Costs,Resources
Blackpool Council,1080292,REDACTED PERSONAL INFO,4754296,505717,15/09/2022,390,0,JBR,Lac - Placements,4832,Carer Level 2,Children'S Services
Blackpool Council,1080292,REDACTED PERSONAL INFO,4754296,505717,15/09/2022,531,0,JBR,Lac - Placements,4801,Gen (Ie Wkly Basic),Children'S Services
Blackpool Council,1009300,Fylde Coast Women'S Aid,4754496,18/22-23,22/09/2022,4298,0,EP8002,Speech And Language,5105,Sp - Pments To Prov - 3rd Part,Children'S Services
Blackpool Council,1133163,E.On Next Energy Limited,4755271,KI-21DF53A6-0006,08/09/2022,677.29,112.88,AEB,Buildings,1202,Electricity,Resources
Blackpool Council,1133163,E.On Next Energy Limited,4755276,KI-21DF53A6-0007,08/09/2022,273.63,13.03,AEB,Buildings,1202,Electricity,Resources
Blackpool Council,1134698,Johnson & Reeves Limited,4755346,HO-AC-00018,05/09/2022,1775,0,HOPB,Housing Options,1704,Bed & Breakfast Accomm.,Chief Executive
Blackpool Council,1086620,REDACTED PERSONAL INFO,4755349,459556,22/09/2022,840,140,BAAA,Legal Services,4707,Counsels Fees,Governance & Partnerships
Blackpool Council,1116015,REDACTED PERSONAL INFO,4755350,272179,21/09/2022,684,114,BAAA,Legal Services,4707,Counsels Fees,Governance & Partnerships
Blackpool Council,1008630,REDACTED PERSONAL INFO,4755352,467272,21/09/2022,960,160,BAAA,Legal Services,4707,Counsels Fees,Governance & Partnerships
Blackpool Council,1008630,REDACTED PERSONAL INFO,4755353,470555,21/09/2022,1236,206,BAAA,Legal Services,4707,Counsels Fees,Governance & Partnerships
Blackpool Council,1116675,Pickering Psychology Services Ltd,4755355,PPS4644,16/09/2022,433.9,72.32,JEA,Senior Management,4712,Experts Fees,Children'S Services
Blackpool Council,1120433,Lextox,4755356,265859,14/09/2022,636,106,JEA,Senior Management,4712,Experts Fees,Children'S Services
Blackpool Council,1009824,Acorn Care & Education Ltd,4755364,76529,22/09/2022,17492.83,0,JEA,Senior Management,4501,Private Contractors,Children'S Services
Blackpool Council,1009824,Acorn Care & Education Ltd,4755365,77548,22/09/2022,6207.13,0,JEA,Senior Management,4501,Private Contractors,Children'S Services
Blackpool Council,1118744,Lonsdale Care Ltd,4755368,LC00368,20/09/2022,16071.42,0,JEA,Senior Management,4501,Private Contractors,Children'S Services
Blackpool Council,1118744,Lonsdale Care Ltd,4755369,LC00367,20/09/2022,16071.42,0,JEA,Senior Management,4501,Private Contractors,Children'S Services
Blackpool Council,1118744,Lonsdale Care Ltd,4755370,LC00366,20/09/2022,16071.42,0,JEA,Senior Management,4501,Private Contractors,Children'S Services
Blackpool Council,1117405,Coastal Key Housing Ltd,4755375,INV-0125,01/09/2022,1990,0,JEA,Senior Management,4501,Private Contractors,Children'S Services
Blackpool Council,1117405,Coastal Key Housing Ltd,4755376,INV-0126,01/09/2022,1990,0,JEA,Senior Management,4501,Private Contractors,Children'S Services
Blackpool Council,1117405,Coastal Key Housing Ltd,4755377,INV-0129,01/09/2022,2790,0,JEA,Senior Management,4501,Private Contractors,Children'S Services
Blackpool Council,1117405,Coastal Key Housing Ltd,4755378,INV-0128,01/09/2022,1078,0,JEA,Senior Management,4501,Private Contractors,Children'S Services
Blackpool Council,1117405,Coastal Key Housing Ltd,4755379,INV-0127,01/09/2022,2370,0,JEA,Senior Management,4501,Private Contractors,Children'S Services
Blackpool Council,1114632,Gs Social Care Solutions Ltd,4755381,SI-14401,13/09/2022,14144,0,JEA,Senior Management,4501,Private Contractors,Children'S Services
Blackpool Council,1112992,Key To Independence Ltd,4755393,JW170822/DH/VICARAGE,13/09/2022,475,0,CX4002,Disabled Facilities Grants,6506,Consultants Fees,Capital - Adult Social Care
Blackpool Council,1006202,I Care Gb Limited,4755535,BPLEX/1408E,22/09/2022,16215.22,0,MVBBE,Supported & Other Accommodatio,4512,Other Care Block Payments,Adult & Families
Blackpool Council,1006202,I Care Gb Limited,4755536,BPLEX/1408T,22/09/2022,13543.32,0,MVBBE,Supported & Other Accommodatio,4512,Other Care Block Payments,Adult & Families
Blackpool Council,1055947,Cherish Uk Limited,4755538,1019406,26/09/2022,792,0,MTEBF,Home Care,4512,Other Care Block Payments,Adult & Families
Blackpool Council,1113165,Target Psychology Ltd,4755539,6/22/6277,06/09/2022,1333.56,222.26,JEA,Senior Management,4712,Experts Fees,Children'S Services
Blackpool Council,1010610,Qualitychildcare Ltd T/A Ashcroft Day Nursery,4755540,ASH0102,05/09/2022,1050,0,CWAN,Children With Additional Needs,4403,Special Needs - Children,Children'S Services
Blackpool Council,1134698,Johnson & Reeves Limited,4755541,HO-DA-00002,08/09/2022,1187.32,0,HOPB,Housing Options,1704,Bed & Breakfast Accomm.,Chief Executive
Blackpool Council,1011675,Bambers Remedial Contractors Limited,4755744,17751,13/09/2022,130087.03,21681.17,CXC11,Site Development,6501,Contract Payments,Capital - Chief Executive
Blackpool Council,1026811,Stannah Lift Services Ltd,4755745,1085457420,09/09/2022,393.7,65.62,MVBBJ,Equipment,5401,Aids To Daily Living,Adult & Families
Blackpool Council,1026811,Stannah Lift Services Ltd,4755784,1085457422,09/09/2022,671.72,111.95,MVBBJ,Equipment,5401,Aids To Daily Living,Adult & Families
Blackpool Council,1026811,Stannah Lift Services Ltd,4755785,1085457444,09/09/2022,753.72,125.62,CXAAA,Local Authority Dwellings,6501,Contract Payments,Capital - Chief Executive
Blackpool Council,1026811,Stannah Lift Services Ltd,4755786,1085457542,09/09/2022,357.88,59.65,MVA,18-64,5401,Aids To Daily Living,Adult & Families
Blackpool Council,1026811,Stannah Lift Services Ltd,4755795,1085451792,07/09/2022,1163.32,193.89,MVA,18-64,5401,Aids To Daily Living,Adult & Families
Blackpool Council,1026811,Stannah Lift Services Ltd,4755795,1085451792,07/09/2022,1267.8,211.3,MVBBJ,Equipment,5401,Aids To Daily Living,Adult & Families
Blackpool Council,1026811,Stannah Lift Services Ltd,4755795,1085451792,07/09/2022,534.36,89.06,CXAAA,Local Authority Dwellings,6501,Contract Payments,Capital - Chief Executive
Blackpool Council,1026811,Stannah Lift Services Ltd,4755796,1085451795,14/09/2022,627.76,104.63,MVBBJ,Equipment,5401,Aids To Daily Living,Adult & Families
Blackpool Council,1112992,Key To Independence Ltd,4755797,AH070722/DH/PRINCESS,01/09/2022,375,0,CX4002,Disabled Facilities Grants,6506,Consultants Fees,Capital - Adult Social Care
Blackpool Council,1118238,Keskin Tencon Limited,4755798,2122248,14/09/2022,300,50,CXC31,Hra Capital Programme 2022/23,6501,Contract Payments,Capital - Chief Executive
Blackpool Council,1112992,Key To Independence Ltd,4755800,MA050722/DH/DEAN,01/09/2022,375,0,CX4002,Disabled Facilities Grants,6506,Consultants Fees,Capital - Adult Social Care
Blackpool Council,1112992,Key To Independence Ltd,4755801,SP050722/DH/GARTON,01/09/2022,475,0,CX4002,Disabled Facilities Grants,6506,Consultants Fees,Capital - Adult Social Care
Blackpool Council,1107100,Nonstop Consulting Ltd,4756746,UK210705,22/09/2022,2008.66,334.78,JAH,Duty And Assessment,0791,Temp/Relief (Bureau Staff),Children'S Services
Blackpool Council,1132462,REDACTED PERSONAL INFO,4756774,0000026481,09/09/2022,699.6,0,JEA,Senior Management,4809,Special Guardianship,Children'S Services
Blackpool Council,1132514,Personnel Leasing Limited,4756775,INVBP0117,14/09/2022,2064.72,344.12,JBT,Looked After Children,0791,Temp/Relief (Bureau Staff),Children'S Services
Blackpool Council,1132514,Personnel Leasing Limited,4756776,INVBP0118,14/09/2022,2141.17,356.86,JBT,Looked After Children,0791,Temp/Relief (Bureau Staff),Children'S Services
Blackpool Council,1132514,Personnel Leasing Limited,4756777,INVBP0119,14/09/2022,1998,333,JBT,Looked After Children,0791,Temp/Relief (Bureau Staff),Children'S Services
Blackpool Council,1135689,Lyn'S Little Ones,4756778,408492,02/09/2022,1152,0,JEA,Senior Management,5510,Nursery,Children'S Services
Blackpool Council,1107100,Nonstop Consulting Ltd,4756779,UK210692,22/09/2022,2114.33,352.39,JBT,Looked After Children,0791,Temp/Relief (Bureau Staff),Children'S Services
Blackpool Council,1136044,Ag Contact Centres Ltd,4756781,HO323,22/09/2022,467.58,77.93,JEA,Senior Management,5509,Contract Expenses,Children'S Services
Blackpool Council,1132514,Personnel Leasing Limited,4756887,INVBP0120,21/09/2022,1998,333,JBT,Looked After Children,0791,Temp/Relief (Bureau Staff),Children'S Services
Blackpool Council,1026811,Stannah Lift Services Ltd,4756899,1085457391,09/09/2022,473.11,78.85,CXAAA,Local Authority Dwellings,6501,Contract Payments,Capital - Chief Executive
Blackpool Council,1115716,North Liverpool Construction Ltd (Fac067),4756900,129852,29/09/2022,2481.66,413.61,CXC31,Hra Capital Programme 2022/23,6501,Contract Payments,Capital - Chief Executive
Blackpool Council,1115716,North Liverpool Construction Ltd (Fac067),4756907,129850,29/09/2022,1746.29,291.05,CXC31,Hra Capital Programme 2022/23,6501,Contract Payments,Capital - Chief Executive
Blackpool Council,1115716,North Liverpool Construction Ltd (Fac067),4756908,129851,29/09/2022,4948.84,824.8,CXC31,Hra Capital Programme 2022/23,6501,Contract Payments,Capital - Chief Executive
Blackpool Council,1041219,Abelglass Trade Supplies Ltd,4756909,INV-7899,21/09/2022,1023.6,170.6,CXC31,Hra Capital Programme 2022/23,6501,Contract Payments,Capital - Chief Executive
Blackpool Council,1002210,Read & Errington,4756910,SA-08/2022,22/09/2022,262.98,43.83,CXC31,Hra Capital Programme 2022/23,6501,Contract Payments,Capital - Chief Executive
Blackpool Council,1073045,Bradley Environmental Consultants Ltd,4756999,65549,16/09/2022,1020,170,CGICAD,Enterprise Zone,6514,B.Holes/Site Investgtn/Surveys,Capital - Commnctn & Regen
Blackpool Council,1094411,Fox Fire Security Limited,4757012,INV 3762,23/09/2022,810.28,135.05,AEB,Buildings,1012,Premises Maint-Priv.Contractor,Resources
Blackpool Council,1118238,Keskin Tencon Limited,4757046,2122252,14/09/2022,360,60,CXC31,Hra Capital Programme 2022/23,6501,Contract Payments,Capital - Chief Executive
Blackpool Council,1117457,Wrps Ltd,4757061,11245,29/09/2022,10139.41,1689.9,CXC31,Hra Capital Programme 2022/23,6501,Contract Payments,Capital - Chief Executive
Blackpool Council,1011518,Tw Joinery & Fencing Contractors,4757062,3453,13/09/2022,3186,531,CXC31,Hra Capital Programme 2022/23,6501,Contract Payments,Capital - Chief Executive
Blackpool Council,1045649,Independent Living (North West) Ltd,4757198,WM122C-19,15/09/2022,14373.53,2395.59,MTEBG,Day Services,4508,Day Care,Adult & Families
Blackpool Council,1011995,Technical & Electrical Services Ltd,4757206,VR 22711,21/09/2022,435.12,72.52,CXC31,Hra Capital Programme 2022/23,6501,Contract Payments,Capital - Chief Executive
Blackpool Council,1011995,Technical & Electrical Services Ltd,4757207,M 22730,21/09/2022,807.17,134.53,CXC31,Hra Capital Programme 2022/23,6501,Contract Payments,Capital - Chief Executive
Blackpool Council,1011995,Technical & Electrical Services Ltd,4757212,M 22731,21/09/2022,807.17,134.53,CXC31,Hra Capital Programme 2022/23,6501,Contract Payments,Capital - Chief Executive
Blackpool Council,1011995,Technical & Electrical Services Ltd,4757213,CAP22734,09/09/2022,1549.22,258.2,CXC31,Hra Capital Programme 2022/23,6501,Contract Payments,Capital - Chief Executive
Blackpool Council,1011995,Technical & Electrical Services Ltd,4757214,CAP22735,09/09/2022,1425.07,237.51,CXC31,Hra Capital Programme 2022/23,6501,Contract Payments,Capital - Chief Executive
Blackpool Council,1011995,Technical & Electrical Services Ltd,4757215,CAP22736,09/09/2022,1584.8,264.13,CXC31,Hra Capital Programme 2022/23,6501,Contract Payments,Capital - Chief Executive
Blackpool Council,1132258,Novus Property Solutions Ltd,4757216,22080752,30/09/2022,49484.48,8247.42,CXC31,Hra Capital Programme 2022/23,6501,Contract Payments,Capital - Chief Executive
Blackpool Council,1132258,Novus Property Solutions Ltd,4757216,22080752,30/09/2022,13209.98,2201.66,CXXXX,Hra Non Specific Contingency,6501,Contract Payments,Capital - Chief Executive
Blackpool Council,1104767,North Star Environmental Ltd,4757217,INV-26763,30/09/2022,282,47,CXC31,Hra Capital Programme 2022/23,6501,Contract Payments,Capital - Chief Executive
Blackpool Council,1011995,Technical & Electrical Services Ltd,4757218,C 10210,29/09/2022,2918.52,486.42,CXC31,Hra Capital Programme 2022/23,6501,Contract Payments,Capital - Chief Executive
Blackpool Council,1108029,REDACTED PERSONAL DATA,4757225,TCPG/GCB/AUGAOB22,02/09/2022,1248.5,0,JBR,Lac - Placements,3801,Other Expenses,Children'S Services
Blackpool Council,1132514,Personnel Leasing Limited,4757226,INVBP0121,21/09/2022,2068.2,344.7,JBT,Looked After Children,0791,Temp/Relief (Bureau Staff),Children'S Services
Blackpool Council,1132514,Personnel Leasing Limited,4757227,INVBP0122,21/09/2022,2046.06,341.01,JBT,Looked After Children,0791,Temp/Relief (Bureau Staff),Children'S Services
Blackpool Council,1011675,Bambers Remedial Contractors Limited,4757228,17659,21/09/2022,11218.01,1869.67,CXC11,Site Development,6501,Contract Payments,Capital - Chief Executive
Blackpool Council,1011675,Bambers Remedial Contractors Limited,4757231,17734,21/09/2022,1393.62,232.27,CXXXX,Hra Non Specific Contingency,6501,Contract Payments,Capital - Chief Executive
Blackpool Council,1045649,Independent Living (North West) Ltd,4757264,HDC 122C-19,15/09/2022,5343.95,890.66,MTEBG,Day Services,4508,Day Care,Adult & Families
Blackpool Council,1077392,Reed Specialist Recruitment Ltd,4757265,E021016227M,08/09/2022,2283.09,380.52,JAB,Locality,0791,Temp/Relief (Bureau Staff),Children'S Services
Blackpool Council,1077392,Reed Specialist Recruitment Ltd,4757265,E021016227M,08/09/2022,5063.58,843.93,JAH,Duty And Assessment,0791,Temp/Relief (Bureau Staff),Children'S Services
Blackpool Council,1077392,Reed Specialist Recruitment Ltd,4757265,E021016227M,08/09/2022,3883.22,647.2,JBT,Looked After Children,0791,Temp/Relief (Bureau Staff),Children'S Services
Blackpool Council,1077392,Reed Specialist Recruitment Ltd,4757265,E021016227M,08/09/2022,4388.36,731.39,JEA,Senior Management,0791,Temp/Relief (Bureau Staff),Children'S Services
Blackpool Council,1077392,Reed Specialist Recruitment Ltd,4757265,E021016227M,08/09/2022,694.05,115.67,LM3064,Community Team North,0791,Temp/Relief (Bureau Staff),Adult & Families
Blackpool Council,1077392,Reed Specialist Recruitment Ltd,4757265,E021016227M,08/09/2022,2266.97,377.83,LM3068,Rapid Response,0791,Temp/Relief (Bureau Staff),Adult & Families
Blackpool Council,1077392,Reed Specialist Recruitment Ltd,4757265,E021016227M,08/09/2022,676.35,112.73,PU0000,Covid Test And Trace,0791,Temp/Relief (Bureau Staff),Public Health
Blackpool Council,1077392,Reed Specialist Recruitment Ltd,4757265,E021016227M,08/09/2022,676.35,112.73,PU0001,Public Health Team,0791,Temp/Relief (Bureau Staff),Public Health
Blackpool Council,1135786,Hafi Company Limited,4757266,210822-SH,22/09/2022,406.25,0,LM0401,Safeguarding Vulnerable Adults,4501,Private Contractors,Adult & Families
Blackpool Council,1111328,Hadley Fraser Ltd,4757267,BLA138,29/09/2022,9980.16,1663.36,LM0401,Safeguarding Vulnerable Adults,4501,Private Contractors,Adult & Families
Blackpool Council,1098293,Dy Property Services Ltd,4757274,IV00626,08/09/2022,780,0,HOPB,Housing Options,1301,Rent & Hire Of Premises,Chief Executive
Blackpool Council,1011551,Black Box Security Alarm Systems Ltd,4757277,225907,01/09/2022,931.62,155.27,AER,Dual Use Properties,1171,Alarms,Resources
Blackpool Council,1051901,Duct Cleaning Services,4757287,1967,01/09/2022,480,0,AEB,Buildings,1012,Premises Maint-Priv.Contractor,Resources
Blackpool Council,1051901,Duct Cleaning Services,4757288,1975,09/09/2022,280,0,AEB,Buildings,1012,Premises Maint-Priv.Contractor,Resources
Blackpool Council,1055372,Forge Leisure (Uk) Ltd,4757289,14266,16/09/2022,12385.2,2064.2,CRT,Crrm 2018/19,6501,Contract Payments,Capital - Resources
Blackpool Council,1121068,Rj Lift Services Ltd,4757303,216946,09/09/2022,497.52,82.92,AER,Dual Use Properties,1101,Lifts,Resources
Blackpool Council,1133979,REDACTED PERSONAL INFO,4757325,506846,01/09/2022,328.87,0,MVDBB,Direct Payments,5604,Direct Payments,Adult & Families
Blackpool Council,1136338,REDACTED PERSONAL INFO,4757327,506848,01/09/2022,445.5,0,MHABB,Resid Care Home Placements,5604,Direct Payments,Adult & Families
Blackpool Council,1136339,REDACTED PERSONAL INFO,4757328,506845,01/09/2022,445.5,0,MHABB,Resid Care Home Placements,5604,Direct Payments,Adult & Families
